Invoice ID,Supplier Name,Paid Date,Subjective Code,Subjective Name,Service Area,Cost Centre Name,Invoiced
2092659,24/7 Minibuses,17/02/2011,34402,Clients  Taxi Fares,Environmental Services,Social Needs Transport,"1,539.00"
2092664,3D Private Hire#Cars,17/02/2011,34402,Clients  Taxi Fares,Environmental Services,Social Needs Transport,"4,237.20"
2092825,3M United Kingdom plc,24/02/2011,45401,Computer Maintenance,Adult Services,Libraries  E Services,"7,549.70"
2081506,A & A Drain Services,03/02/2011,20100,Day To Day Maintenance,Central Corporate,Land & Property,650.00
2093322,A & L Hope,17/02/2011,Z1051,Work in Progress Additions,Housing GRF,Capital  General Fund,"2,797.50"
2100692,A & L Hope,24/02/2011,Z1051,Work in Progress Additions,Housing GRF,Capital  General Fund,"9,727.90"
2099450,A B Health Ltd,21/02/2011,53100,Agency Staff  Fulltime,Chief Executives Department,Personnel Svs Occ Health Unit,"1,171.87"
2099212,A E Yates Ltd,21/02/2011,Z1051,Work in Progress Additions,Highways,Stores,"53,922.52"
2104661,A E Yates Ltd,28/02/2011,Z1051,Work in Progress Additions,Highways,Stores,"83,658.67"
2105100,A1 Steam Cleaning & Recovery,28/02/2011,52200,Contracted Services,Environmental Services,Transport Support Service,780.00
2092668,AAB Taxi Services,17/02/2011,34402,Clients  Taxi Fares,Environmental Services,Social Needs Transport,"1,552.20"
2083591,Abafields Residential Home,08/02/2011,54301,Residential Provision,Adult Services,OA  External Provision Residential,"26,493.28"
2083591,Abafields Residential Home,08/02/2011,54301,Residential Provision,Adult Services,MH Residential External Provision,"1,493.52"
2083590,Abafields Residential Home,08/02/2011,54301,Residential Provision,Adult Services,OA  External Provision Residential,"3,680.46"
2092667,Abbey Private Hire,17/02/2011,34402,Clients  Taxi Fares,Environmental Services,Social Needs Transport,"1,636.20"
2083629,Abbeywood Tottington Ltd,08/02/2011,54301,Residential Provision,Adult Services,OA  External Provision Residential,"1,543.56"
2084920,Access Hire Nationwide,28/02/2011,33201,Transport Hire,Environmental Services,Transport Support Service,"1,176.00"
2092029,Access to Care Ltd,14/02/2011,52000,Vol Assoc Grants  General,Children's Services,Res Serv Agency Placements,850.00
2092030,Access to Care Ltd,14/02/2011,52000,Vol Assoc Grants  General,Children's Services,Res Serv Agency Placements,850.00
2093728,Access to Care Ltd,17/02/2011,52000,Vol Assoc Grants  General,Children's Services,Res Serv Agency Placements,850.00
2093731,Access to Care Ltd,17/02/2011,52000,Vol Assoc Grants  General,Children's Services,Res Serv Agency Placements,850.00
2093733,Access to Care Ltd,17/02/2011,52000,Vol Assoc Grants  General,Children's Services,Res Serv Agency Placements,850.00
2093734,Access to Care Ltd,17/02/2011,52000,Vol Assoc Grants  General,Children's Services,Res Serv Agency Placements,800.00
2082781,Access to Care Ltd,07/02/2011,52000,Vol Assoc Grants  General,Children's Services,Res Serv Agency Placements,850.00
2082782,Access to Care Ltd,07/02/2011,52000,Vol Assoc Grants  General,Children's Services,Res Serv Agency Placements,850.00
2082783,Access to Care Ltd,07/02/2011,52000,Vol Assoc Grants  General,Children's Services,Res Serv Agency Placements,800.00
2082784,Access to Care Ltd,07/02/2011,52000,Vol Assoc Grants  General,Children's Services,Res Serv Agency Placements,850.00
2082785,Access to Care Ltd,07/02/2011,52000,Vol Assoc Grants  General,Children's Services,Res Serv Agency Placements,850.00
2082779,Access to Care Ltd,07/02/2011,52000,Vol Assoc Grants  General,Children's Services,Res Serv Agency Placements,850.00
2086455,Access to Care Ltd,10/02/2011,52000,Vol Assoc Grants  General,Children's Services,Res Serv Agency Placements,800.00
2086457,Access to Care Ltd,10/02/2011,52000,Vol Assoc Grants  General,Children's Services,Res Serv Agency Placements,850.00
2086458,Access to Care Ltd,10/02/2011,52000,Vol Assoc Grants  General,Children's Services,Res Serv Agency Placements,850.00
2086459,Access to Care Ltd,10/02/2011,52000,Vol Assoc Grants  General,Children's Services,Res Serv Agency Placements,850.00
2086460,Access to Care Ltd,10/02/2011,52000,Vol Assoc Grants  General,Children's Services,Res Serv Agency Placements,850.00
2086461,Access to Care Ltd,10/02/2011,52000,Vol Assoc Grants  General,Children's Services,Res Serv Agency Placements,850.00
2086463,Access to Care Ltd,10/02/2011,52000,Vol Assoc Grants  General,Children's Services,Res Serv Agency Placements,726.00
2092027,Access to Care Ltd,14/02/2011,52000,Vol Assoc Grants  General,Children's Services,Res Serv Agency Placements,850.00
2104628,Access to Care Ltd,28/02/2011,52000,Vol Assoc Grants  General,Children's Services,Res Serv Agency Placements,850.00
2104627,Access to Care Ltd,28/02/2011,52000,Vol Assoc Grants  General,Children's Services,Res Serv Agency Placements,850.00
2104626,Access to Care Ltd,28/02/2011,52000,Vol Assoc Grants  General,Children's Services,Res Serv Agency Placements,850.00
2104623,Access to Care Ltd,28/02/2011,52000,Vol Assoc Grants  General,Children's Services,Res Serv Agency Placements,800.00
2104622,Access to Care Ltd,28/02/2011,52000,Vol Assoc Grants  General,Children's Services,Res Serv Agency Placements,850.00
2104619,Access to Care Ltd,28/02/2011,52000,Vol Assoc Grants  General,Children's Services,Res Serv Agency Placements,850.00
2104618,Access to Care Ltd,28/02/2011,52000,Vol Assoc Grants  General,Children's Services,Res Serv Agency Placements,800.00
2104615,Access to Care Ltd,28/02/2011,52000,Vol Assoc Grants  General,Children's Services,Res Serv Agency Placements,850.00
2086464,Access to Care Ltd,10/02/2011,52000,Vol Assoc Grants  General,Children's Services,Res Serv Agency Placements,850.00
2092032,Access to Care Ltd,14/02/2011,52000,Vol Assoc Grants  General,Children's Services,Res Serv Agency Placements,800.00
2092670,ACE Minibuses Ltd,17/02/2011,34402,Clients  Taxi Fares,Environmental Services,Social Needs Transport,"4,415.20"
2105560,ACME#H & H Refrigeration Ltd),21/03/2011,40100,Operational Equipment Purchase,Environmental Services,Catering,741.00
2083720,Across The Bay,08/02/2011,54301,Residential Provision,Adult Services,OA  External Provision Residential,"1,626.00"
2081463,Adams Selfstore,03/02/2011,48629,Miscellaneous Expenses,Housing GRF,Benjamin Court Accommodation,"5,000.01"
2081224,Addiction Dependency Solutions#ADS,10/02/2011,54301,Residential Provision,Adult Services,Alcohol External Provision,"1,696.94"
2087841,Addiction Dependency Solutions#ADS,03/03/2011,52200,Contracted Services,Adult Services,MH Day Care External Provision,"25,787.50"
2083220,ADT Fire & Security plc,07/02/2011,52200,Contracted Services,Children's Services,Youth Service,"43,165.00"
2085461,Adult Learners Group,10/02/2011,48509,Other Fees,Adult Services,Adult Education,600.00
2084913,Advanced Building (NW) Ltd,07/02/2011,20100,Day To Day Maintenance,Environmental Services,Depots,930.00
2083210,Advanta Marketing Ltd,07/02/2011,40140,Office Equipment Purchase,Central Services,Citizenship Ceremonies,"3,650.00"
2087527,Agripa Solutions Ltd,10/03/2011,48203,Marketing,Central Services,Marketing  Development (J),"10,712.00"
2081773,Aidapt Bathrooms Ltd,14/02/2011,44051,Clients Aids & Adaptations,Adult Services,AD ICES,603.72
2081251,Aidapt Bathrooms Ltd,03/02/2011,44051,Clients Aids & Adaptations,Adult Services,AD ICES,"1,030.26"
2081248,Aidapt Bathrooms Ltd,03/02/2011,44051,Clients Aids & Adaptations,Adult Services,AD ICES,"1,168.86"
2092932,Aidapt Bathrooms Ltd,03/03/2011,44051,Clients Aids & Adaptations,Adult Services,AD ICES,"2,800.82"
2101451,Aidapt Bathrooms Ltd,07/03/2011,44051,Clients Aids & Adaptations,Adult Services,AD ICES,547.80
2083641,Ainsworth Nursing Home,08/02/2011,54301,Residential Provision,Adult Services,PD Purchaser Residential Care,"1,543.56"
2083641,Ainsworth Nursing Home,08/02/2011,54301,Residential Provision,Adult Services,MH Residential External Provision,"6,174.24"
2083641,Ainsworth Nursing Home,08/02/2011,54302,Nursing Provision,Adult Services,OA  External Provision Residential,"4,630.68"
2083641,Ainsworth Nursing Home,08/02/2011,54302,Nursing Provision,Adult Services,MH Residential External Provision,"3,087.12"
2103664,Airborne Env Consultants Ltd,29/03/2011,20102,Health & Safety,Chief Executives Department,Personnel Svs Occ Health Unit,"1,055.00"
2085662,Airborne Env Consultants Ltd,29/03/2011,52200,Contracted Services,Property Services,Statutory Records & Compliance Mngmnt,583.00
2092674,Alan Bick#Alans Cab,17/02/2011,34402,Clients  Taxi Fares,Environmental Services,Social Needs Transport,874.00
2083707,Alexander Court,08/02/2011,54301,Residential Provision,Adult Services,OA  External Provision Residential,"1,555.00"
2092676,Alims Minibuses/ Mr M Alim Khan,17/02/2011,34402,Clients  Taxi Fares,Environmental Services,Social Needs Transport,"1,539.00"
2104185,All Gates & Railings Ltd#AGR Ltd,28/02/2011,48509,Other Fees,Housing Revenue Account,Housing Revenue Account,"3,225.46"
2086201,All Gates & Railings Ltd#AGR Ltd,10/02/2011,Z1051,Work in Progress Additions,Housing Revenue Account,Capital  HRA,"1,065.00"
2099196,All Gates & Railings Ltd#AGR Ltd,24/02/2011,Z1051,Work in Progress Additions,Housing Revenue Account,Capital  HRA,"5,746.21"
2099199,All Gates & Railings Ltd#AGR Ltd,24/02/2011,Z1051,Work in Progress Additions,Housing Revenue Account,Capital  HRA,"4,500.00"
2103517,All Gates & Railings Ltd#AGR Ltd,24/02/2011,Z1051,Work in Progress Additions,Housing Revenue Account,Capital  HRA,"6,689.77"
2103518,All Gates & Railings Ltd#AGR Ltd,28/02/2011,Z1051,Work in Progress Additions,Housing Revenue Account,Capital  HRA,842.00
2103519,All Gates & Railings Ltd#AGR Ltd,24/02/2011,Z1051,Work in Progress Additions,Housing Revenue Account,Capital  HRA,"18,367.63"
2100456,All Gates & Railings Ltd#AGR Ltd,24/02/2011,Z1051,Work in Progress Additions,Housing Revenue Account,Capital  HRA,"4,800.00"
2100457,All Gates & Railings Ltd#AGR Ltd,24/02/2011,Z1051,Work in Progress Additions,Housing Revenue Account,Capital  HRA,"5,200.00"
2092771,Alliance Disposables Ltd,10/03/2011,26000,Cleaning Materials,Property Services,Operational Facilities Management,"2,130.12"
2086373,Allpay.net Ltd,10/02/2011,48509,Other Fees,Finance Department,CSD Cashiers,"1,545.45"
2086375,Allpay.net Ltd,10/02/2011,48509,Other Fees,Finance Department,CSD Cashiers,"6,359.08"
2087640,Alsecure Group Ltd,14/02/2011,44401,Other Security Expenses,Housing GRF,Benjamin Court Accommodation,"1,310.43"
2085731,Alsecure Group Ltd,28/02/2011,44401,Other Security Expenses,Housing GRF,Benjamin Court Accommodation,839.16
2089926,Alsecure Group Ltd,14/02/2011,44401,Other Security Expenses,Housing GRF,Benjamin Court Accommodation,"1,079.79"
2089923,Alsecure Group Ltd,17/02/2011,44401,Other Security Expenses,Housing GRF,Benjamin Court Accommodation,839.16
2089921,Alsecure Group Ltd,28/02/2011,44401,Other Security Expenses,Housing GRF,Benjamin Court Accommodation,839.16
2094198,Alsecure Group Ltd,15/03/2011,44401,Other Security Expenses,Housing GRF,Benjamin Court Accommodation,839.16
2091552,Alsecure Group Ltd,07/03/2011,44401,Other Security Expenses,Housing GRF,Benjamin Court Accommodation,839.16
2083709,Altham Care Home,08/02/2011,54301,Residential Provision,Adult Services,OA  External Provision Residential,"1,556.00"
2092684,AMA Cabs,17/02/2011,34402,Clients  Taxi Fares,Environmental Services,Social Needs Transport,974.70
2099467,AMA Cabs,21/02/2011,34402,Clients  Taxi Fares,Environmental Services,Social Needs Transport,666.90
2081849,AMS Maintenance Services,17/02/2011,20100,Day To Day Maintenance,Environmental Services,Greenspace,590.50
2081879,AMS Maintenance Services,17/02/2011,20100,Day To Day Maintenance,Central Corporate,Land & Property,749.36
2105211,AMS Maintenance Services,24/03/2011,20100,Day To Day Maintenance,Environmental Services,Greenspace,590.00
2098634,AMS Maintenance Services,10/03/2011,20100,Day To Day Maintenance,Central Corporate,Land & Property,581.40
2095671,AMS Maintenance Services,10/03/2011,20100,Day To Day Maintenance,Central Corporate,Land & Property,581.40
2095684,AMS Maintenance Services,10/03/2011,20100,Day To Day Maintenance,Central Corporate,Land & Property,581.40
2100782,AMS Maintenance Services,07/03/2011,20100,Day To Day Maintenance,Children's Services,Youth Service Outdoor Education,"1,608.05"
2092083,Anglia DNA Services Limited,14/02/2011,48509,Other Fees,Children's Services,Management Team,629.00
2094211,Animal Wardens,17/02/2011,53000,Private Contracted Services,Environmental Services,Education & Enforcement,760.00
2089813,Aon Ltd,14/02/2011,28100,Other Prem Insurance Direct,Housing Revenue Account,Housing Rents,"14,801.07"
2091200,Aon Ltd,14/02/2011,28100,Other Prem Insurance Direct,Adult Services,Mus & Archives Collections Management,514.10
2099677,Apcoa Parking UK Ltd#3,21/02/2011,37100,Car Parking,Housing GRF,Strategic Housing,"1,511.50"
2093402,Apcoa Parking UK Ltd#3,17/02/2011,22002,Management Fee,Environmental Services,Parking Services  Off Street,"12,974.55"
2084512,Apetito Ltd,28/02/2011,41101,Catering ProvisionsFood,Adult Services,OA  Community Meals,"1,340.66"
2084517,Apetito Ltd,28/02/2011,41101,Catering ProvisionsFood,Adult Services,OA  Community Meals,"1,551.46"
2084519,Apetito Ltd,28/02/2011,41101,Catering ProvisionsFood,Adult Services,OA  Community Meals,"1,373.60"
2105333,Apetito Ltd,28/02/2011,41101,Catering ProvisionsFood,Adult Services,OA  Community Meals,"1,227.60"
2084818,Apetito Ltd,03/03/2011,41101,Catering ProvisionsFood,Adult Services,OA  Community Meals,"1,350.41"
2087092,Apetito Ltd,07/03/2011,41101,Catering ProvisionsFood,Adult Services,OA  Community Meals,"1,480.65"
2087111,Apetito Ltd,07/03/2011,41101,Catering ProvisionsFood,Adult Services,OA  Community Meals,"1,473.54"
2092012,Apetito Ltd,10/03/2011,41101,Catering ProvisionsFood,Adult Services,OA  Community Meals,"1,345.71"
2102032,Apetito Ltd,17/03/2011,41101,Catering ProvisionsFood,Adult Services,OA  Community Meals,"1,444.76"
2102040,Apetito Ltd,17/03/2011,41101,Catering ProvisionsFood,Adult Services,OA  Community Meals,"1,110.78"
2091455,Apetito Ltd,10/03/2011,41101,Catering ProvisionsFood,Adult Services,OA  Community Meals,"1,262.15"
2104673,Apple Video Facilities,28/02/2011,48203,Marketing,Central Services,Marketing Committed Monies,650.00
2084888,APT Controls Ltd,03/03/2011,Z1051,Work in Progress Additions,Adult Services,Adult Services Balance Sheet,618.50
2084972,APT Controls Ltd,31/03/2011,Z1051,Work in Progress Additions,Adult Services,Adult Services Balance Sheet,"1,362.30"
2084885,APT Controls Ltd,03/03/2011,Z1051,Work in Progress Additions,Adult Services,Adult Services Balance Sheet,"3,658.54"
2093356,ARCH Initiatives,17/02/2011,52200,Contracted Services,Special Funding,CYJIP,"76,121.00"
2084280,ARCH Initiatives,21/02/2011,52200,Contracted Services,Special Funding,CYJIP,"76,121.00"
2092826,Arco Limited,31/03/2011,42001,Uniforms,Environmental Services,Waste,"4,608.00"
2092842,Arco Limited,31/03/2011,42001,Uniforms,Environmental Services,Waste,"5,563.56"
2091329,Arco Limited,10/03/2011,40610,Direct Materials,Environmental Services,Highway Works  Unallocated Costs,516.60
2101434,Arval Ltd,24/02/2011,31301,Vehicle Fuel,Environmental Services,Highway Services,"2,060.76"
2101434,Arval Ltd,24/02/2011,31301,Vehicle Fuel,Environmental Services,Highway Works  Unallocated Costs,"4,601.46"
2101434,Arval Ltd,24/02/2011,31301,Vehicle Fuel,Environmental Services,Greenspace,"2,105.80"
2101434,Arval Ltd,24/02/2011,31301,Vehicle Fuel,Environmental Services,Streets & Grounds,"7,692.40"
2101434,Arval Ltd,24/02/2011,31301,Vehicle Fuel,Environmental Services,Waste,"22,551.64"
2101434,Arval Ltd,24/02/2011,31301,Vehicle Fuel,Environmental Services,Security Services,636.01
2101434,Arval Ltd,24/02/2011,31301,Vehicle Fuel,Environmental Services,Social Needs Transport,"7,394.57"
2085665,Arval Ltd,10/02/2011,31301,Vehicle Fuel,Environmental Services,Highway Services,"5,091.63"
2085665,Arval Ltd,10/02/2011,31301,Vehicle Fuel,Environmental Services,Highway Works  Unallocated Costs,"4,435.02"
2085665,Arval Ltd,10/02/2011,31301,Vehicle Fuel,Environmental Services,Greenspace,"2,216.69"
2085665,Arval Ltd,10/02/2011,31301,Vehicle Fuel,Environmental Services,Streets & Grounds,"5,766.13"
2085665,Arval Ltd,10/02/2011,31301,Vehicle Fuel,Environmental Services,Waste,"31,962.01"
2085665,Arval Ltd,10/02/2011,31301,Vehicle Fuel,Environmental Services,Security Services,725.00
2085665,Arval Ltd,10/02/2011,31301,Vehicle Fuel,Environmental Services,Social Needs Transport,"8,242.23"
2082226,ASDA Business Rewards,07/02/2011,52300,Client Support Costs,Development & Regen,Addressing Worklessness,975.00
2083670,Ashleigh House Care Home,08/02/2011,54301,Residential Provision,Adult Services,OA  External Provision Residential,"1,356.00"
2083687,Ashwood Rest Home,08/02/2011,54301,Residential Provision,Adult Services,OA  External Provision Residential,"1,624.00"
2101924,Aspull Engineering Co Limited,15/03/2011,20101,Programmed Maint. Work,Environmental Services,Engineering Projects,"2,130.00"
2083708,Asra House,08/02/2011,54301,Residential Provision,Adult Services,OA  External Provision Residential,"1,596.00"
2081139,Associated Cleaning Contractors,03/02/2011,26101,Contract Cleaning,Children's Services,Technical Innovation Centre,"1,256.33"
2104550,Associated Cleaning Contractors,28/02/2011,26100,Window Cleaning,Adult Services,OA  Thickerford CCC Day Care,540.00
2085673,Associated Cleaning Contractors,10/02/2011,26101,Contract Cleaning,Children's Services,Management Team,"1,784.00"
2103875,Associated Cleaning Contractors,28/02/2011,26101,Contract Cleaning,Children's Services,Management Team,"1,784.00"
2084568,Associated Cleaning Contractors,07/02/2011,52200,Contracted Services,Housing GRF,Access & Advice Housing Options Centre,813.25
2085856,Association for Physical Education,10/02/2011,48509,Other Fees,Children's Services,School Improvement  P.E.,"1,250.00"
2083637,Astley Grange,08/02/2011,54302,Nursing Provision,Adult Services,OA  External Provision Residential,"9,156.56"
2098736,Astor-Bannerman (Medical) Ltd,10/03/2011,44051,Clients Aids & Adaptations,Adult Services,AD ICES,567.90
2081266,ATG Access Ltd,28/02/2011,20501,Engineering Work,Environmental Services,Highway Services,"11,790.00"
2102500,Atkins Limited,24/02/2011,52200,Contracted Services,Property Services,Operational Facilities Management,"26,286.33"
2101124,Atlantis,24/02/2011,34402,Clients  Taxi Fares,Environmental Services,Social Needs Transport,"1,556.10"
2099354,Atlantix Construction,21/02/2011,Z6008,Expense AP Accrual,Bolton MBC Balance Sheet,Bolton MBC Balance Sheet,"188,399.08"
2085598,Automatic Alarms Limited,10/02/2011,Z1051,Work in Progress Additions,Housing Revenue Account,Capital  HRA,759.13
2104221,Automatic Alarms Limited,28/02/2011,Z1051,Work in Progress Additions,Housing Revenue Account,Capital  HRA,"1,945.75"
2092728,Automatic Alarms Limited,17/02/2011,20100,Day To Day Maintenance,Environmental Services,Markets  Rent Account,581.67
2086540,Automatic Alarms Limited,10/02/2011,20100,Day To Day Maintenance,Environmental Services,Markets  Rent Account,575.13
2085385,Automatic Alarms Limited,10/02/2011,20100,Day To Day Maintenance,Adult Services,Prop. Servs. Jubilee Pool,887.25
2086250,Automatic Alarms Limited,10/02/2011,Z1051,Work in Progress Additions,Housing Revenue Account,Capital  HRA,712.13
2086242,Automatic Alarms Limited,10/02/2011,Z1051,Work in Progress Additions,Housing Revenue Account,Capital  HRA,"5,426.44"
2086204,Automatic Alarms Limited,10/02/2011,Z1051,Work in Progress Additions,Housing Revenue Account,Capital  HRA,"10,704.77"
2102339,Avonline plc,28/02/2011,20100,Day To Day Maintenance,Housing Revenue Account,communal areas & CCTV,"39,026.01"
2102338,Avonline plc,24/02/2011,Z1051,Work in Progress Additions,Housing Revenue Account,Capital  HRA,"75,620.73"
2102343,Avonline plc,28/02/2011,20100,Day To Day Maintenance,Housing Revenue Account,communal areas & CCTV,"2,665.00"
2099573,B & M Davies (Plant Hire) Ltd,28/02/2011,33201,Transport Hire,Environmental Services,Depots,849.75
2085184,B & M Davies (Plant Hire) Ltd,10/02/2011,33202,Plant Hire,Environmental Services,Greenspace,640.10
2085187,B & M Davies (Plant Hire) Ltd,14/02/2011,33202,Plant Hire,Environmental Services,Greenspace,505.00
2085189,B & M Davies (Plant Hire) Ltd,14/02/2011,33202,Plant Hire,Environmental Services,Greenspace,915.85
2081816,B & M Davies (Plant Hire) Ltd,14/02/2011,Z6008,Expense AP Accrual,Bolton MBC Balance Sheet,Bolton MBC Balance Sheet,640.10
2081821,B & M Davies (Plant Hire) Ltd,14/02/2011,Z6008,Expense AP Accrual,Bolton MBC Balance Sheet,Bolton MBC Balance Sheet,648.75
2099548,B & M Davies (Plant Hire) Ltd,28/02/2011,Z6008,Expense AP Accrual,Bolton MBC Balance Sheet,Bolton MBC Balance Sheet,720.10
2084234,B & M Davies (Plant Hire) Ltd,21/02/2011,Z6008,Expense AP Accrual,Bolton MBC Balance Sheet,Bolton MBC Balance Sheet,640.10
2084235,B & M Davies (Plant Hire) Ltd,21/02/2011,Z6008,Expense AP Accrual,Bolton MBC Balance Sheet,Bolton MBC Balance Sheet,640.10
2086278,B & M Davies (Plant Hire) Ltd,28/02/2011,33202,Plant Hire,Environmental Services,Bereavement Services,640.10
2086276,B & M Davies (Plant Hire) Ltd,03/03/2011,33202,Plant Hire,Environmental Services,Bereavement Services,800.00
2086277,B & M Davies (Plant Hire) Ltd,03/03/2011,33202,Plant Hire,Environmental Services,Bereavement Services,640.10
2105513,B & M Davies (Plant Hire) Ltd,21/03/2011,33202,Plant Hire,Environmental Services,Greenspace,"1,060.90"
2105155,B & M Davies (Plant Hire) Ltd,15/03/2011,Z6008,Expense AP Accrual,Bolton MBC Balance Sheet,Bolton MBC Balance Sheet,640.10
2087453,B & M Davies (Plant Hire) Ltd,10/03/2011,Z6008,Expense AP Accrual,Bolton MBC Balance Sheet,Bolton MBC Balance Sheet,640.10
2081270,B A N D#Bolton Association and Network of Drop-Ins (BAND),03/02/2011,52200,Contracted Services,Adult Services,MH Day Care External Provision,"36,720.04"
2083219,B C Hamer,07/02/2011,Z1051,Work in Progress Additions,Housing GRF,Capital  General Fund,"9,849.25"
2089849,B C Hamer,14/02/2011,Z1051,Work in Progress Additions,Housing Revenue Account,Capital  HRA,"15,249.88"
2087549,B Taylor & Son#Plumbing & Domestic Gas,10/02/2011,Z1051,Work in Progress Additions,Housing GRF,Capital  General Fund,"1,000.00"
2101489,Balmers Garden Machinery Centre,17/03/2011,40101,Operational Equipment Maint,Environmental Services,Streets & Grounds,533.70
2101492,Balmers Garden Machinery Centre,17/03/2011,40101,Operational Equipment Maint,Environmental Services,Streets & Grounds,"1,070.75"
2083686,Bank House Care Home,08/02/2011,54301,Residential Provision,Adult Services,OA  External Provision Residential,"1,543.56"
2083701,Beechville Care Home,08/02/2011,54301,Residential Provision,Adult Services,OA  External Provision Residential,"2,983.44"
2083702,Beechwood House,08/02/2011,54301,Residential Provision,Adult Services,OA  External Provision Residential,"1,864.80"
2083724,Belong Wigan#EPH,08/02/2011,54301,Residential Provision,Adult Services,OA  External Provision Residential,"2,658.25"
2093789,Benchmark Building Supplies Ltd,15/03/2011,Z6008,Expense AP Accrual,Bolton MBC Balance Sheet,Bolton MBC Balance Sheet,593.40
2093788,Benchmark Building Supplies Ltd,15/03/2011,Z6008,Expense AP Accrual,Bolton MBC Balance Sheet,Bolton MBC Balance Sheet,793.52
2092196,Berkeley Care Management Ltd#(BCM),14/02/2011,41101,Catering ProvisionsFood,Adult Services,OA  Community Meals,"2,017.20"
2092199,Berkeley Care Management Ltd#(BCM),14/02/2011,41101,Catering ProvisionsFood,Adult Services,OA  Community Meals,"1,804.10"
2092194,Berkeley Care Management Ltd#(BCM),14/02/2011,41101,Catering ProvisionsFood,Adult Services,OA  Community Meals,"2,322.40"
2092193,Berkeley Care Management Ltd#(BCM),14/02/2011,41101,Catering ProvisionsFood,Adult Services,OA  Community Meals,"2,435.20"
2092188,Berkeley Care Management Ltd#(BCM),14/02/2011,41101,Catering ProvisionsFood,Adult Services,OA  Community Meals,"4,081.79"
2092197,Berkeley Care Management Ltd#(BCM),14/02/2011,41101,Catering ProvisionsFood,Adult Services,OA  Community Meals,"2,080.80"
2081273,Bertram Library Services,21/02/2011,40753,Book Fund Expenditure,Adult Services,Libraries  Resources,"6,284.56"
2092794,Bertram Library Services,17/02/2011,40753,Book Fund Expenditure,Adult Services,Libraries  Resources,"3,448.05"
2105153,Bethell Construction Ltd,17/03/2011,Z6008,Expense AP Accrual,Bolton MBC Balance Sheet,Bolton MBC Balance Sheet,"7,634.70"
2105145,Bethell Construction Ltd,17/03/2011,Z6008,Expense AP Accrual,Bolton MBC Balance Sheet,Bolton MBC Balance Sheet,"2,386.13"
2083486,Bickford Truck Hire Ltd,17/02/2011,33201,Transport Hire,Environmental Services,Transport Support Service,770.00
2086673,Bickford Truck Hire Ltd,03/03/2011,33201,Transport Hire,Environmental Services,Transport Support Service,770.00
2102478,Bickford Truck Hire Ltd,17/03/2011,33201,Transport Hire,Environmental Services,Transport Support Service,770.00
2089866,Birkdale Design Ltd,14/02/2011,40150,Office Furniture Purchase,Housing Revenue Account,Furnished Tenancies,745.00
2089881,Birkdale Design Ltd,14/02/2011,40150,Office Furniture Purchase,Housing Revenue Account,Furnished Tenancies,937.00
2089892,Birkdale Design Ltd,14/02/2011,40150,Office Furniture Purchase,Housing Revenue Account,Furnished Tenancies,745.00
2089905,Birkdale Design Ltd,17/02/2011,40150,Office Furniture Purchase,Housing Revenue Account,Furnished Tenancies,937.00
2089668,Birkdale Design Ltd,14/02/2011,40150,Office Furniture Purchase,Housing Revenue Account,Furnished Tenancies,700.00
2089707,Birkdale Design Ltd,14/02/2011,40150,Office Furniture Purchase,Housing Revenue Account,Furnished Tenancies,826.00
2089712,Birkdale Design Ltd,14/02/2011,40150,Office Furniture Purchase,Housing Revenue Account,Furnished Tenancies,745.00
2089717,Birkdale Design Ltd,14/02/2011,40150,Office Furniture Purchase,Housing Revenue Account,Furnished Tenancies,745.00
2089725,Birkdale Design Ltd,14/02/2011,40150,Office Furniture Purchase,Housing Revenue Account,Furnished Tenancies,745.00
2089733,Birkdale Design Ltd,14/02/2011,40150,Office Furniture Purchase,Housing Revenue Account,Furnished Tenancies,826.00
2089842,Birkdale Design Ltd,14/02/2011,40150,Office Furniture Purchase,Housing Revenue Account,Furnished Tenancies,745.00
2089850,Birkdale Design Ltd,14/02/2011,40150,Office Furniture Purchase,Housing Revenue Account,Furnished Tenancies,745.00
2100380,Birtenshaw Hall (Childrens Charitable Trust),21/02/2011,52000,Vol Assoc Grants  General,Children's Services,Disability Serv External Provision,"5,645.53"
2091914,Birtenshaw Hall (Childrens Charitable Trust),14/02/2011,52000,Vol Assoc Grants  General,Children's Services,Disability Serv External Provision,"5,251.86"
2091917,Birtenshaw Hall (Childrens Charitable Trust),14/02/2011,52000,Vol Assoc Grants  General,Children's Services,Disability Serv External Provision,"13,043.40"
2083642,Blackrod House,08/02/2011,54301,Residential Provision,Adult Services,OA  External Provision Residential,640.08
2083643,Blackrod House,08/02/2011,54301,Residential Provision,Adult Services,OA  External Provision Residential,"24,392.72"
2087582,Blakeley Tonge & Partner Ltd,14/02/2011,Z1051,Work in Progress Additions,Housing GRF,Capital  General Fund,"25,218.06"
2105935,Blakeley Tonge & Partner Ltd,03/03/2011,Z1051,Work in Progress Additions,Housing GRF,Capital  General Fund,"58,570.36"
2091039,BNP Paribas Lease Group (Rentals),14/02/2011,40143,Office Equipment Leased Rental,Central Services,Printing Services,"5,982.50"
2081195,BNP Paribas Lease Group (Rentals),03/02/2011,43030,Photocopying Lease/Maintenance,Chief Executives Department,MFD Project,"1,958.00"
2084528,Bolmoor Industries Ltd,07/02/2011,42001,Uniforms,Adult Services,OA  Winifred Kettle  Residential,"2,026.50"
2103544,Bolton Carpet Warehouse,24/02/2011,40150,Office Furniture Purchase,Housing Revenue Account,Furnished Tenancies,598.28
2103545,Bolton Carpet Warehouse,24/02/2011,40150,Office Furniture Purchase,Housing Revenue Account,Furnished Tenancies,598.28
2103555,Bolton Carpet Warehouse,24/02/2011,40150,Office Furniture Purchase,Housing Revenue Account,Furnished Tenancies,673.79
2103558,Bolton Carpet Warehouse,24/02/2011,40150,Office Furniture Purchase,Housing Revenue Account,Furnished Tenancies,673.79
2103563,Bolton Carpet Warehouse,24/02/2011,40150,Office Furniture Purchase,Housing Revenue Account,Furnished Tenancies,598.28
2103565,Bolton Carpet Warehouse,24/02/2011,40150,Office Furniture Purchase,Housing Revenue Account,Furnished Tenancies,598.28
2103568,Bolton Carpet Warehouse,28/02/2011,40150,Office Furniture Purchase,Housing Revenue Account,Furnished Tenancies,598.28
2103641,Bolton Carpet Warehouse,28/02/2011,40150,Office Furniture Purchase,Housing Revenue Account,Furnished Tenancies,598.28
2090486,Bolton Carpet Warehouse,24/02/2011,40150,Office Furniture Purchase,Housing Revenue Account,Furnished Tenancies,673.79
2090494,Bolton Carpet Warehouse,24/02/2011,40150,Office Furniture Purchase,Housing Revenue Account,Furnished Tenancies,673.79
2090525,Bolton Carpet Warehouse,14/02/2011,40150,Office Furniture Purchase,Housing Revenue Account,Furnished Tenancies,595.32
2081284,Bolton Carpet Warehouse,03/02/2011,40150,Office Furniture Purchase,Housing Revenue Account,Furnished Tenancies,569.79
2093777,Bolton Carpet Warehouse,03/03/2011,40150,Office Furniture Purchase,Housing Revenue Account,Furnished Tenancies,794.66
2093786,Bolton Carpet Warehouse,03/03/2011,40150,Office Furniture Purchase,Housing Revenue Account,Furnished Tenancies,794.66
2093721,Bolton Carpet Warehouse,03/03/2011,40150,Office Furniture Purchase,Housing Revenue Account,Furnished Tenancies,598.28
2093792,Bolton Carpet Warehouse,03/03/2011,40150,Office Furniture Purchase,Housing Revenue Account,Furnished Tenancies,673.79
2090849,Bolton Christmas Trees,14/02/2011,40609,Horticultural Materials,Environmental Services,Heaton Fold,"12,675.05"
2083352,Bolton Community Leisure Ltd,09/02/2011,52200,Contracted Services,Adult Services,Leisure  Overhead Account,"225,980.38"
2093628,Bolton Fundco 1 Limited,17/02/2011,Z1051,Work in Progress Additions,Development & Regen,Development & Regeneration Capital,"852,162.27"
2090817,Bolton Hindu Forum,14/02/2011,55700,Grant Funded Expenditure,Special Funding,ABG Projects,"20,489.51"
2090710,Bolton Lads & Girls Club,14/02/2011,52200,Contracted Services,Children's Services,Youth Service,"43,165.00"
2081286,Bolton Primary Care Trust#12#Bolton PCT,03/02/2011,54300,Independant Sector Placements,Adult Services,OA  External Provision Residential,"7,783.00"
2087559,Bolton Primary Care Trust#12#Bolton PCT,10/02/2011,54300,Independant Sector Placements,Adult Services,OA  External Provision Residential,"7,783.00"
2087563,Bolton Primary Care Trust#12#Bolton PCT,10/02/2011,52200,Contracted Services,Adult Services,MH Residential External Provision,"5,780.66"
2092689,Bolton Private Hire Ltd,17/02/2011,34402,Clients  Taxi Fares,Environmental Services,Social Needs Transport,"4,035.33"
2082129,Bolton Stone Restoration Ltd,07/02/2011,20100,Day To Day Maintenance,Central Corporate,Land & Property,"1,254.48"
2087521,Bolton Stone Restoration Ltd,10/02/2011,20100,Day To Day Maintenance,Central Corporate,Land & Property,746.82
2085676,Bolton Stone Restoration Ltd,10/02/2011,Z1051,Work in Progress Additions,Property Services,Property Services Balance Sheet,"5,160.95"
2093153,Bolton Stone Restoration Ltd,03/03/2011,Z1051,Work in Progress Additions,Environmental Services,Environmental Services Balance sheet,816.00
2092823,Bolton Stone Restoration Ltd,03/03/2011,Z1051,Work in Progress Additions,Environmental Services,Environmental Services Balance sheet,"7,028.00"
2084544,Bolton Tree & Landscape Services Ltd,07/02/2011,52200,Contracted Services,Environmental Services,Greenspace,500.00
2101401,Bolton Tree & Landscape Services Ltd,24/02/2011,52200,Contracted Services,Environmental Services,Greenspace,800.00
2101399,Bolton Tree & Landscape Services Ltd,24/02/2011,52200,Contracted Services,Environmental Services,Greenspace,"4,230.00"
2099488,Bolton Wall & Flooring Ltd,21/02/2011,20100,Day To Day Maintenance,Adult Services,Prop. Servs. Alderbank,567.17
2093835,Bolton WISE Ltd#eatWISE#WISEWorks#WISEtraining (14-19),17/02/2011,Z1051,Work in Progress Additions,Adult Services,Adult Services Balance Sheet,778.20
2083164,Bolton WISE Ltd#eatWISE#WISEWorks#WISEtraining (14-19),07/02/2011,Z1051,Work in Progress Additions,Adult Services,Adult Services Balance Sheet,"1,127.36"
2083167,Bolton WISE Ltd#eatWISE#WISEWorks#WISEtraining (14-19),07/02/2011,Z1051,Work in Progress Additions,Adult Services,Adult Services Balance Sheet,"1,560.59"
2102432,Bolton WISE Ltd#eatWISE#WISEWorks#WISEtraining (14-19),24/02/2011,47103,Miscellaneous Grants,Chief Executives Department,Partnerships,"1,084.71"
2102433,Bolton WISE Ltd#eatWISE#WISEWorks#WISEtraining (14-19),24/02/2011,47103,Miscellaneous Grants,Chief Executives Department,Partnerships,868.18
2084394,Bolton WISE Ltd#eatWISE#WISEWorks#WISEtraining (14-19),07/02/2011,Z1051,Work in Progress Additions,Housing Revenue Account,Capital  HRA,"7,401.17"
2086466,Bolton Young Persons Housing Scheme#BYPHS,10/02/2011,52000,Vol Assoc Grants  General,Children's Services,Res Serv Agency Placements,"2,071.43"
2086467,Bolton Young Persons Housing Scheme#BYPHS,10/02/2011,52000,Vol Assoc Grants  General,Children's Services,Res Serv Agency Placements,"3,000.00"
2086469,Bolton Young Persons Housing Scheme#BYPHS,10/02/2011,52000,Vol Assoc Grants  General,Children's Services,Res Serv Agency Placements,"1,800.00"
2084646,Bolton Young Persons Housing Scheme#BYPHS,07/02/2011,52000,Vol Assoc Grants  General,Children's Services,Res Serv Agency Placements,857.14
2093696,Bolton Young Persons Housing Scheme#BYPHS,17/02/2011,52300,Client Support Costs,Children's Services,Child Prot Leaving Care Team,554.25
2103843,Bovis Lend Lease Consulting Limited,28/02/2011,52200,Contracted Services,Property Services,Projects,"63,776.00"
2083699,Bowerswood House Retirement Home Ltd,08/02/2011,54301,Residential Provision,Adult Services,OA  External Provision Residential,"1,440.00"
2085435,BPP Professional Education Ltd,24/03/2011,19100,Training Exps Tuition Fees,Finance Department,Financial Management,"1,066.55"
2089832,Bradshaw Gass & Hope#1,14/02/2011,52200,Contracted Services,Property Services,Projects,"2,180.08"
2092068,Bridge Counselling Solutions,14/02/2011,48510,Consultancy Fees,Development & Regen,Addressing Worklessness,"1,238.44"
2092783,Bridge Counselling Solutions,24/02/2011,48510,Consultancy Fees,Development & Regen,Addressing Worklessness,"2,600.00"
2086516,Bridge Counselling Solutions,28/02/2011,48510,Consultancy Fees,Development & Regen,Coalfields,"2,680.00"
2085942,Bridge Counselling Solutions,28/02/2011,48510,Consultancy Fees,Development & Regen,Addressing Worklessness,884.60
2085945,Bridge Counselling Solutions,28/02/2011,48510,Consultancy Fees,Development & Regen,Addressing Worklessness,"2,760.00"
2085946,Bridge Counselling Solutions,28/02/2011,48510,Consultancy Fees,Development & Regen,Addressing Worklessness,"2,880.00"
2092047,Bridge Counselling Solutions,14/02/2011,48510,Consultancy Fees,Development & Regen,Addressing Worklessness,"3,240.00"
2092063,Bridge Counselling Solutions,14/02/2011,48510,Consultancy Fees,Development & Regen,Addressing Worklessness,"2,760.00"
2092691,Bridge Private Hire#Mr I Arshad,17/02/2011,34402,Clients  Taxi Fares,Environmental Services,Social Needs Transport,777.00
2101242,Bright Direction Training Limited,24/02/2011,44056,Clients Training Courses,Development & Regen,Delivering 21st Century Skills,600.00
2104579,Bright Direction Training Limited,28/02/2011,44056,Clients Training Courses,Development & Regen,Delivering 21st Century Skills,"1,050.00"
2086315,British Gas Business,10/02/2011,21100,Electricity  General,Adult Services,AD  External Recharges,"3,364.89"
2086315,British Gas Business,10/02/2011,21100,Electricity  General,Housing Revenue Account,Housing Revenue Account,"9,738.03"
2099279,British Gas Business,21/02/2011,21100,Electricity  General,Housing Revenue Account,Housing Revenue Account,"1,228.98"
2105028,British Gas Business,28/02/2011,21100,Electricity  General,Housing Revenue Account,Housing Revenue Account,"1,214.55"
2082261,British Gas Business,07/02/2011,21200,Gas  General,Housing Revenue Account,Housing Revenue Account,"3,764.89"
2086324,British Gas Business,10/02/2011,21200,Gas  General,Housing Revenue Account,Housing Revenue Account,"12,895.74"
2086324,British Gas Business,10/02/2011,21200,Gas  General,Central Corporate,Land & Property,"1,011.98"
2081296,British Gas Business,03/02/2011,21200,Gas  General,Housing Revenue Account,Housing Revenue Account,"5,942.64"
2086359,British Gas Trading Limited,10/02/2011,21200,Gas  General,Housing Revenue Account,Housing Revenue Account,579.52
2086258,Bronte Natural Spring Water Ltd#Bronte Water Coolers Limited,03/03/2011,40613,Goods for Resale,Adult Services,Civic Catering General,679.60
2083706,Brookfield Residential Care Home Ltd,08/02/2011,54301,Residential Provision,Adult Services,MH Residential External Provision,"3,663.56"
2090693,Brookvale,14/02/2011,52200,Contracted Services,Adult Services,LD Purchaser Day Services,"1,400.00"
2090696,Brookvale,14/02/2011,52200,Contracted Services,Adult Services,LD Purchaser Day Services,"1,300.00"
2083662,Brookvale,08/02/2011,54301,Residential Provision,Adult Services,LD Purchaser Residential Care,"7,000.00"
2083300,Brothers Of Charity Services,24/02/2011,52200,Contracted Services,Adult Services,LD Purchaser Domiciliary Care,"2,124.40"
2083659,Brothers Of Charity Services,08/02/2011,54302,Nursing Provision,Adult Services,LD Purchaser Residential Care,"3,617.20"
2083298,Brothers Of Charity Services,24/02/2011,52200,Contracted Services,Adult Services,LD Purchaser Domiciliary Care,937.44
2083298,Brothers Of Charity Services,24/02/2011,52200,Contracted Services,Adult Services,LD Purchaser Day Services,801.16
2105061,Brothers Of Charity Services,17/03/2011,52200,Contracted Services,Adult Services,LD Purchaser Domiciliary Care,"2,124.40"
2083624,Browfield Residential Care Home,08/02/2011,54301,Residential Provision,Adult Services,MH Residential External Provision,"4,663.48"
2095645,Broxap Limited,15/03/2011,40601,General Materials,Environmental Services,Greenspace,719.00
2090463,BT Openreach,14/02/2011,Z1051,Work in Progress Additions,Highways,Stores,"2,389.78"
2086667,Burnt Tree Group,03/03/2011,33201,Transport Hire,Environmental Services,Transport Support Service,"1,300.00"
2102474,Burnt Tree Group,15/03/2011,33201,Transport Hire,Environmental Services,Transport Support Service,608.50
2089684,Burnt Tree Group,07/03/2011,33201,Transport Hire,Environmental Services,Transport Support Service,"1,300.00"
2089755,Burnt Tree Group,07/03/2011,33201,Transport Hire,Environmental Services,Transport Support Service,"1,170.00"
2086671,Burnt Tree Group,03/03/2011,33201,Transport Hire,Environmental Services,Transport Support Service,"1,300.00"
2086670,Burnt Tree Group,03/03/2011,33201,Transport Hire,Environmental Services,Transport Support Service,"1,300.00"
2086668,Burnt Tree Group,03/03/2011,33201,Transport Hire,Environmental Services,Transport Support Service,"1,300.00"
2083460,Business IT Support Team Ltd#BIST,17/02/2011,40143,Office Equipment Leased Rental,Children's Services,Admin IT (Schools),"1,214.00"
2085690,Business Moves Group Ltd,03/03/2011,Z1051,Work in Progress Additions,Adult Services,Adult Services Balance Sheet,"11,500.00"
2093694,C & D Care Solutions Ltd#2#Barclays Bank PLC,17/02/2011,52200,Contracted Services,Adult Services,OA  Home Care Services external provision,"20,683.14"
2100408,C Horrocks & Sons Ltd,21/02/2011,40100,Operational Equipment Purchase,Adult Services,Culture Overhead,"15,000.00"
2085653,C Horrocks & Sons Ltd,10/02/2011,20300,Heating & Electrical Work,Adult Services,Albert Halls  Operations,"1,396.08"
2085655,C Horrocks & Sons Ltd,10/02/2011,20300,Heating & Electrical Work,Adult Services,Albert Halls  Operations,775.60
2085647,C Horrocks & Sons Ltd,10/02/2011,20100,Day To Day Maintenance,Property Services,Admin Buildings  General,930.72
2081964,C Horrocks & Sons Ltd,03/02/2011,20300,Heating & Electrical Work,Property Services,Town Hall,765.00
2093271,C Horrocks & Sons Ltd,10/03/2011,20300,Heating & Electrical Work,Environmental Services,Markets  Rent Account,"1,361.59"
2083198,C22 Media,07/02/2011,48200,Advertising General,Environmental Services,Markets  Rent Account,570.00
2083198,C22 Media,07/02/2011,48510,Consultancy Fees,Environmental Services,DMT,560.00
2082242,Canon (UK) Limited,07/02/2011,43030,Photocopying Lease/Maintenance,Adult Services,OA  Thickerford CCC Day Care,"1,569.02"
2092158,Canon (UK) Limited,14/02/2011,43030,Photocopying Lease/Maintenance,Chief Executives Department,MFD Project,692.69
2091880,Capita Business Services Ltd,14/02/2011,45431,Computer Software Licences,Finance Department,NonDomestic Rating,"5,750.00"
2087208,Capita Business Services Ltd,07/03/2011,45431,Computer Software Licences,Finance Department,T&B Systems Project Team,"12,000.00"
2086327,Capita Software Services,03/03/2011,45405,Computer Consumables,Finance Department,T&B Systems Project Team,"10,000.00"
2086357,Capita Software Services,03/03/2011,45405,Computer Consumables,Finance Department,T&B Systems Project Team,650.00
2082137,Care Quality Commission#CQC,21/02/2011,48509,Other Fees,Adult Services,AD Adult Placements,"1,987.00"
2083671,Care Stanley Grange,08/02/2011,54301,Residential Provision,Adult Services,LD Purchaser Residential Care,"3,640.64"
2091108,Care Today Childrens Service,07/03/2011,52000,Vol Assoc Grants  General,Children's Services,Res Serv Agency Placements,"11,875.48"
2093681,Care UK Homecare#Care UK (Bolton),17/02/2011,52200,Contracted Services,Adult Services,OA  Home Care Services external provision,"90,176.03"
2105164,Carewatch (Bolton),28/02/2011,52200,Contracted Services,Adult Services,MH Residential External Provision,"1,018.43"
2093736,Carewatch (Bolton),17/02/2011,52200,Contracted Services,Adult Services,OA  Home Care Services external provision,"95,570.23"
2093735,Carewatch (Bolton),17/02/2011,52200,Contracted Services,Adult Services,OA  Home Care Services external provision,650.71
2105169,Caring Alternatives Limited,28/02/2011,52200,Contracted Services,Adult Services,MH Residential External Provision,"1,847.48"
2101198,Caring Alternatives Limited,24/02/2011,52200,Contracted Services,Adult Services,MH Residential External Provision,"1,861.44"
2086630,Carriages Funeral Services Ltd,03/03/2011,48555,Coroners Body Conveyancing Fees,Central Corporate,Coroners,"1,769.60"
2102372,Castle Hill Management Committee,24/02/2011,Z1051,Work in Progress Additions,Housing Revenue Account,Capital  HRA,"2,200.00"
2102374,Castle Hill Management Committee,24/02/2011,Z1051,Work in Progress Additions,Housing Revenue Account,Capital  HRA,"5,000.00"
2104323,Caterepair Ltd,10/03/2011,40100,Operational Equipment Purchase,Adult Services,OA  Community Meals,"1,141.35"
2085791,CB Building And Joinery Ltd,10/02/2011,44051,Clients Aids & Adaptations,Adult Services,AD ICES,650.00
2085909,CB Building And Joinery Ltd,10/02/2011,44051,Clients Aids & Adaptations,Adult Services,AD ICES,900.00
2086510,CB Building And Joinery Ltd,10/02/2011,44051,Clients Aids & Adaptations,Adult Services,ASC External Funded Schemes,745.00
2081924,CB Building And Joinery Ltd,03/02/2011,44051,Clients Aids & Adaptations,Adult Services,ASC External Funded Schemes,645.00
2081797,Cefndy Healthcare#Cefndy Enterprises,14/02/2011,44051,Clients Aids & Adaptations,Adult Services,AD ICES,762.00
2101197,CEMEX UK Materials Ltd,03/03/2011,Z6008,Expense AP Accrual,Bolton MBC Balance Sheet,Bolton MBC Balance Sheet,661.14
2092695,Central Cars & Buses,17/02/2011,34402,Clients  Taxi Fares,Environmental Services,Social Needs Transport,"1,932.30"
2086435,Chassis & Cab Specialists,28/02/2011,52200,Contracted Services,Environmental Services,Transport Support Service,540.00
2093772,Chassis & Cab Specialists,07/03/2011,52200,Contracted Services,Environmental Services,Transport Support Service,"1,384.00"
2086437,Chassis & Cab Specialists,03/03/2011,52200,Contracted Services,Environmental Services,Transport Support Service,"3,994.00"
2105076,Chassis & Cab Specialists,15/03/2011,52200,Contracted Services,Environmental Services,Transport Support Service,"1,306.00"
2083626,Chataway Nursing Home,08/02/2011,54302,Nursing Provision,Adult Services,MH Residential External Provision,"2,142.16"
2083683,Cherry Hinton Nursing Home,08/02/2011,54302,Nursing Provision,Adult Services,OA  External Provision Residential,"1,896.00"
2101384,Cheshire Centre for Independant Living,24/02/2011,53000,Private Contracted Services,Adult Services,AD Direct Payments Team,"6,711.25"
2091469,Child Action Northwest,07/03/2011,52000,Vol Assoc Grants  General,Children's Services,Res Serv Agency Placements,"3,423.33"
2091476,Child Action Northwest,07/03/2011,52000,Vol Assoc Grants  General,Children's Services,Res Serv Agency Placements,"3,799.67"
2091480,Child Action Northwest,07/03/2011,52000,Vol Assoc Grants  General,Children's Services,Res Serv Agency Placements,"2,760.75"
2091483,Child Action Northwest,07/03/2011,52000,Vol Assoc Grants  General,Children's Services,Res Serv Agency Placements,"3,064.25"
2091488,Child Action Northwest,07/03/2011,52000,Vol Assoc Grants  General,Children's Services,Res Serv Agency Placements,"3,100.00"
2091494,Child Action Northwest,07/03/2011,52000,Vol Assoc Grants  General,Children's Services,Res Serv Agency Placements,"3,100.00"
2091503,Child Action Northwest,07/03/2011,52000,Vol Assoc Grants  General,Children's Services,Res Serv Agency Placements,"3,542.99"
2100374,Choices Home for Children Ltd,15/03/2011,52000,Vol Assoc Grants  General,Children's Services,Res Serv Agency Placements,"7,561.29"
2100376,Choices Home for Children Ltd,15/03/2011,52000,Vol Assoc Grants  General,Children's Services,Res Serv Agency Placements,"8,765.25"
2083224,Choices Youth Support Group,07/02/2011,55700,Grant Funded Expenditure,Special Funding,DR LSC/ESF CoFinancing (SF),"2,852.76"
2085393,Chubb Fire Ltd,14/02/2011,40100,Operational Equipment Purchase,Adult Services,Prop. Servs. Handyman and Gardeners Service,"1,329.86"
2103721,Chubb Fire Ltd,21/03/2011,20100,Day To Day Maintenance,Environmental Services,Depots,730.90
2095951,Ciceley Commercial,10/03/2011,31305,Vehicle Servicing,Environmental Services,Transport Support Service,784.63
2095952,Ciceley Commercial,10/03/2011,31305,Vehicle Servicing,Environmental Services,Transport Support Service,557.43
2095954,Ciceley Commercial,10/03/2011,31305,Vehicle Servicing,Environmental Services,Transport Support Service,"1,091.77"
2091991,Citrus Training Solutions Ltd,14/02/2011,19100,Training Exps Tuition Fees,Adult Services,AD  NTS Grant,"9,760.00"
2087478,Citydean Properties Ltd,07/03/2011,22001,Buildings Service Charge,Development & Regen,Addressing Worklessness,"1,852.18"
2105208,Civica UK Ltd,15/03/2011,45401,Computer Maintenance,Chief Executives Department,Regulatory Overheads,"25,757.10"
2091107,Clearer Productions,14/02/2011,48501,Artistes Fees,Adult Services,Albert Halls  Entertainments,"1,500.00"
2090845,Clicquot Utilities Ltd,14/02/2011,52200,Contracted Services,Finance Department,Housing Benefits,849.00
2104511,Clicquot Utilities Ltd,28/02/2011,52200,Contracted Services,Finance Department,Housing Benefits,678.00
2085533,Clicquot Utilities Ltd,10/02/2011,52200,Contracted Services,Finance Department,Housing Benefits,762.00
2099320,Clicquot Utilities Ltd,21/02/2011,52200,Contracted Services,Finance Department,Housing Benefits,639.00
2087783,CMB Engineering,14/02/2011,Z1051,Work in Progress Additions,Housing Revenue Account,Capital  HRA,"3,406.90"
2085635,Cobbetts LLP,10/02/2011,Z1051,Work in Progress Additions,Housing Revenue Account,Capital  HRA,"6,855.30"
2083408,Cobbetts LLP,10/02/2011,48509,Other Fees,Adult Services,Libraries Ext. Funded Projects,"1,500.00"
2091399,Cobbetts LLP,03/03/2011,48509,Other Fees,Finance Department,Council Tax,"2,772.30"
2081562,Comensura Ltd,03/02/2011,53102,Agency Staff  Other,Chief Executives Department,Personnel Svs Occ Health Unit,"1,349.10"
2081562,Comensura Ltd,03/02/2011,53102,Agency Staff  Other,Central Services,Infrastructure DevelopmentCVS,"1,045.99"
2081562,Comensura Ltd,03/02/2011,53102,Agency Staff  Other,Children's Services,YOT  Fieldwork Team,933.80
2081562,Comensura Ltd,03/02/2011,53102,Agency Staff  Other,Children's Services,Business Support  Children Social Care,"1,397.65"
2081562,Comensura Ltd,03/02/2011,53102,Agency Staff  Other,Children's Services,Safeguarding Team South,948.29
2081562,Comensura Ltd,03/02/2011,53102,Agency Staff  Other,Environmental Services,Waste,"9,373.70"
2081562,Comensura Ltd,03/02/2011,53102,Agency Staff  Other,Environmental Services,Pest Control,"1,691.64"
2081562,Comensura Ltd,03/02/2011,53102,Agency Staff  Other,Environmental Services,Transport Support Service,714.49
2081562,Comensura Ltd,03/02/2011,53102,Agency Staff  Other,Development & Regen,Addressing Worklessness,976.80
2081562,Comensura Ltd,03/02/2011,53102,Agency Staff  Other,Finance Department,Oracle Support Team,"1,401.05"
2081562,Comensura Ltd,03/02/2011,53102,Agency Staff  Other,Finance Department,C.R.M. Operations,"4,604.34"
2081562,Comensura Ltd,03/02/2011,53102,Agency Staff  Other,Adult Services,AD Performance Mgmnt,745.51
2081562,Comensura Ltd,03/02/2011,53102,Agency Staff  Other,Adult Services,OA  Alderbank  Residential,"1,323.53"
2081562,Comensura Ltd,03/02/2011,53102,Agency Staff  Other,Adult Services,OA Fieldwork Hospital Team,860.27
2081562,Comensura Ltd,03/02/2011,53102,Agency Staff  Other,Property Services,Operational Facilities Management,966.76
2081562,Comensura Ltd,03/02/2011,53102,Agency Staff  Other,Property Services,Projects,"2,022.04"
2093324,Comensura Ltd,17/02/2011,53102,Agency Staff  Other,Chief Executives Department,Personnel Svs Occ Health Unit,"1,349.10"
2093324,Comensura Ltd,17/02/2011,53102,Agency Staff  Other,Children's Services,YOT  Fieldwork Team,933.80
2093324,Comensura Ltd,17/02/2011,53102,Agency Staff  Other,Children's Services,Business Support  Children Social Care,"1,471.15"
2093324,Comensura Ltd,17/02/2011,53102,Agency Staff  Other,Children's Services,Safeguarding Team South,948.29
2093324,Comensura Ltd,17/02/2011,53102,Agency Staff  Other,Children's Services,LAC Team South,939.80
2093324,Comensura Ltd,17/02/2011,53102,Agency Staff  Other,Environmental Services,Waste,"10,810.73"
2093324,Comensura Ltd,17/02/2011,53102,Agency Staff  Other,Environmental Services,Pest Control,563.88
2093324,Comensura Ltd,17/02/2011,53102,Agency Staff  Other,Environmental Services,Bereavement Services,661.90
2093324,Comensura Ltd,17/02/2011,53102,Agency Staff  Other,Environmental Services,Transport Support Service,750.82
2093324,Comensura Ltd,17/02/2011,53102,Agency Staff  Other,Environmental Services,Markets  Rent Account,619.12
2093324,Comensura Ltd,17/02/2011,53102,Agency Staff  Other,Finance Department,Oracle Support Team,"1,401.05"
2093324,Comensura Ltd,17/02/2011,53102,Agency Staff  Other,Finance Department,C.R.M. Operations,"3,809.19"
2093324,Comensura Ltd,17/02/2011,53102,Agency Staff  Other,Adult Services,AD Performance Mgmnt,698.26
2093324,Comensura Ltd,17/02/2011,53102,Agency Staff  Other,Adult Services,OA  Alderbank  Residential,834.22
2093324,Comensura Ltd,17/02/2011,53102,Agency Staff  Other,Adult Services,OA  Darley Court Intermediate Care,"1,049.10"
2093324,Comensura Ltd,17/02/2011,53102,Agency Staff  Other,Adult Services,OA Fieldwork Hospital Team,860.27
2093324,Comensura Ltd,17/02/2011,53102,Agency Staff  Other,Housing GRF,Strategic Housing,624.19
2093324,Comensura Ltd,17/02/2011,53102,Agency Staff  Other,Property Services,Operational Facilities Management,"1,227.13"
2093324,Comensura Ltd,17/02/2011,53102,Agency Staff  Other,Property Services,Projects,"1,780.76"
2093324,Comensura Ltd,17/02/2011,53102,Agency Staff  Other,Legal Trading,Legal Services Trading Account,816.75
2102507,Comensura Ltd,24/02/2011,53102,Agency Staff  Other,Chief Executives Department,Personnel Svs Occ Health Unit,"1,337.55"
2102507,Comensura Ltd,24/02/2011,53102,Agency Staff  Other,Children's Services,YOT  Fieldwork Team,933.80
2102507,Comensura Ltd,24/02/2011,53102,Agency Staff  Other,Children's Services,Business Support  Children Social Care,"1,287.72"
2102507,Comensura Ltd,24/02/2011,53102,Agency Staff  Other,Children's Services,Safeguarding Team South,914.64
2102507,Comensura Ltd,24/02/2011,53102,Agency Staff  Other,Children's Services,LAC Team South,939.80
2102507,Comensura Ltd,24/02/2011,53102,Agency Staff  Other,Environmental Services,Waste,"5,694.14"
2102507,Comensura Ltd,24/02/2011,53102,Agency Staff  Other,Environmental Services,Pest Control,551.00
2102507,Comensura Ltd,24/02/2011,53102,Agency Staff  Other,Environmental Services,Transport Support Service,792.55
2102507,Comensura Ltd,24/02/2011,53102,Agency Staff  Other,Environmental Services,Markets  Rent Account,962.59
2102507,Comensura Ltd,24/02/2011,53102,Agency Staff  Other,Development & Regen,Addressing Worklessness,"1,005.71"
2102507,Comensura Ltd,24/02/2011,53102,Agency Staff  Other,Finance Department,Oracle Support Team,"1,401.05"
2102507,Comensura Ltd,24/02/2011,53102,Agency Staff  Other,Finance Department,C.R.M. Operations,"3,648.83"
2102507,Comensura Ltd,24/02/2011,53102,Agency Staff  Other,Adult Services,AD Performance Mgmnt,777.01
2102507,Comensura Ltd,24/02/2011,53102,Agency Staff  Other,Adult Services,OA  Alderbank  Residential,"1,556.39"
2102507,Comensura Ltd,24/02/2011,53102,Agency Staff  Other,Adult Services,OA  Darley Court Intermediate Care,865.22
2102507,Comensura Ltd,24/02/2011,53102,Agency Staff  Other,Adult Services,OA Fieldwork Hospital Team,860.27
2102507,Comensura Ltd,24/02/2011,53102,Agency Staff  Other,Property Services,Operational Facilities Management,"1,247.79"
2102507,Comensura Ltd,24/02/2011,53102,Agency Staff  Other,Property Services,Projects,"1,853.48"
2102507,Comensura Ltd,24/02/2011,53102,Agency Staff  Other,Legal Trading,Legal Services Trading Account,579.00
2086436,Comensura Ltd,10/02/2011,53102,Agency Staff  Other,Chief Executives Department,Personnel Svs Occ Health Unit,"1,349.10"
2086436,Comensura Ltd,10/02/2011,53102,Agency Staff  Other,Central Services,Civic & Admin Text & Reprographics,"1,341.08"
2086436,Comensura Ltd,10/02/2011,53102,Agency Staff  Other,Central Services,Printing Services,"1,660.79"
2086436,Comensura Ltd,10/02/2011,53102,Agency Staff  Other,Children's Services,YOT  Fieldwork Team,"1,022.36"
2086436,Comensura Ltd,10/02/2011,53102,Agency Staff  Other,Children's Services,Business Support  Children Social Care,"1,397.58"
2086436,Comensura Ltd,10/02/2011,53102,Agency Staff  Other,Children's Services,Safeguarding Team South,948.29
2086436,Comensura Ltd,10/02/2011,53102,Agency Staff  Other,Children's Services,LAC Team South,876.30
2086436,Comensura Ltd,10/02/2011,53102,Agency Staff  Other,Environmental Services,Waste,"10,743.54"
2086436,Comensura Ltd,10/02/2011,53102,Agency Staff  Other,Environmental Services,Pest Control,563.88
2086436,Comensura Ltd,10/02/2011,53102,Agency Staff  Other,Environmental Services,Bereavement Services,"1,257.61"
2086436,Comensura Ltd,10/02/2011,53102,Agency Staff  Other,Environmental Services,Transport Support Service,629.72
2086436,Comensura Ltd,10/02/2011,53102,Agency Staff  Other,Environmental Services,Markets  Rent Account,617.20
2086436,Comensura Ltd,10/02/2011,53102,Agency Staff  Other,Finance Department,Oracle Support Team,"1,401.05"
2086436,Comensura Ltd,10/02/2011,53102,Agency Staff  Other,Finance Department,C.R.M. Operations,"3,927.36"
2086436,Comensura Ltd,10/02/2011,53102,Agency Staff  Other,Adult Services,AD Performance Mgmnt,777.01
2086436,Comensura Ltd,10/02/2011,53102,Agency Staff  Other,Adult Services,OA  Alderbank  Residential,904.17
2086436,Comensura Ltd,10/02/2011,53102,Agency Staff  Other,Adult Services,OA  Darley Court Intermediate Care,508.34
2086436,Comensura Ltd,10/02/2011,53102,Agency Staff  Other,Adult Services,OA Fieldwork Hospital Team,860.27
2086436,Comensura Ltd,10/02/2011,53102,Agency Staff  Other,Property Services,Operational Facilities Management,"1,298.46"
2086436,Comensura Ltd,10/02/2011,53102,Agency Staff  Other,Property Services,Projects,"2,040.22"
2086436,Comensura Ltd,10/02/2011,53102,Agency Staff  Other,Legal Trading,Legal Services Trading Account,"1,842.28"
2094235,Commercial Services,17/02/2011,48629,Miscellaneous Expenses,Housing GRF,Benjamin Court Accommodation,"1,440.83"
2093913,Community Care Options#3,17/02/2011,52200,Contracted Services,Adult Services,PD Purcahser Domiciliary Care,989.14
2083313,Community Care Options#3,07/02/2011,52200,Contracted Services,Adult Services,LD Purchaser Residential Care,"1,105.08"
2098762,Community Care Options#3,21/02/2011,52200,Contracted Services,Adult Services,LD Purchaser Residential Care,"1,105.08"
2104650,Community Care Options#3,28/02/2011,52200,Contracted Services,Adult Services,LD Purchaser Residential Care,"120,214.58"
2084810,Community Care Options#3,07/02/2011,52200,Contracted Services,Adult Services,PD Purcahser Domiciliary Care,850.50
2100409,Community Care Options#3,21/02/2011,52200,Contracted Services,Adult Services,PD Purchaser Supported Housing,"14,607.95"
2081278,Community Care Options#3,03/02/2011,52200,Contracted Services,Adult Services,PD Purchaser Supported Housing,"14,607.95"
2084807,Community Care Options#3,07/02/2011,52200,Contracted Services,Adult Services,PD Purcahser Domiciliary Care,"1,458.00"
2084808,Community Care Options#3,07/02/2011,52200,Contracted Services,Adult Services,PD Purcahser Domiciliary Care,996.30
2081279,Community Care Options#3,03/02/2011,52200,Contracted Services,Adult Services,LD Purchaser Residential Care,"120,214.58"
2085614,Community Security (NW) Ltd,03/03/2011,Z1051,Work in Progress Additions,Housing GRF,Capital  General Fund,"2,286.38"
2087984,Comodo CA Ltd,10/03/2011,48631,Office Expenses  General,Children's Services,Admin IT (Schools),"1,124.40"
2087598,Complete Maintenance and Facilities Management,14/02/2011,26101,Contract Cleaning,Development & Regen,REDD BEC Basement O/H,773.44
2099322,Composite Mast Engineering & Technology Ltd,21/02/2011,40100,Operational Equipment Purchase,Children's Services,Technical Innovation Centre,"1,500.00"
2103514,Concept Heating,24/02/2011,Z1051,Work in Progress Additions,Housing GRF,Capital  General Fund,833.33
2103509,Concept Heating,24/02/2011,Z1051,Work in Progress Additions,Housing GRF,Capital  General Fund,833.33
2084550,Conservation Contracts North West Ltd,07/02/2011,52200,Contracted Services,Environmental Services,Greenspace,"2,168.90"
2081255,Conservation Contracts North West Ltd,03/02/2011,52200,Contracted Services,Environmental Services,Greenspace,"4,985.50"
2085402,Conservation Contracts North West Ltd,10/02/2011,52200,Contracted Services,Environmental Services,Greenspace,"1,048.55"
2082838,Copyrite Digital Systems Ltd#Copyrite Systems,21/02/2011,43032,Office Stationery,Chief Executives Department,Licensing (Client),797.35
2085880,Corlett Electrical  Engineering Company Ltd,24/02/2011,20300,Heating & Electrical Work,Housing GRF,Access & Advice Caravan Sites,"7,875.44"
2094212,Corlett Electrical  Engineering Company Ltd,15/03/2011,40107,Kitchen Equipment,Housing GRF,Access & Advice Caravan Sites,520.00
2103917,Corlett Electrical  Engineering Company Ltd,15/03/2011,52208,Contracted Services PAT Testing,Property Services,Asset Mngmnt Div Proc & Projects,"6,400.56"
2083660,Cornerstone Trust,08/02/2011,54301,Residential Provision,Adult Services,LD Purchaser Residential Care,"34,297.76"
2104484,Cornerstone Trust,28/02/2011,52200,Contracted Services,Adult Services,LD Purchaser Supported Housing,"9,622.52"
2101342,Cornerstone Trust,24/02/2011,52200,Contracted Services,Adult Services,LD Purchaser Supported Housing,"9,622.52"
2092822,Cornthwaite Tree Care,03/03/2011,52200,Contracted Services,Environmental Services,Greenspace,"9,844.50"
2083722,Cotebrook,08/02/2011,54301,Residential Provision,Adult Services,PD Purchaser Residential Care,"1,964.00"
2085969,Coutts Information Services Ltd,24/02/2011,40753,Book Fund Expenditure,Adult Services,Libraries  Resources,773.85
2085679,Cranleigh Design Consultants Ltd,10/02/2011,52200,Contracted Services,Property Services,Operational Facilities Management,600.00
2087561,Craven Roofing Contractors,24/02/2011,20100,Day To Day Maintenance,Central Corporate,Land & Property,780.00
2105458,Craven Roofing Contractors,21/03/2011,20100,Day To Day Maintenance,Environmental Services,Greenspace,"4,860.00"
2099201,Craven Roofing Contractors,07/03/2011,20100,Day To Day Maintenance,Environmental Services,Greenspace,"2,160.00"
2099214,Craven Roofing Contractors,07/03/2011,20100,Day To Day Maintenance,Central Corporate,Building Svs  Merehall,808.90
2090698,Creative Support Ltd#3,17/02/2011,52200,Contracted Services,Adult Services,MH Management,"7,966.75"
2094470,Creative Support Ltd#3,24/02/2011,52200,Contracted Services,Adult Services,LD Purchaser Supported Housing,"20,120.00"
2090873,Creative Support Ltd#3,14/02/2011,52200,Contracted Services,Adult Services,OA  Home Care Services external provision,"21,102.99"
2099179,Creative Support Ltd#3,21/02/2011,52200,Contracted Services,Adult Services,OA  Home Care Services external provision,"21,416.23"
2085567,Crest Environmental Ltd,10/02/2011,52200,Contracted Services,Property Services,Projects,500.00
2089915,Crest Environmental Ltd,07/03/2011,52200,Contracted Services,Property Services,Operational Facilities Management,652.00
2084969,Criminal Records Bureau#CRB,14/02/2011,19400,Disclosure Monitoring,Chief Executives Department,HR  Resourcing & Policy,"9,900.00"
2086686,Criminal Records Bureau#CRB,14/02/2011,43032,Office Stationery,Chief Executives Department,Licensing (Client),"1,548.00"
2088006,Croner CCH,10/03/2011,40701,Periodicals,Adult Services,Libraries Ext. Funded Projects,596.14
2093589,Crossroads Care Bolton#BRISC,17/02/2011,52001,Vol Sect Grants  Misc,Children's Services,Disability Serv External Provision,688.50
2093723,Crossroads Care Bolton#BRISC,17/02/2011,52200,Contracted Services,Adult Services,OA  Home Care Services external provision,"20,747.94"
2084359,D C Builders,07/02/2011,Z1051,Work in Progress Additions,Housing GRF,Capital  General Fund,652.50
2087858,D2 Digital By Design Ltd#1,03/03/2011,52200,Contracted Services,Adult Services,Drugs Action Team,"1,500.00"
2087860,D2 Digital By Design Ltd#1,03/03/2011,52200,Contracted Services,Adult Services,Drugs Action Team,"2,000.00"
2086523,D2 Digital By Design Ltd#1,03/03/2011,52200,Contracted Services,Adult Services,Drugs Action Team,"3,000.00"
2086522,D2 Digital By Design Ltd#1,03/03/2011,52200,Contracted Services,Adult Services,Drugs Action Team,"2,000.00"
2086521,D2 Digital By Design Ltd#1,03/03/2011,52200,Contracted Services,Adult Services,Drugs Action Team,"5,000.00"
2086520,D2 Digital By Design Ltd#1,03/03/2011,52200,Contracted Services,Adult Services,Drugs Action Team,"5,000.00"
2086519,D2 Digital By Design Ltd#1,03/03/2011,52200,Contracted Services,Adult Services,Drugs Action Team,"3,000.00"
2081165,Dataspace,03/02/2011,48509,Other Fees,Legal Trading,Legal Services Trading Account,"5,791.95"
2092115,Dataspace,14/02/2011,48506,Records Storage,Legal Trading,Legal Services Trading Account,693.73
2091532,Dataspace,10/03/2011,48506,Records Storage,Children's Services,Business Support  Children Social Care,708.77
2087494,Days Healthcare#Days Medical Aids Ltd#Factor Patterson Medical Ltd,24/02/2011,44051,Clients Aids & Adaptations,Adult Services,AD ICES,777.00
2103714,DBD Mechanical & Electrical Building Services,28/02/2011,Z1051,Work in Progress Additions,Housing Revenue Account,Capital  HRA,"7,135.00"
2083694,Deanwood Manor Care Home,08/02/2011,54302,Nursing Provision,Adult Services,OA  External Provision Residential,"1,332.88"
2081848,Dell Corporation Ltd,24/02/2011,45405,Computer Consumables,Chief Executives Department,Performance & Scrutiny,785.30
2108364,Dell Corporation Ltd,24/03/2011,45400,Computer Purchase,Children's Services,Admin IT (Schools),"25,600.00"
2103744,Dell Corporation Ltd,17/03/2011,45400,Computer Purchase,Children's Services,Admin IT (Schools),"6,070.00"
2103743,Dell Corporation Ltd,17/03/2011,45400,Computer Purchase,Children's Services,Admin IT (Schools),"25,600.00"
2103742,Dell Corporation Ltd,15/03/2011,45400,Computer Purchase,Children's Services,Admin IT (Schools),"11,000.00"
2082126,Dementia Support Group,03/02/2011,52200,Contracted Services,Adult Services,OA  Carers Grant,950.00
2100687,Derek Death Limited,24/02/2011,Z1051,Work in Progress Additions,Housing GRF,Capital  General Fund,"5,630.43"
2100689,Derek Death Limited,24/02/2011,Z1051,Work in Progress Additions,Housing GRF,Capital  General Fund,"4,347.83"
2104490,Derek Death Limited,21/03/2011,Z1051,Work in Progress Additions,Adult Services,Adult Services Balance Sheet,"11,016.85"
2085617,Design Surveying Partnership Ltd,10/02/2011,52200,Contracted Services,Property Services,Projects,"11,202.45"
2084752,Dick Leigh Chainsaw Specialists,28/02/2011,40601,General Materials,Environmental Services,Greenspace,"1,565.00"
2093757,DOA Studios,17/02/2011,44902,Leisure Mngmnt Charges Partnership,Adult Services,G M Projects,500.00
2093757,DOA Studios,17/02/2011,48501,Artistes Fees,Adult Services,Music Development,700.00
2083682,Dolphinlee House,08/02/2011,54301,Residential Provision,Adult Services,OA  External Provision Residential,"1,866.00"
2083205,Dorothea Restorations Ltd,07/02/2011,Z1051,Work in Progress Additions,Environmental Services,Environmental Services Balance sheet,"7,728.80"
2083698,Douglas Bank Nursing Home#Tudor Bank Ltd,08/02/2011,54302,Nursing Provision,Adult Services,OA  External Provision Residential,"1,903.40"
2083680,Dove Court Residential & Nursing Home,08/02/2011,54301,Residential Provision,Adult Services,OA  External Provision Residential,"1,462.00"
2083697,Downshaw Lodge,08/02/2011,54302,Nursing Provision,Adult Services,OA  External Provision Residential,"1,803.16"
2099436,Drs. Direct Ltd#Bibby Factors Leicester Limited,21/02/2011,53100,Agency Staff  Fulltime,Chief Executives Department,Personnel Svs Occ Health Unit,900.00
2099439,Drs. Direct Ltd#Bibby Factors Leicester Limited,21/02/2011,53100,Agency Staff  Fulltime,Chief Executives Department,Personnel Svs Occ Health Unit,900.00
2099443,Drs. Direct Ltd#Bibby Factors Leicester Limited,21/02/2011,53100,Agency Staff  Fulltime,Chief Executives Department,Personnel Svs Occ Health Unit,900.00
2099440,Drs. Direct Ltd#Bibby Factors Leicester Limited,21/02/2011,53100,Agency Staff  Fulltime,Chief Executives Department,Personnel Svs Occ Health Unit,900.00
2098708,DS Building Services UK Ltd,21/02/2011,44051,Clients Aids & Adaptations,Adult Services,AD ICES,960.00
2086502,DS Building Services UK Ltd,10/02/2011,44051,Clients Aids & Adaptations,Adult Services,ASC External Funded Schemes,980.00
2092870,DTZ Debenham Tie Leung,17/02/2011,52200,Contracted Services,Property Services,Projects,750.00
2085269,Due North Limited,15/03/2011,45431,Computer Software Licences,Finance Department,Finance Dept Procurement Team,"5,400.00"
2093508,Duggie Chapman Associates,17/02/2011,48501,Artistes Fees,Adult Services,Albert Halls  Entertainments,"28,521.41"
2092778,Durable Ltd,07/03/2011,20106,Glazing,Property Services,Annual Charge Holding Account,"2,014.31"
2092777,Durable Ltd,07/03/2011,20106,Glazing,Property Services,Annual Charge Holding Account,"1,541.89"
2092805,Durable Ltd,25/03/2011,20106,Glazing,Property Services,Annual Charge Holding Account,712.04
2099248,Durrants Ltd,03/03/2011,40700,Newspapers,Central Services,Marketing Committed Monies,754.40
2093528,Dutton Tech Consulting#Andrew Dutton,17/02/2011,53100,Agency Staff  Fulltime,Children's Services,Technical Innovation Centre,"1,192.10"
2087850,Duval Security,03/03/2011,44401,Other Security Expenses,Environmental Services,Markets  Rent Account,"1,966.40"
2087854,Duval Security,03/03/2011,44401,Other Security Expenses,Environmental Services,Markets  Rent Account,"1,978.69"
2090606,DVLA,14/02/2011,31300,Vehicle Tax,Environmental Services,Transport Support Service,"4,200.00"
2103533,Dyson Insulations Ltd,24/02/2011,Z1051,Work in Progress Additions,Housing GRF,Capital  General Fund,"1,666.67"
2103516,Dyson Insulations Ltd,28/02/2011,Z1051,Work in Progress Additions,Housing GRF,Capital  General Fund,851.06
2087807,Dyson Insulations Ltd,14/02/2011,Z1051,Work in Progress Additions,Housing GRF,Capital  General Fund,833.33
2082231,E.ON Energy#2,07/02/2011,21100,Electricity  General,Housing Revenue Account,Housing Revenue Account,794.13
2082238,E.ON Energy#2,07/02/2011,21100,Electricity  General,Adult Services,AD  External Recharges,753.34
2082238,E.ON Energy#2,07/02/2011,21100,Electricity  General,Housing Revenue Account,Housing Revenue Account,"2,118.63"
2082238,E.ON Energy#2,07/02/2011,21100,Electricity  General,Central Corporate,Land & Property,550.03
2104648,E.ON Energy#2,28/02/2011,21100,Electricity  General,Housing Revenue Account,Housing Revenue Account,"2,132.12"
2104654,E.ON Energy#2,28/02/2011,21100,Electricity  General,Adult Services,AD  External Recharges,510.80
2104654,E.ON Energy#2,28/02/2011,21100,Electricity  General,Housing Revenue Account,Housing Revenue Account,"4,524.09"
2104660,E.ON Energy#2,28/02/2011,21100,Electricity  General,Environmental Services,Mngmnt & Admin Overhead,771.65
2104660,E.ON Energy#2,28/02/2011,21100,Electricity  General,Housing Revenue Account,Housing Revenue Account,"4,519.50"
2086238,E.ON Energy#2,10/02/2011,21100,Electricity  General,Environmental Services,Mngmnt & Admin Overhead,611.18
2086238,E.ON Energy#2,10/02/2011,21100,Electricity  General,Housing Revenue Account,Housing Revenue Account,"2,237.65"
2103510,Eaga plc,24/02/2011,Z1051,Work in Progress Additions,Housing GRF,Capital  General Fund,795.34
2103722,Eccles Construction,28/02/2011,20103,Day To Day Maintenance Structural,Children's Services,Music ServMusic Service general,"2,816.00"
2105156,Ecomix Concrete Ltd,15/03/2011,Z6008,Expense AP Accrual,Bolton MBC Balance Sheet,Bolton MBC Balance Sheet,"1,223.00"
2105369,Education Support Professionals,24/03/2011,53102,Agency Staff  Other,Children's Services,Admin IT (Schools),"1,019.25"
2099899,Education Support Professionals,10/03/2011,53102,Agency Staff  Other,Children's Services,Admin IT (Schools),"1,012.50"
2102216,Education Support Professionals,17/03/2011,53102,Agency Staff  Other,Children's Services,Admin IT (Schools),958.50
2091993,Effective Training & Development Ltd,10/03/2011,19106,Corporate Training,Finance Department,Housing Benefits,572.00
2102506,Electricity North West#United Utilities Electricity Services Ltd,24/02/2011,Z1051,Work in Progress Additions,Property Services,Property Services Balance Sheet,"3,064.88"
2093371,Electricity North West#United Utilities Electricity Services Ltd,03/03/2011,Z1051,Work in Progress Additions,Highways,Stores,843.72
2100334,Elklan,17/03/2011,19100,Training Exps Tuition Fees,Children's Services,Educ Admin Training  School Crses,760.00
2083650,Ellershaw House Ltd,08/02/2011,54301,Residential Provision,Adult Services,LD Purchaser Residential Care,"9,098.36"
2095859,Emap Awards,10/03/2011,43001,Printing General,Environmental Services,DMT,"2,700.00"
2087497,EMB Consultants Ltd,10/02/2011,Z1051,Work in Progress Additions,Environmental Services,Environmental Services Balance sheet,"2,000.00"
2081214,Emo Oil Ltd#Was Shell Oil,10/02/2011,21203,Fuel Oil  General,Adult Services,Libraries  Bromley Cross,964.30
2087623,Emo Oil Ltd#Was Shell Oil,14/02/2011,Z6008,Expense AP Accrual,Bolton MBC Balance Sheet,Bolton MBC Balance Sheet,878.25
2101472,Emo Oil Ltd#Was Shell Oil,24/02/2011,Z6008,Expense AP Accrual,Bolton MBC Balance Sheet,Bolton MBC Balance Sheet,593.40
2086401,Emo Oil Ltd#Was Shell Oil,28/02/2011,20300,Heating & Electrical Work,Environmental Services,Depots,"2,173.58"
2105084,Emo Oil Ltd#Was Shell Oil,15/03/2011,20300,Heating & Electrical Work,Environmental Services,Depots,"1,356.31"
2092869,Energi Installations PLC,17/02/2011,Z1051,Work in Progress Additions,Property Services,Property Services Balance Sheet,"16,250.00"
2092867,Energi Installations PLC,17/02/2011,Z1051,Work in Progress Additions,Property Services,Property Services Balance Sheet,"18,982.00"
2085411,Enforce Technology Limited,24/02/2011,52200,Contracted Services,Finance Department,Government Connect,"13,743.40"
2102365,Engineering Service Co,24/02/2011,20405,NonScheduled Work,Property Services,Admin Buildings  General,"3,744.00"
2104542,Engineering Service Co,28/02/2011,20100,Day To Day Maintenance,Central Corporate,Pike Nook,822.59
2104547,Engineering Service Co,28/02/2011,20100,Day To Day Maintenance,Central Corporate,Moses Gate,551.58
2101237,Entertainment Trade Mgt Agencies Ltd,24/02/2011,48501,Artistes Fees,Adult Services,Albert Halls  Entertainments,"1,000.00"
2089906,Environment Agency,03/03/2011,48509,Other Fees,Property Services,CRC  Carbon Trading,"1,290.00"
2102369,Environmental Essentials,24/02/2011,20100,Day To Day Maintenance,Housing Revenue Account,HRA South,"6,430.00"
2102369,Environmental Essentials,24/02/2011,Z1051,Work in Progress Additions,Housing Revenue Account,Capital  HRA,"3,109.00"
2102364,Environmental Essentials,24/02/2011,20100,Day To Day Maintenance,Housing Revenue Account,HRA South,703.00
2102364,Environmental Essentials,24/02/2011,Z1051,Work in Progress Additions,Housing Revenue Account,Capital  HRA,"1,612.00"
2102366,Environmental Essentials,24/02/2011,20100,Day To Day Maintenance,Housing Revenue Account,HRA South,"7,302.00"
2083640,Epworth Grange,08/02/2011,54301,Residential Provision,Adult Services,OA  External Provision Residential,"1,583.56"
2093580,ETeach UK Ltd,17/02/2011,45431,Computer Software Licences,Children's Services,Admin Human Resources Unit,"18,150.00"
2081843,Euro Label Printers,24/02/2011,48203,Marketing,Central Services,Marketing  Development (J),"1,695.00"
2092700,Euro Minibuses,17/02/2011,34402,Clients  Taxi Fares,Environmental Services,Social Needs Transport,"3,239.40"
2085463,European Wellcare EDUCATION Ltd,21/02/2011,52200,Contracted Services,Adult Services,LD Purchaser Domiciliary Care,527.10
2092182,European Wellcare LIFESTYLES Ltd,14/02/2011,54301,Residential Provision,Adult Services,LD Purchaser Residential Care,"13,967.42"
2090579,European Wellcare LIFESTYLES Ltd,14/02/2011,52200,Contracted Services,Adult Services,LD Purchaser Day Services,"3,514.00"
2085233,EventsWorks Training & Security,10/02/2011,48203,Marketing,Central Services,Marketing  Development (J),779.00
2099148,Evolve Energy Ltd,21/02/2011,Z1051,Work in Progress Additions,Housing Revenue Account,Capital  HRA,"5,832.00"
2082102,F H Sherbourne Ltd,03/02/2011,20100,Day To Day Maintenance,Central Corporate,Tonge Bridge,514.61
2105374,Falon Nameplates Ltd,24/03/2011,40601,General Materials,Environmental Services,Bereavement Services,893.10
2091090,Fibrelite (North West) Ltd,14/02/2011,25105,Other Security,Environmental Services,Security Services,"6,590.00"
2105150,First Manchester Ltd & First Transforming Travel,24/03/2011,34401,Clients  Bus Fares,Children's Services,Safeguarding Team West,760.00
2100348,Fleet (Line Markers) Ltd,17/03/2011,40601,General Materials,Environmental Services,Greenspace,742.50
2086427,Fleming Technical Ltd,03/03/2011,40601,General Materials,Environmental Services,Transport Support Service,"1,304.00"
2085562,Floor Design,10/02/2011,48509,Other Fees,Housing Revenue Account,Housing Revenue Account,"1,600.00"
2093167,Fools Paradise Ltd,17/02/2011,48203,Marketing,Central Services,Marketing  Development (J),"2,370.00"
2082536,Forensics Ltd#ROAR,24/02/2011,48549,CoronersToxicology/Histology tests,Central Corporate,Coroners,"1,895.00"
2082534,Forensics Ltd#ROAR,24/02/2011,48549,CoronersToxicology/Histology tests,Central Corporate,Coroners,"2,270.00"
2091468,Forensics Ltd#ROAR,10/03/2011,48549,CoronersToxicology/Histology tests,Central Corporate,Coroners,530.00
2102093,Forensics Ltd#ROAR,17/03/2011,48549,CoronersToxicology/Histology tests,Central Corporate,Coroners,"1,110.00"
2105545,Forensics Ltd#ROAR,21/03/2011,48549,CoronersToxicology/Histology tests,Central Corporate,Coroners,510.00
2087810,Forensics Ltd#ROAR,07/03/2011,48549,CoronersToxicology/Histology tests,Central Corporate,Coroners,530.00
2091897,Foster Care Associates Ltd,03/03/2011,52000,Vol Assoc Grants  General,Children's Services,Res Serv Agency Placements,"3,370.92"
2098729,Foster Care Associates Ltd,03/03/2011,52000,Vol Assoc Grants  General,Children's Services,Res Serv Agency Placements,"4,312.10"
2092022,Foster Care Services Limited,10/03/2011,52000,Vol Assoc Grants  General,Children's Services,Res Serv Agency Placements,"3,456.12"
2082791,Foster CARES Ltd#Resource Partners SPV Limited,21/02/2011,52000,Vol Assoc Grants  General,Children's Services,Res Serv Agency Placements,770.00
2084631,Foster CARES Ltd#Resource Partners SPV Limited,24/02/2011,52000,Vol Assoc Grants  General,Children's Services,Res Serv Agency Placements,938.40
2084635,Foster CARES Ltd#Resource Partners SPV Limited,24/02/2011,52000,Vol Assoc Grants  General,Children's Services,Res Serv Agency Placements,770.00
2084638,Foster CARES Ltd#Resource Partners SPV Limited,24/02/2011,52000,Vol Assoc Grants  General,Children's Services,Res Serv Agency Placements,770.00
2082790,Foster CARES Ltd#Resource Partners SPV Limited,21/02/2011,52000,Vol Assoc Grants  General,Children's Services,Res Serv Agency Placements,770.00
2082789,Foster CARES Ltd#Resource Partners SPV Limited,21/02/2011,52000,Vol Assoc Grants  General,Children's Services,Res Serv Agency Placements,938.40
2101438,Foster CARES Ltd#Resource Partners SPV Limited,17/03/2011,52000,Vol Assoc Grants  General,Children's Services,Res Serv Agency Placements,770.00
2101439,Foster CARES Ltd#Resource Partners SPV Limited,17/03/2011,52000,Vol Assoc Grants  General,Children's Services,Res Serv Agency Placements,770.00
2092024,Foster CARES Ltd#Resource Partners SPV Limited,10/03/2011,52000,Vol Assoc Grants  General,Children's Services,Res Serv Agency Placements,770.00
2086451,Foster CARES Ltd#Resource Partners SPV Limited,03/03/2011,52000,Vol Assoc Grants  General,Children's Services,Res Serv Agency Placements,770.00
2086450,Foster CARES Ltd#Resource Partners SPV Limited,03/03/2011,52000,Vol Assoc Grants  General,Children's Services,Res Serv Agency Placements,770.00
2092025,Foster CARES Ltd#Resource Partners SPV Limited,10/03/2011,52000,Vol Assoc Grants  General,Children's Services,Res Serv Agency Placements,938.40
2086447,Foster CARES Ltd#Resource Partners SPV Limited,03/03/2011,52000,Vol Assoc Grants  General,Children's Services,Res Serv Agency Placements,938.40
2101424,Foster CARES Ltd#Resource Partners SPV Limited,17/03/2011,52000,Vol Assoc Grants  General,Children's Services,Res Serv Agency Placements,938.40
2092021,Foster CARES Ltd#Resource Partners SPV Limited,10/03/2011,52000,Vol Assoc Grants  General,Children's Services,Res Serv Agency Placements,770.00
2091898,Fostering Solutions Ltd#2,14/02/2011,52000,Vol Assoc Grants  General,Children's Services,Res Serv Agency Placements,"2,700.88"
2091879,Fostering Solutions Ltd#2,14/02/2011,52000,Vol Assoc Grants  General,Children's Services,Res Serv Agency Placements,"5,518.52"
2091903,Fostering Solutions Ltd#2,14/02/2011,52000,Vol Assoc Grants  General,Children's Services,Res Serv Agency Placements,"3,194.80"
2091902,Fostering Solutions Ltd#2,14/02/2011,52000,Vol Assoc Grants  General,Children's Services,Res Serv Agency Placements,"2,845.08"
2091899,Fostering Solutions Ltd#2,14/02/2011,52000,Vol Assoc Grants  General,Children's Services,Res Serv Agency Placements,"2,700.88"
2091900,Fostering Solutions Ltd#2,14/02/2011,52000,Vol Assoc Grants  General,Children's Services,Res Serv Agency Placements,"2,700.88"
2091901,Fostering Solutions Ltd#2,14/02/2011,52000,Vol Assoc Grants  General,Children's Services,Res Serv Agency Placements,"2,845.08"
2083595,Four Seasons Nursing Home,08/02/2011,54301,Residential Provision,Adult Services,OA  External Provision Residential,"39,380.64"
2083595,Four Seasons Nursing Home,08/02/2011,54301,Residential Provision,Adult Services,PD Purchaser Residential Care,"9,179.88"
2083595,Four Seasons Nursing Home,08/02/2011,54302,Nursing Provision,Adult Services,OA  External Provision Residential,"36,520.16"
2083595,Four Seasons Nursing Home,08/02/2011,54302,Nursing Provision,Adult Services,LD Purchaser Residential Care,"1,514.64"
2105999,Foursys Ltd,24/03/2011,40100,Operational Equipment Purchase,Children's Services,Admin IT (Schools),"6,277.00"
2101317,Fujitsu Services Limited,24/02/2011,Z1051,Work in Progress Additions,Finance Department,Finance Balance Sheet,"65,211.98"
2100370,Fujitsu Services Limited,17/03/2011,Z1051,Work in Progress Additions,Adult Services,Adult Services Balance Sheet,"4,284.60"
2094436,Fujitsu Services Limited,15/03/2011,45613,Fujitsu  Managed Service,Finance Department,FM Contract,"114,010.17"
2094440,Fujitsu Services Limited,15/03/2011,45613,Fujitsu  Managed Service,Finance Department,FM Contract,"38,003.39"
2102031,Fujitsu Services Limited,17/03/2011,45401,Computer Maintenance,Finance Department,Corporate IT Investment,"2,353.20"
2081262,G4S Cash Solutions,03/02/2011,44402,Security Cash Collection,Finance Department,CSD Cashiers,"6,570.05"
2091182,Gag Reflex Ltd,14/02/2011,48501,Artistes Fees,Adult Services,Albert Halls  Entertainments,782.00
2102502,Gardiner & Theobald LLP,24/02/2011,52200,Contracted Services,Property Services,Projects,"5,950.00"
2084419,Gateway Media Ltd,07/02/2011,48203,Marketing,Central Services,Marketing  General (N),"1,765.00"
2093280,Gibsons Joiners & Builders Ltd,17/02/2011,Z1051,Work in Progress Additions,Housing GRF,Capital  General Fund,"5,544.00"
2100698,Gibsons Joiners & Builders Ltd,24/02/2011,Z1051,Work in Progress Additions,Housing GRF,Capital  General Fund,"7,070.00"
2100699,Gibsons Joiners & Builders Ltd,24/02/2011,Z1051,Work in Progress Additions,Housing GRF,Capital  General Fund,"6,972.00"
2093358,Gibsons Joiners & Builders Ltd,17/02/2011,Z1051,Work in Progress Additions,Adult Services,Adult Services Balance Sheet,"19,925.02"
2083216,Gibsons Joiners & Builders Ltd,07/02/2011,Z1051,Work in Progress Additions,Housing GRF,Capital  General Fund,"3,747.00"
2105845,Gibsons Joiners & Builders Ltd,03/03/2011,Z1051,Work in Progress Additions,Housing GRF,Capital  General Fund,"2,373.00"
2081176,Gleeds Building Surveying,03/02/2011,48509,Other Fees,Central Corporate,Bolton Sports Village,"2,100.00"
2083596,Glenbank Care Home Ltd,08/02/2011,54301,Residential Provision,Adult Services,OA  External Provision Residential,"24,464.65"
2083596,Glenbank Care Home Ltd,08/02/2011,54301,Residential Provision,Adult Services,PD Purchaser Residential Care,"1,493.52"
2083645,Glenhomes Rest Home,08/02/2011,54301,Residential Provision,Adult Services,OA  External Provision Residential,"10,336.11"
2086475,GMPTE#Greater Manchester Passenger Transport Exec,28/02/2011,34403,Clients  Bus Passes,Children's Services,School Transport to Bus Passes,"92,872.00"
2086580,GMS Services Limited,24/02/2011,20100,Day To Day Maintenance,Environmental Services,Greenspace,500.00
2085682,GMS Services Limited,24/02/2011,20102,Health & Safety,Property Services,Annual Charge Holding Account,"2,655.00"
2085684,GMS Services Limited,24/02/2011,20102,Health & Safety,Property Services,Annual Charge Holding Account,"2,610.00"
2093695,Goldsborough Home Care,17/02/2011,52200,Contracted Services,Adult Services,OA  Home Care Services external provision,"13,955.90"
2085558,Good Companions,10/02/2011,Z1051,Work in Progress Additions,Development & Regen,Development & Regeneration Capital,"6,050.00"
2101003,Good People Services Limited,24/02/2011,48510,Consultancy Fees,Development & Regen,REDD ES Projects,"2,500.00"
2082229,Good People Services Limited,07/02/2011,44056,Clients Training Courses,Development & Regen,Addressing Worklessness,"2,750.00"
2081116,Good People Services Limited,03/02/2011,44056,Clients Training Courses,Development & Regen,Addressing Worklessness,"2,050.00"
2095884,Gordons (Bolton) Ltd#1,10/03/2011,31305,Vehicle Servicing,Environmental Services,Transport Support Service,533.68
2085831,Gordons (Bolton) Ltd#1,10/02/2011,31203,Transport MtnceModify Jobs,Environmental Services,Transport Support Service,895.00
2083597,Gorsey Clough Nursing Home Ltd,08/02/2011,54301,Residential Provision,Adult Services,OA  External Provision Residential,"1,583.56"
2083597,Gorsey Clough Nursing Home Ltd,08/02/2011,54302,Nursing Provision,Adult Services,OA  External Provision Residential,"12,668.48"
2083598,Grange Lea Residential Care Home Ltd,08/02/2011,54301,Residential Provision,Adult Services,OA  External Provision Residential,"2,186.94"
2083599,Grange Lea Residential Care Home Ltd,08/02/2011,54301,Residential Provision,Adult Services,OA  External Provision Residential,"25,951.26"
2093342,Greater Manchester Police#GMP,17/02/2011,55700,Grant Funded Expenditure,Adult Services,Community Safety Ext Funded Schemes  Projects,"5,200.00"
2093805,Greater Manchester Police#GMP,10/03/2011,55700,Grant Funded Expenditure,Adult Services,Community Safety Ext Funded Schemes  Projects,"6,600.00"
2099296,Greenbooth Construction Co Ltd,21/02/2011,Z1051,Work in Progress Additions,Highways,Stores,"1,906.96"
2099213,Greenbooth Construction Co Ltd,21/02/2011,Z1051,Work in Progress Additions,Highways,Stores,682.47
2085488,Greenlands Residential Home#Mrs A Khan & Mrs S Hussain2,08/02/2011,54301,Residential Provision,Adult Services,OA  External Provision Residential,"1,066.80"
2085514,Greenlands Residential Home#Mrs A Khan & Mrs S Hussain2,08/02/2011,54301,Residential Provision,Adult Services,OA  External Provision Residential,"21,240.00"
2092688,Gulzar Khan T/A Bolton Black Cab,17/02/2011,34402,Clients  Taxi Fares,Environmental Services,Social Needs Transport,812.25
2089829,GVA Grimley LLP,28/02/2011,52200,Contracted Services,Property Services,Business Support,"25,000.00"
2085594,GVA Grimley LLP,10/02/2011,52200,Contracted Services,Property Services,Projects,"15,000.00"
2089890,GVA Grimley LLP,28/02/2011,52200,Contracted Services,Property Services,Business Support,"25,000.00"
2092183,H W Audio Ltd T/As HW Music Megastore,14/02/2011,20300,Heating & Electrical Work,Property Services,Magistrates courts  Le Mans Crescent,880.00
2083627,Haighfield Nursing Home,08/02/2011,54302,Nursing Provision,Adult Services,OA  External Provision Residential,"1,494.08"
2083673,Half Acre Care Centre,08/02/2011,54301,Residential Provision,Adult Services,OA  External Provision Residential,"1,543.56"
2105411,Halton Container Services Ltd,21/03/2011,53000,Private Contracted Services,Environmental Services,Waste,837.40
2105412,Halton Container Services Ltd,21/03/2011,53000,Private Contracted Services,Environmental Services,Waste,"1,402.70"
2082861,Hanson Aggregates,24/02/2011,40601,General Materials,Environmental Services,Greenspace,560.25
2083688,Harbour Close,08/02/2011,54301,Residential Provision,Adult Services,PD Purchaser Residential Care,"3,877.88"
2081151,Hart Psychological Consulting,03/02/2011,48509,Other Fees,Children's Services,Management Team,542.13
2081320,Hart Psychological Consulting,03/02/2011,48509,Other Fees,Children's Services,Management Team,805.00
2105907,Hart Psychological Consulting,03/03/2011,48509,Other Fees,Children's Services,Management Team,732.92
2103520,Harwood Heating Services Ltd,24/02/2011,Z1051,Work in Progress Additions,Housing GRF,Capital  General Fund,"2,500.00"
2092701,Haslams Private Hire,17/02/2011,34402,Clients  Taxi Fares,Environmental Services,Social Needs Transport,750.00
2083700,Haylands Residential Home,08/02/2011,54301,Residential Provision,Adult Services,OA  External Provision Residential,"1,481.92"
2103840,Hayvern Construction Ltd,28/02/2011,Z1051,Work in Progress Additions,Property Services,Property Services Balance Sheet,"25,622.35"
2105582,Hayvern Electrical Limited,03/03/2011,20100,Day To Day Maintenance,Adult Services,Prop. Servs. Laburnum Lodge,605.01
2083646,Hazelbrook Christian Nursing Home,08/02/2011,54301,Residential Provision,Adult Services,OA  External Provision Residential,"7,494.12"
2083646,Hazelbrook Christian Nursing Home,08/02/2011,54302,Nursing Provision,Adult Services,OA  External Provision Residential,"2,227.02"
2099447,Healthwork Ltd,21/02/2011,53100,Agency Staff  Fulltime,Chief Executives Department,Personnel Svs Occ Health Unit,"1,100.00"
2085888,Heineken UK Limited#Pay EH54 8AG,28/02/2011,41106,Bar Stock,Adult Services,Civic Catering Town Hall Bar,738.08
2081354,Helping Hand Co (Ledbury) Ltd,07/02/2011,44051,Clients Aids & Adaptations,Adult Services,AD ICES,980.50
2083600,Henshaws Society For The Blind,08/02/2011,54301,Residential Provision,Adult Services,PD Purchaser Residential Care,"2,946.72"
2084400,Herbert T Forrest Ltd,07/02/2011,Z1051,Work in Progress Additions,Housing Revenue Account,Capital  HRA,"82,622.28"
2102488,Herbert T Forrest Ltd,24/03/2011,Z1051,Work in Progress Additions,Housing Revenue Account,Capital  HRA,"3,476.59"
2083676,Highfield Hall Care Centre,08/02/2011,54301,Residential Provision,Adult Services,OA  External Provision Residential,"3,618.00"
2083693,Highfiled House Care Home#Factor Dhillon Financila Services (UK) Ltd,08/02/2011,54301,Residential Provision,Adult Services,OA  External Provision Residential,"1,378.00"
2083625,Hillcrest,08/02/2011,54301,Residential Provision,Adult Services,OA  External Provision Residential,"1,650.36"
2086531,Hillcrest Care Ltd,03/03/2011,52200,Contracted Services,Adult Services,LD Purchaser Residential Care,"4,870.60"
2093566,Hitek Installation Limited,17/02/2011,52200,Contracted Services,Environmental Services,Greenspace,"6,250.00"
2104387,HMCS#Her Majestys Courts Services,28/02/2011,48509,Other Fees,Adult Services,Transport,"2,225.00"
2093439,HMCS#Her Majestys Courts Services,17/02/2011,48509,Other Fees,Children's Services,Management Team,"2,225.00"
2093444,HMCS#Her Majestys Courts Services,17/02/2011,48509,Other Fees,Children's Services,Management Team,"2,225.00"
2093447,HMCS#Her Majestys Courts Services,17/02/2011,48509,Other Fees,Children's Services,Management Team,"2,225.00"
2093448,HMCS#Her Majestys Courts Services,17/02/2011,48509,Other Fees,Children's Services,Management Team,"2,225.00"
2093450,HMCS#Her Majestys Courts Services,17/02/2011,48509,Other Fees,Children's Services,Management Team,"2,225.00"
2093473,HMCS#Her Majestys Courts Services,17/02/2011,48509,Other Fees,Children's Services,Management Team,"2,225.00"
2085944,HMCS#Her Majestys Courts Services,10/02/2011,48509,Other Fees,Children's Services,Management Team,700.00
2085949,HMCS#Her Majestys Courts Services,10/02/2011,48509,Other Fees,Children's Services,Management Team,"1,900.00"
2085953,HMCS#Her Majestys Courts Services,10/02/2011,48509,Other Fees,Children's Services,Management Team,"1,900.00"
2085958,HMCS#Her Majestys Courts Services,10/02/2011,48509,Other Fees,Children's Services,Management Team,"1,900.00"
2085965,HMCS#Her Majestys Courts Services,10/02/2011,48509,Other Fees,Children's Services,Management Team,"1,900.00"
2081146,HMCS#Her Majestys Courts Services,03/02/2011,48509,Other Fees,Children's Services,Management Team,700.00
2104386,HMCS#Her Majestys Courts Services,28/02/2011,48509,Other Fees,Children's Services,Management Team,"2,225.00"
2104391,HMCS#Her Majestys Courts Services,28/02/2011,48509,Other Fees,Children's Services,Management Team,"2,225.00"
2100895,HMCS#Her Majestys Courts Services,24/02/2011,48509,Other Fees,Children's Services,Management Team,700.00
2100905,HMCS#Her Majestys Courts Services,24/02/2011,48509,Other Fees,Children's Services,Management Team,950.00
2100912,HMCS#Her Majestys Courts Services,24/02/2011,48509,Other Fees,Children's Services,Management Team,700.00
2100917,HMCS#Her Majestys Courts Services,24/02/2011,48509,Other Fees,Children's Services,Management Team,700.00
2105813,HMCS#Her Majestys Courts Services,03/03/2011,48509,Other Fees,Children's Services,Management Team,"2,225.00"
2105814,HMCS#Her Majestys Courts Services,03/03/2011,48509,Other Fees,Children's Services,Management Team,"2,225.00"
2105815,HMCS#Her Majestys Courts Services,03/03/2011,48509,Other Fees,Children's Services,Management Team,"2,225.00"
2105817,HMCS#Her Majestys Courts Services,03/03/2011,48509,Other Fees,Children's Services,Management Team,"1,900.00"
2105820,HMCS#Her Majestys Courts Services,03/03/2011,48509,Other Fees,Children's Services,Management Team,"1,900.00"
2105821,HMCS#Her Majestys Courts Services,03/03/2011,48509,Other Fees,Children's Services,Management Team,700.00
2105822,HMCS#Her Majestys Courts Services,03/03/2011,48509,Other Fees,Children's Services,Management Team,700.00
2105824,HMCS#Her Majestys Courts Services,03/03/2011,48509,Other Fees,Children's Services,Management Team,700.00
2105825,HMCS#Her Majestys Courts Services,03/03/2011,48509,Other Fees,Children's Services,Management Team,700.00
2105826,HMCS#Her Majestys Courts Services,03/03/2011,48509,Other Fees,Children's Services,Management Team,700.00
2105828,HMCS#Her Majestys Courts Services,03/03/2011,48509,Other Fees,Children's Services,Management Team,700.00
2105830,HMCS#Her Majestys Courts Services,03/03/2011,48509,Other Fees,Children's Services,Management Team,"2,225.00"
2081221,Holgate House Limited,10/02/2011,54301,Residential Provision,Adult Services,Alcohol External Provision,"1,307.76"
2083605,Hollands Nursing Home,08/02/2011,54301,Residential Provision,Adult Services,OA  External Provision Residential,"7,467.60"
2083605,Hollands Nursing Home,08/02/2011,54301,Residential Provision,Adult Services,PD Purchaser Residential Care,"8,300.80"
2083605,Hollands Nursing Home,08/02/2011,54301,Residential Provision,Adult Services,MH Residential External Provision,"3,393.52"
2083605,Hollands Nursing Home,08/02/2011,54302,Nursing Provision,Adult Services,OA  External Provision Residential,"1,120.14"
2083605,Hollands Nursing Home,08/02/2011,54302,Nursing Provision,Adult Services,PD Purchaser Residential Care,"7,425.52"
2083605,Hollands Nursing Home,08/02/2011,54302,Nursing Provision,Adult Services,MH Residential External Provision,"4,887.04"
2100378,Holtwood House#Factor ARC Adventure (Bury) Ltd,10/03/2011,52000,Vol Assoc Grants  General,Children's Services,Disability Serv External Provision,"11,256.85"
2085459,Homecare 4 U # BOLTON,10/02/2011,52200,Contracted Services,Adult Services,LD Purchaser Domiciliary Care,621.28
2085458,Homecare 4 U # BOLTON,10/02/2011,52200,Contracted Services,Adult Services,LD Purchaser Domiciliary Care,852.24
2085456,Homecare 4 U # BOLTON,10/02/2011,52200,Contracted Services,Adult Services,LD Purchaser Domiciliary Care,811.37
2101165,Homecraft Rolyan#Patterson Medical Ltd,24/02/2011,44051,Clients Aids & Adaptations,Adult Services,AD ICES,"1,619.15"
2081216,Homecraft Rolyan#Patterson Medical Ltd,03/02/2011,44051,Clients Aids & Adaptations,Adult Services,AD ICES,629.08
2085516,Homelea Residential Care Home,08/02/2011,54301,Residential Provision,Adult Services,OA  External Provision Residential,"1,763.16"
2092702,Humayun Cabs#Humayun Zafar,17/02/2011,34402,Clients  Taxi Fares,Environmental Services,Social Needs Transport,"1,080.90"
2083593,Hyde  Lea,08/02/2011,54301,Residential Provision,Adult Services,OA  External Provision Residential,"10,007.04"
2084895,I J Webb & Sons Ltd#Aggregate Recycling Services Ltd,03/03/2011,40601,General Materials,Environmental Services,Greenspace,883.40
2092707,I K Cars#Iqbal Vali Kola,17/02/2011,34402,Clients  Taxi Fares,Environmental Services,Social Needs Transport,988.00
2103916,I L Sargent Decorators,28/02/2011,40100,Operational Equipment Purchase,Children's Services,Res Serv Maintenance,948.97
2092704,Ian Rowland#Sentinel,17/02/2011,34402,Clients  Taxi Fares,Environmental Services,Social Needs Transport,"1,637.80"
2093511,IDOX Software Ltd,17/02/2011,48509,Other Fees,Development & Regen,Spatial Data  from GIS,"17,454.55"
2082799,IDOX Software Ltd,28/02/2011,45401,Computer Maintenance,Development & Regen,D&R Planning Administration,"2,000.00"
2104681,Impression (Bolton) Limited#1,28/02/2011,48203,Marketing,Central Services,Marketing  Development (J),"1,255.00"
2085918,Independence Mobility Ltd,24/02/2011,44051,Clients Aids & Adaptations,Adult Services,AD ICES,803.00
2085917,Independence Mobility Ltd,24/02/2011,44051,Clients Aids & Adaptations,Adult Services,AD ICES,"1,240.00"
2092875,Info Technology Supply Limited,28/02/2011,48510,Consultancy Fees,Finance Department,Corporate IT Investment,"1,990.00"
2093291,Info Technology Supply Limited,03/03/2011,45401,Computer Maintenance,Adult Services,Libraries  E Services,651.20
2081603,Initial Washroom Solutions,14/02/2011,53000,Private Contracted Services,Environmental Services,Streets & Grounds,928.53
2099241,Inspirit Care (Bolton),21/02/2011,52200,Contracted Services,Adult Services,OA  Home Care Services external provision,"24,925.62"
2084524,Instarmac Group plc,28/02/2011,20501,Engineering Work,Environmental Services,Highway Services,"3,617.28"
2092186,Integrate (Preston & Chorley) Ltd,14/02/2011,52200,Contracted Services,Adult Services,LD Purchaser Supported Housing,"5,719.16"
2087339,Integrate (Preston & Chorley) Ltd,10/02/2011,52200,Contracted Services,Adult Services,LD Purchaser Domiciliary Care,"5,719.16"
2092185,Integrate (Preston & Chorley) Ltd,14/02/2011,52200,Contracted Services,Adult Services,LD Purchaser Supported Housing,"5,719.16"
2105809,IOSH,03/03/2011,47200,General Subscriptions,Chief Executives Department,Personnel Svs Occ Health Unit,578.00
2105196,IPB Communications Limited,21/03/2011,Z1051,Work in Progress Additions,Housing Revenue Account,Capital  HRA,"2,560.00"
2092710,Ismail Patel#Ladybridge Private Hire,17/02/2011,34402,Clients  Taxi Fares,Environmental Services,Social Needs Transport,"3,294.00"
2101445,J & L Prince Builders,24/02/2011,Z1051,Work in Progress Additions,Housing GRF,Capital  General Fund,"23,842.24"
2102079,J A Jones & Sons,17/03/2011,40609,Horticultural Materials,Environmental Services,Greenspace,"1,683.64"
2091933,J A Jones & Sons,10/03/2011,40609,Horticultural Materials,Environmental Services,Greenspace,"5,769.13"
2087885,J Dickinson & Sons (Horwich) Ltd#2,14/02/2011,33202,Plant Hire,Environmental Services,Bereavement Services,718.50
2086006,J Dickinson & Sons (Horwich) Ltd#2,10/02/2011,33202,Plant Hire,Environmental Services,Bereavement Services,675.80
2101232,J Dickinson & Sons (Horwich) Ltd#2,24/02/2011,40610,Direct Materials,Environmental Services,Highway Services,"1,817.20"
2101236,J Dickinson & Sons (Horwich) Ltd#2,24/02/2011,40610,Direct Materials,Environmental Services,Highway Services,"1,528.10"
2090590,J Dickinson & Sons (Horwich) Ltd#2,14/02/2011,40610,Direct Materials,Environmental Services,Highway Services,"1,181.40"
2099620,J Dickinson & Sons (Horwich) Ltd#2,21/02/2011,20501,Engineering Work,Environmental Services,Highway Works  Unallocated Costs,"5,074.62"
2099621,J Dickinson & Sons (Horwich) Ltd#2,21/02/2011,20501,Engineering Work,Environmental Services,Highway Works  Unallocated Costs,"1,251.12"
2095822,J Dickinson & Sons (Horwich) Ltd#2,21/02/2011,Z6008,Expense AP Accrual,Bolton MBC Balance Sheet,Bolton MBC Balance Sheet,623.70
2099572,J Dickinson & Sons (Horwich) Ltd#2,21/02/2011,Z6008,Expense AP Accrual,Bolton MBC Balance Sheet,Bolton MBC Balance Sheet,956.00
2098680,J Dickinson & Sons (Horwich) Ltd#2,21/02/2011,Z6008,Expense AP Accrual,Bolton MBC Balance Sheet,Bolton MBC Balance Sheet,623.70
2083417,J Dickinson & Sons (Horwich) Ltd#2,07/02/2011,Z6008,Expense AP Accrual,Bolton MBC Balance Sheet,Bolton MBC Balance Sheet,629.10
2091974,J Dickinson & Sons (Horwich) Ltd#2,14/02/2011,26106,Refuse Collection,Environmental Services,Markets  Rent Account,566.00
2091995,J Dickinson & Sons (Horwich) Ltd#2,14/02/2011,26106,Refuse Collection,Environmental Services,Markets  Rent Account,"5,402.30"
2083423,J Dickinson & Sons (Horwich) Ltd#2,07/02/2011,26106,Refuse Collection,Environmental Services,Markets  Rent Account,"6,273.50"
2098718,J Dickinson & Sons (Horwich) Ltd#2,21/02/2011,26106,Refuse Collection,Environmental Services,Greenspace,851.70
2098731,J Dickinson & Sons (Horwich) Ltd#2,21/02/2011,26106,Refuse Collection,Environmental Services,Greenspace,797.64
2098726,J Dickinson & Sons (Horwich) Ltd#2,21/02/2011,26106,Refuse Collection,Environmental Services,Greenspace,583.44
2104330,J Dickinson & Sons (Horwich) Ltd#2,28/02/2011,40601,General Materials,Environmental Services,Greenspace,"1,489.60"
2094296,J Dickinson & Sons (Horwich) Ltd#2,17/02/2011,53000,Private Contracted Services,Environmental Services,Streets & Grounds,916.10
2085756,J Dickinson & Sons (Horwich) Ltd#2,03/03/2011,40601,General Materials,Environmental Services,Greenspace,628.48
2103537,J G Redford Ltd,24/02/2011,Z1051,Work in Progress Additions,Housing GRF,Capital  General Fund,"11,917.25"
2104214,J G Redford Ltd,28/02/2011,Z1051,Work in Progress Additions,Housing Revenue Account,Capital  HRA,580.00
2102378,J G Redford Ltd,24/02/2011,Z1051,Work in Progress Additions,Housing GRF,Capital  General Fund,"3,120.80"
2104200,J G Redford Ltd,28/02/2011,Z1051,Work in Progress Additions,Housing Revenue Account,Capital  HRA,797.00
2093333,J G Redford Ltd,17/02/2011,Z1051,Work in Progress Additions,Housing GRF,Capital  General Fund,"4,905.63"
2098732,J Phillips & Sons Ltd#1,21/02/2011,Z1051,Work in Progress Additions,Adult Services,Adult Services Balance Sheet,"9,934.80"
2081154,J Phillips & Sons Ltd#1,03/02/2011,Z1051,Work in Progress Additions,Adult Services,Adult Services Balance Sheet,"13,924.50"
2091245,J Taylor (Electrical Contractors) Ltd,14/02/2011,20300,Heating & Electrical Work,Property Services,Le Mans Crescent  General,560.76
2083656,Jah-Jireh (Blackpool),08/02/2011,54301,Residential Provision,Adult Services,OA  External Provision Residential,"1,498.96"
2085522,Jah-Jireh (Leyland),08/02/2011,54301,Residential Provision,Adult Services,OA  External Provision Residential,"1,556.00"
2090741,Jo Hossle-Standring T/a Jorchid,14/02/2011,53100,Agency Staff  Fulltime,Chief Executives Department,Personnel Svs Occ Health Unit,"2,340.00"
2087458,John Davidson (Pipes) Ltd#1,28/02/2011,Z6008,Expense AP Accrual,Bolton MBC Balance Sheet,Bolton MBC Balance Sheet,"1,329.64"
2093785,John Davidson (Pipes) Ltd#1,15/03/2011,Z6008,Expense AP Accrual,Bolton MBC Balance Sheet,Bolton MBC Balance Sheet,770.00
2099160,John Packer Ltd,21/02/2011,40150,Office Furniture Purchase,Children's Services,Music ServInstru & Vocal Teach,"1,104.00"
2093639,Johnston Sweepers Limited,10/03/2011,52200,Contracted Services,Environmental Services,Transport Support Service,718.11
2084658,Just One Recruitment & Training Ltd,21/02/2011,52000,Vol Assoc Grants  General,Children's Services,Child Prot CAHMS Grant,"2,062.50"
2091217,Just One Recruitment & Training Ltd,14/02/2011,52000,Vol Assoc Grants  General,Children's Services,Res Serv Agency Placements,"2,461.25"
2093737,Just One Recruitment & Training Ltd,10/03/2011,52000,Vol Assoc Grants  General,Children's Services,Res Serv Agency Placements,"1,395.00"
2091942,Just One Recruitment & Training Ltd,10/03/2011,52000,Vol Assoc Grants  General,Children's Services,Res Serv Agency Placements,"1,320.00"
2086452,Just One Recruitment & Training Ltd,03/03/2011,52000,Vol Assoc Grants  General,Children's Services,Child Prot CAHMS Grant,"1,988.50"
2104610,Just One Recruitment & Training Ltd,17/03/2011,52000,Vol Assoc Grants  General,Children's Services,Child Prot CAHMS Grant,"1,657.50"
2104613,Just One Recruitment & Training Ltd,17/03/2011,52000,Vol Assoc Grants  General,Children's Services,Res Serv Agency Placements,531.00
2091941,Just One Recruitment & Training Ltd,10/03/2011,52000,Vol Assoc Grants  General,Children's Services,Res Serv Agency Placements,531.00
2093741,Just One Recruitment & Training Ltd,10/03/2011,52000,Vol Assoc Grants  General,Children's Services,Res Serv Agency Placements,531.00
2081290,Karomed Limited,17/02/2011,44051,Clients Aids & Adaptations,Adult Services,AD ICES,"29,565.00"
2084239,Kays Traffic Management Systems Ltd,21/02/2011,Z6008,Expense AP Accrual,Bolton MBC Balance Sheet,Bolton MBC Balance Sheet,"1,440.00"
2101397,Kays Traffic Management Systems Ltd,10/03/2011,40610,Direct Materials,Environmental Services,Highway Services,764.00
2101397,Kays Traffic Management Systems Ltd,10/03/2011,Z6008,Expense AP Accrual,Bolton MBC Balance Sheet,Bolton MBC Balance Sheet,"2,027.50"
2093529,Kaytek#Quality Print Services Ltd,17/02/2011,40100,Operational Equipment Purchase,Children's Services,Technical Innovation Centre,"1,300.00"
2091109,KCOM Group PLC,10/03/2011,Z1051,Work in Progress Additions,Adult Services,Adult Services Balance Sheet,537.58
2086156,KCOM Group PLC,03/03/2011,40100,Operational Equipment Purchase,Children's Services,Admin IT (Schools),"23,247.03"
2086796,Keep Britain Tidy#Prev Encams,03/03/2011,48509,Other Fees,Environmental Services,Performance and Improvement,"3,304.00"
2081132,Kelly Services (UK) Ltd,03/02/2011,53100,Agency Staff  Fulltime,Children's Services,Technical Innovation Centre,"1,035.00"
2093641,Kelly Services (UK) Ltd,17/02/2011,53100,Agency Staff  Fulltime,Children's Services,Technical Innovation Centre,"1,035.00"
2098733,Kelly Services (UK) Ltd,15/03/2011,53100,Agency Staff  Fulltime,Children's Services,Technical Innovation Centre,"1,035.00"
2089917,Kelly Services (UK) Ltd,03/03/2011,53100,Agency Staff  Fulltime,Children's Services,Technical Innovation Centre,"1,035.00"
2126151,Kenson Network Engineering Ltd,29/03/2011,40601,General Materials,Children's Services,Admin IT (Schools),"1,120.00"
2083636,Kenyon Lodge,08/02/2011,54301,Residential Provision,Adult Services,OA  External Provision Residential,"1,329.56"
2093676,Keymen Associates Ltd#Mayday,17/02/2011,52200,Contracted Services,Adult Services,OA  Home Care Services external provision,"37,456.12"
2091446,Killgerm Chemicals Ltd,10/03/2011,40605,Chemicals,Environmental Services,Pest Control,"1,506.98"
2085626,King Sturge LLP,10/02/2011,52200,Contracted Services,Property Services,Projects,"11,900.00"
2085224,Kingfisher Lighting Ltd,03/03/2011,40610,Direct Materials,Environmental Services,Lighting / Stores Billable Costs,"1,065.52"
2083648,Knightswood Residential Home,08/02/2011,54301,Residential Provision,Adult Services,OA  External Provision Residential,"17,426.56"
2103512,Kwik Plumb Maintenance Ltd,24/02/2011,Z1051,Work in Progress Additions,Housing GRF,Capital  General Fund,"1,250.00"
2083601,Ladymead Nursing Home#Factor Icon Healthcare (UK) Limited,08/02/2011,54301,Residential Provision,Adult Services,OA  External Provision Residential,"7,467.60"
2083601,Ladymead Nursing Home#Factor Icon Healthcare (UK) Limited,08/02/2011,54301,Residential Provision,Adult Services,LD Purchaser Residential Care,853.44
2083601,Ladymead Nursing Home#Factor Icon Healthcare (UK) Limited,08/02/2011,54302,Nursing Provision,Adult Services,OA  External Provision Residential,"1,934.54"
2083601,Ladymead Nursing Home#Factor Icon Healthcare (UK) Limited,08/02/2011,54302,Nursing Provision,Adult Services,LD Purchaser Residential Care,"1,493.52"
2083692,Lake View Care Home,08/02/2011,54302,Nursing Provision,Adult Services,OA  External Provision Residential,"3,732.00"
2091153,Leapfrog AVIT#Lloyds TSB Commercial Finance Limited,14/02/2011,20100,Day To Day Maintenance,Property Services,Castle Hill Training Rooms,539.00
2092711,Less Taxis / Mr L S Garsden,17/02/2011,34402,Clients  Taxi Fares,Environmental Services,Social Needs Transport,"1,598.85"
2083719,Lever Edge Care Home,08/02/2011,54301,Residential Provision,Adult Services,OA  External Provision Residential,"85,304.41"
2083719,Lever Edge Care Home,08/02/2011,54301,Residential Provision,Adult Services,PD Purchaser Residential Care,"1,514.64"
2092746,Lifetime Ceilings Ltd,10/03/2011,20100,Day To Day Maintenance,Adult Services,Libraries  School Service,"1,927.00"
2085523,Lincoln House,08/02/2011,54301,Residential Provision,Adult Services,OA  External Provision Residential,"1,750.00"
2092712,Link Cars,17/02/2011,34402,Clients  Taxi Fares,Environmental Services,Social Needs Transport,"1,867.60"
2099690,Link Contracting Services Ltd,15/03/2011,Z1051,Work in Progress Additions,Adult Services,Adult Services Balance Sheet,"10,576.49"
2083712,Little Sisters of the Poor,08/02/2011,54301,Residential Provision,Adult Services,OA  External Provision Residential,"1,629.52"
2081219,Littledale Hall Therapeutic Community,03/02/2011,54301,Residential Provision,Adult Services,Alcohol External Provision,"1,453.60"
2099207,Liverpool Wood Pellets Ltd,15/03/2011,21203,Fuel Oil  General,Housing Revenue Account,Jubilee House,741.48
2099205,Liverpool Wood Pellets Ltd,15/03/2011,21203,Fuel Oil  General,Housing Revenue Account,Jubilee House,741.48
2086478,LJL Training,03/03/2011,19100,Training Exps Tuition Fees,Adult Services,AD  NTS Grant,"1,450.00"
2101325,Local Government Information Unit,17/03/2011,47200,General Subscriptions,Central Corporate,AGMA Payments,"19,600.00"
2081872,Locksafe Window Co,03/02/2011,Z1051,Work in Progress Additions,Housing GRF,Capital  General Fund,"2,697.00"
2086408,LPW (Europe) Ltd,28/02/2011,40601,General Materials,Environmental Services,Transport Support Service,850.50
2083711,Lyndhurst,08/02/2011,54301,Residential Provision,Adult Services,OA  External Provision Residential,"1,519.00"
2083603,Lyngate Residential Home,08/02/2011,54301,Residential Provision,Adult Services,OA  External Provision Residential,"33,819.38"
2102380,M & C Bird Limited,24/02/2011,Z1051,Work in Progress Additions,Housing Revenue Account,Capital  HRA,"13,400.00"
2102387,M & C Bird Limited,24/02/2011,Z1051,Work in Progress Additions,Housing Revenue Account,Capital  HRA,"5,465.00"
2089774,M B W (UK) Limited,14/02/2011,20501,Engineering Work,Environmental Services,Highways Works Non Billable,"1,056.00"
2082589,Magna Large Print Books,24/02/2011,40753,Book Fund Expenditure,Adult Services,Libraries  Resources,582.46
2099235,Making Space#4,21/02/2011,52200,Contracted Services,Adult Services,OA  Home Care Services external provision,"4,838.14"
2090876,Making Space#4,14/02/2011,52200,Contracted Services,Adult Services,OA  Home Care Services external provision,"4,953.46"
2094558,Malcolm Nicholson & Son,21/02/2011,36200,Uninsured Losses  Vehicles,Environmental Services,Transport Support Service,"2,201.86"
2094557,Malcolm Nicholson & Son,21/02/2011,36200,Uninsured Losses  Vehicles,Environmental Services,Transport Support Service,"1,342.67"
2086350,Malcolm Nicholson & Son,10/02/2011,36200,Uninsured Losses  Vehicles,Environmental Services,Transport Support Service,"1,377.30"
2086349,Malcolm Nicholson & Son,10/02/2011,36200,Uninsured Losses  Vehicles,Environmental Services,Transport Support Service,"1,564.40"
2102362,Malrod Insulations Ltd,24/02/2011,20100,Day To Day Maintenance,Central Corporate,Land & Property,990.00
2087578,Manager Oncall Ltd,07/03/2011,48510,Consultancy Fees,Adult Services,AD Transforming Social Care,"9,025.00"
2084554,Manchester Metropolitan University,28/02/2011,19100,Training Exps Tuition Fees,Adult Services,AD  NTS Grant,"1,290.00"
2083689,Manor Care Centre,08/02/2011,54301,Residential Provision,Adult Services,OA  External Provision Residential,"1,684.00"
2083716,Mariana House,08/02/2011,54301,Residential Provision,Adult Services,OA  External Provision Residential,"1,562.16"
2100411,Mark Mangnall & Son,21/02/2011,20100,Day To Day Maintenance,Central Corporate,Unit 20/20/St Marks,"1,726.00"
2092259,Mark Mangnall & Son,14/02/2011,20100,Day To Day Maintenance,Adult Services,Community Centres  Blackrod,"1,025.46"
2098589,Marketing Manchester,07/03/2011,48205,Promoting Bolton,Development & Regen,Strategic Development,850.00
2083649,Marley Court  Nursing & Residentail Home,08/02/2011,54301,Residential Provision,Adult Services,OA  External Provision Residential,"6,224.00"
2084866,Marthall Tree Products Ltd,03/03/2011,40601,General Materials,Environmental Services,Greenspace,516.08
2084869,Marthall Tree Products Ltd,03/03/2011,40601,General Materials,Environmental Services,Greenspace,"1,397.55"
2101166,Marthall Tree Products Ltd,03/03/2011,Z6008,Expense AP Accrual,Bolton MBC Balance Sheet,Bolton MBC Balance Sheet,616.00
2084223,Marwood Group Limited,24/02/2011,33202,Plant Hire,Environmental Services,Highways Maintenance Billable Costs,"1,050.00"
2083628,Mary & Joseph House,08/02/2011,54301,Residential Provision,Adult Services,MH Residential External Provision,"5,647.08"
2100449,Mather & Stuart Generators Ltd,21/02/2011,Z6008,Expense AP Accrual,Bolton MBC Balance Sheet,Bolton MBC Balance Sheet,872.00
2100451,Mather & Stuart Generators Ltd,21/02/2011,Z6008,Expense AP Accrual,Bolton MBC Balance Sheet,Bolton MBC Balance Sheet,"1,062.81"
2101452,Mawtec Systems Limited,17/03/2011,40100,Operational Equipment Purchase,Adult Services,OA  Darley Court Intermediate Care,885.35
2085725,Maypole Coaches,10/02/2011,34405,Clients  Swimming Fares,Environmental Services,Social Needs Transport,715.50
2092117,Maypole Coaches,14/02/2011,34405,Clients  Swimming Fares,Environmental Services,Social Needs Transport,715.50
2091024,Maypole Coaches,14/02/2011,34405,Clients  Swimming Fares,Environmental Services,Social Needs Transport,715.50
2089661,MBE Joinery#Derek Adamson,14/02/2011,40601,General Materials,Environmental Services,Bereavement Services,572.70
2083658,Meadow Bank House,08/02/2011,54301,Residential Provision,Adult Services,OA  External Provision Residential,"23,152.35"
2083658,Meadow Bank House,08/02/2011,54302,Nursing Provision,Adult Services,OA  External Provision Residential,"4,543.92"
2102350,Mealey Properties Ltd t/a BM Plumbing & Tiling,24/02/2011,Z1051,Work in Progress Additions,Housing Revenue Account,Capital  HRA,"5,531.00"
2102349,Mealey Properties Ltd t/a BM Plumbing & Tiling,24/02/2011,Z1051,Work in Progress Additions,Housing Revenue Account,Capital  HRA,"4,283.00"
2102352,Mealey Properties Ltd t/a BM Plumbing & Tiling,24/02/2011,Z1051,Work in Progress Additions,Housing Revenue Account,Capital  HRA,"6,306.00"
2102353,Mealey Properties Ltd t/a BM Plumbing & Tiling,24/02/2011,Z1051,Work in Progress Additions,Housing Revenue Account,Capital  HRA,"5,063.00"
2093302,Mealey Properties Ltd t/a BM Plumbing & Tiling,17/02/2011,Z1051,Work in Progress Additions,Housing GRF,Capital  General Fund,"5,972.00"
2100681,Mealey Properties Ltd t/a BM Plumbing & Tiling,24/02/2011,Z1051,Work in Progress Additions,Housing GRF,Capital  General Fund,"2,805.00"
2092125,Mecrow Medical Services Ltd,14/02/2011,48509,Other Fees,Children's Services,Management Team,"1,086.87"
2092785,MediaCom North Ltd,17/02/2011,48203,Marketing,Central Services,Marketing  Development (J),"3,020.90"
2084863,Medway Galvanising Company Ltd,03/03/2011,40601,General Materials,Environmental Services,Greenspace,"3,734.55"
2085602,Medway Heating (Bolton)  Ltd,10/02/2011,Z1051,Work in Progress Additions,Adult Services,Adult Services Balance Sheet,"50,665.94"
2092735,Mehboob Valli Patel#SMA Cars,17/02/2011,34402,Clients  Taxi Fares,Environmental Services,Social Needs Transport,"1,170.00"
2082795,Met Office,21/02/2011,20501,Engineering Work,Environmental Services,Highway Services,"4,626.00"
2087880,MGB Plastics Ltd,03/03/2011,Z1051,Work in Progress Additions,Environmental Services,Environmental Services Balance sheet,"2,475.00"
2100662,Michael Grant T/A MRG Heating & Plumbing,21/02/2011,Z1051,Work in Progress Additions,Housing GRF,Capital  General Fund,"3,303.00"
2093296,Michael Grant T/A MRG Heating & Plumbing,17/02/2011,Z1051,Work in Progress Additions,Housing GRF,Capital  General Fund,"3,602.00"
2100684,Michael Grant T/A MRG Heating & Plumbing,24/02/2011,Z1051,Work in Progress Additions,Housing GRF,Capital  General Fund,"3,921.00"
2098655,Midequip Ltd,15/03/2011,44051,Clients Aids & Adaptations,Adult Services,AD ICES,721.28
2091925,Mile End Estates LLP,14/02/2011,22006,Rent of Storage Facilities,Adult Services,Mus. & Archives Premises,588.75
2089787,Miller Goodall Environmental Services Ltd,14/02/2011,48510,Consultancy Fees,Chief Executives Department,Pollution Control,"3,080.00"
2081549,Miller Metcalfe,03/02/2011,44054,Other Clients Services,Housing GRF,Access & Advice Home Ownership,734.40
2085767,Millercare  Ltd,10/03/2011,40111,Op Equip Furniture Maint,Adult Services,OA  Alderbank  Residential,"1,188.00"
2083666,Millview Nursing Home,08/02/2011,54301,Residential Provision,Adult Services,OA  External Provision Residential,"67,786.69"
2083666,Millview Nursing Home,08/02/2011,54301,Residential Provision,Adult Services,PD Purchaser Residential Care,"1,493.52"
2083666,Millview Nursing Home,08/02/2011,54301,Residential Provision,Adult Services,LD Purchaser Residential Care,"1,493.52"
2083666,Millview Nursing Home,08/02/2011,54302,Nursing Provision,Adult Services,OA  External Provision Residential,"50,173.20"
2083666,Millview Nursing Home,08/02/2011,54302,Nursing Provision,Adult Services,PD Purchaser Residential Care,"2,987.04"
2083172,Mint Joinery & Building Ltd,07/02/2011,Z1051,Work in Progress Additions,Housing GRF,Capital  General Fund,"5,744.64"
2093292,Mint Northwest Ltd,17/02/2011,Z1051,Work in Progress Additions,Housing GRF,Capital  General Fund,"5,029.78"
2100470,Mint Northwest Ltd,24/02/2011,Z1051,Work in Progress Additions,Housing GRF,Capital  General Fund,"3,728.00"
2093323,Mint Northwest Ltd,17/02/2011,Z1051,Work in Progress Additions,Housing GRF,Capital  General Fund,"3,925.32"
2100700,Mint Northwest Ltd,24/02/2011,Z1051,Work in Progress Additions,Housing GRF,Capital  General Fund,"5,017.10"
2100701,Mint Northwest Ltd,24/02/2011,Z1051,Work in Progress Additions,Housing GRF,Capital  General Fund,"2,817.00"
2100463,Mint Northwest Ltd,24/02/2011,Z1051,Work in Progress Additions,Housing GRF,Capital  General Fund,"2,727.40"
2104236,Mint Northwest Ltd,28/02/2011,Z1051,Work in Progress Additions,Housing Revenue Account,Capital  HRA,"3,715.65"
2093308,Mint Northwest Ltd,17/02/2011,Z1051,Work in Progress Additions,Housing GRF,Capital  General Fund,"4,367.40"
2090739,MMC Absence and Health Management Ltd,14/02/2011,53100,Agency Staff  Fulltime,Chief Executives Department,Personnel Svs Occ Health Unit,"1,260.00"
2092725,MN Khan t/a Pal Minibuses,17/02/2011,34402,Clients  Taxi Fares,Environmental Services,Social Needs Transport,"1,620.00"
2092697,Mohammad Hanif Mulla#Daubhill Mini Bus,17/02/2011,34402,Clients  Taxi Fares,Environmental Services,Social Needs Transport,"1,404.00"
2087843,Morgan Heating Engineers,14/02/2011,Z1051,Work in Progress Additions,Housing GRF,Capital  General Fund,833.33
2103522,Morgan Heating Engineers,24/02/2011,Z1051,Work in Progress Additions,Housing GRF,Capital  General Fund,"2,000.00"
2086684,Morris Quality Bakers,10/02/2011,41101,Catering ProvisionsFood,Environmental Services,Catering,577.50
2096264,Morris's of Coppull,10/03/2011,48207,Hospitality,Environmental Services,Catering,588.19
2091008,Mr A Vali T/A Rapid,14/02/2011,34402,Clients  Taxi Fares,Environmental Services,Social Needs Transport,"1,111.95"
2101117,Mr A Vali T/A Rapid,24/02/2011,34402,Clients  Taxi Fares,Environmental Services,Social Needs Transport,"1,092.15"
2092119,Mr A Vali T/A Rapid,14/02/2011,34402,Clients  Taxi Fares,Environmental Services,Social Needs Transport,"1,232.00"
2092687,Mr B Patel T/A Atlas Luxury Minibus,17/02/2011,34402,Clients  Taxi Fares,Environmental Services,Social Needs Transport,"1,764.00"
2092696,Mr Mohammed Iqbal T/A Cobra Private Hire,17/02/2011,34402,Clients  Taxi Fares,Environmental Services,Social Needs Transport,"2,784.60"
2101403,Music Unlimited,17/03/2011,48509,Other Fees,Children's Services,Music ServCurriculum Support,"1,200.00"
2092717,Nady Minibus#Mr N Q Ullah,17/02/2011,34402,Clients  Taxi Fares,Environmental Services,Social Needs Transport,"2,205.90"
2100418,NAS Services Ltd,15/03/2011,52200,Contracted Services,Adult Services,LD Purchaser Residential Care,"10,264.85"
2100388,NAS Services Ltd,15/03/2011,52200,Contracted Services,Adult Services,LD Purchaser Day Services,"3,866.14"
2105046,NAS Services Ltd,17/03/2011,52200,Contracted Services,Adult Services,MH Residential External Provision,967.20
2105044,NAS Services Ltd,17/03/2011,52200,Contracted Services,Adult Services,MH Residential External Provision,519.69
2104477,National Car Parks Ltd#NCP,28/02/2011,37100,Car Parking,Environmental Services,Highway Management,"2,280.25"
2104477,National Car Parks Ltd#NCP,28/02/2011,37100,Car Parking,Environmental Services,Highway Works  Unallocated Costs,"4,104.45"
2104477,National Car Parks Ltd#NCP,28/02/2011,37100,Car Parking,Environmental Services,Highway Regulation & Inspection,"4,104.45"
2104477,National Car Parks Ltd#NCP,28/02/2011,37100,Car Parking,Environmental Services,Insurance,777.02
2104477,National Car Parks Ltd#NCP,28/02/2011,37100,Car Parking,Environmental Services,Highways Public Rights of Way,912.10
2104477,National Car Parks Ltd#NCP,28/02/2011,37100,Car Parking,Environmental Services,Management & Overheads,"1,824.20"
2104477,National Car Parks Ltd#NCP,28/02/2011,37100,Car Parking,Environmental Services,Education & Enforcement,"1,368.15"
2104477,National Car Parks Ltd#NCP,28/02/2011,37100,Car Parking,Environmental Services,Greenspace,"3,124.81"
2104477,National Car Parks Ltd#NCP,28/02/2011,37100,Car Parking,Environmental Services,Building Cleaning,912.10
2104477,National Car Parks Ltd#NCP,28/02/2011,37100,Car Parking,Environmental Services,Catering,"5,472.60"
2104477,National Car Parks Ltd#NCP,28/02/2011,37100,Car Parking,Environmental Services,Social Needs Transport,912.10
2100462,National Car Parks Ltd#NCP,21/02/2011,37100,Car Parking,Children's Services,Child Prot Leaving Care Team,"8,212.50"
2102471,National Grid,24/02/2011,Z1051,Work in Progress Additions,Housing GRF,Capital  General Fund,"3,685.00"
2105802,National Grid,03/03/2011,Z1051,Work in Progress Additions,Housing Revenue Account,Capital  HRA,518.00
2105533,NCC Services Ltd,21/03/2011,45407,Computer Peripherals,Adult Services,AD  IT,795.00
2085037,Network Rail#2,03/03/2011,Z1051,Work in Progress Additions,Highways,Stores,"1,768.62"
2106000,New Liberty Ltd,24/03/2011,53102,Agency Staff  Other,Children's Services,Admin IT (Schools),"3,032.00"
2081728,New Liberty Ltd,03/03/2011,53102,Agency Staff  Other,Children's Services,Admin IT (Schools),"2,922.56"
2091946,New Start Childcare,10/03/2011,52000,Vol Assoc Grants  General,Children's Services,Child Prot CAHMS Grant,"18,000.00"
2093634,Newcastle Drum Centre,31/03/2011,40150,Office Furniture Purchase,Children's Services,Music ServInstru & Vocal Teach,781.65
2105200,Newgate (Newark) Ltd,21/03/2011,20100,Day To Day Maintenance,Environmental Services,Depots,756.00
2099294,Newsquest (North West) Ltd,28/02/2011,48200,Advertising General,Environmental Services,Highway Management,764.30
2091424,Newsquest (North West) Ltd,14/02/2011,Z1051,Work in Progress Additions,Housing Revenue Account,Capital  HRA,"1,492.00"
2092787,Newsquest (North West) Ltd,17/02/2011,48202,General Publicity,Development & Regen,Development Management,622.40
2087119,Newsquest (North West) Ltd,07/03/2011,Z1051,Work in Progress Additions,Housing Revenue Account,Capital  HRA,"1,492.00"
2087117,Newsquest (North West) Ltd,07/03/2011,48202,General Publicity,Development & Regen,Development Management,511.60
2105368,NKG Solutions Limited,21/03/2011,53102,Agency Staff  Other,Children's Services,Admin IT (Schools),"4,390.75"
2091997,NMEG t/a Bolton Enterprise Centre,14/02/2011,22006,Rent of Storage Facilities,Adult Services,Mus. & Archives Premises,"2,960.96"
2092006,NMEG t/a Bolton Enterprise Centre,14/02/2011,22006,Rent of Storage Facilities,Adult Services,Mus. & Archives Premises,"2,693.89"
2087601,NMEG t/a Bolton Enterprise Centre,14/02/2011,22001,Buildings Service Charge,Development & Regen,REDD BEC Basement O/H,"1,637.74"
2082796,North Manchester Driver Training Ltd,07/02/2011,20501,Engineering Work,Environmental Services,Highway Services,"1,195.00"
2100964,North West Paper,24/02/2011,43032,Office Stationery,Central Services,Printing Services,"1,532.59"
2090982,North West Regional Youth Work Unit#NWRYWU,14/02/2011,47200,General Subscriptions,Children's Services,Youth Service,"2,980.97"
2091156,Northern Education,07/03/2011,48509,Other Fees,Children's Services,Sec Sch Imp  Intensive Supp/Intervention,"4,020.00"
2091156,Northern Education,07/03/2011,53102,Agency Staff  Other,Children's Services,Sec Sch Imp  Running Costs,"3,685.00"
2091157,Northern Education,07/03/2011,48509,Other Fees,Children's Services,Sch Imp  Strategic Partnership Funding,"4,355.00"
2091451,Northern Education,07/03/2011,53102,Agency Staff  Other,Children's Services,Sec Sch Imp  Running Costs,"1,340.00"
2091219,Northern Education,07/03/2011,48509,Other Fees,Children's Services,Sec Sch Imp  Intensive Supp/Intervention,"1,917.50"
2093675,Northern Municipal Spares Ltd,17/02/2011,31308,Other Vehicle Running Costs,Environmental Services,Streets & Grounds,552.00
2093747,NorthernCare#Resource Partners plc,10/03/2011,52000,Vol Assoc Grants  General,Children's Services,Res Serv Agency Placements,"10,150.00"
2093748,NorthernCare#Resource Partners plc,10/03/2011,52000,Vol Assoc Grants  General,Children's Services,Res Serv Agency Placements,"10,150.00"
2093745,NorthernCare#Resource Partners plc,10/03/2011,52000,Vol Assoc Grants  General,Children's Services,Res Serv Agency Placements,"10,150.00"
2093743,NorthernCare#Resource Partners plc,10/03/2011,52000,Vol Assoc Grants  General,Children's Services,Res Serv Agency Placements,"11,976.00"
2093574,Northgate Vehicle Hire (North West) Ltd,17/02/2011,33201,Transport Hire,Environmental Services,Transport Support Service,"22,226.90"
2084924,Northwest Development Agency#1,17/02/2011,48509,Other Fees,Central Corporate,City Challenge,"6,834.00"
2092720,Northwest Minibuses,17/02/2011,34402,Clients  Taxi Fares,Environmental Services,Social Needs Transport,"6,963.60"
2099448,Npower Limited,21/02/2011,21100,Electricity  General,Environmental Services,Mngmnt & Admin Overhead,"13,748.36"
2099448,Npower Limited,21/02/2011,21100,Electricity  General,Adult Services,AD  External Recharges,878.44
2099448,Npower Limited,21/02/2011,21100,Electricity  General,Housing Revenue Account,Housing Revenue Account,"1,397.69"
2099448,Npower Limited,21/02/2011,21100,Electricity  General,Property Services,Castle Hill,"7,065.00"
2099448,Npower Limited,21/02/2011,21100,Electricity  General,Property Services,Admin Buildings  General,"35,838.96"
2099448,Npower Limited,21/02/2011,21100,Electricity  General,Central Corporate,Land & Property,"1,029.12"
2105041,Npower Limited,28/02/2011,21200,Gas  General,Adult Services,AD  External Recharges,"2,024.40"
2090881,Npower Limited,14/02/2011,21100,Electricity  General,Environmental Services,Mngmnt & Admin Overhead,"9,323.47"
2090881,Npower Limited,14/02/2011,21100,Electricity  General,Adult Services,AD  External Recharges,"25,042.40"
2090881,Npower Limited,14/02/2011,21100,Electricity  General,Housing Revenue Account,Housing Revenue Account,"12,306.32"
2090881,Npower Limited,14/02/2011,21100,Electricity  General,Property Services,Admin Buildings  General,"10,947.28"
2090881,Npower Limited,14/02/2011,21100,Electricity  General,Central Corporate,Land & Property,524.64
2099452,Npower Limited,21/02/2011,21100,Electricity  General,Environmental Services,Mngmnt & Admin Overhead,"28,605.40"
2099452,Npower Limited,21/02/2011,21100,Electricity  General,Adult Services,AD  External Recharges,"1,592.26"
2099452,Npower Limited,21/02/2011,21100,Electricity  General,Housing Revenue Account,Housing Revenue Account,"3,009.88"
2099452,Npower Limited,21/02/2011,21100,Electricity  General,Property Services,Castle Hill,"14,019.50"
2099452,Npower Limited,21/02/2011,21100,Electricity  General,Property Services,Admin Buildings  General,"73,978.81"
2099452,Npower Limited,21/02/2011,21100,Electricity  General,Central Corporate,Land & Property,"1,917.46"
2099284,Npower Limited,21/02/2011,21100,Electricity  General,Housing Revenue Account,Housing Revenue Account,834.43
2099280,Npower Limited,21/02/2011,21200,Gas  General,Adult Services,AD  External Recharges,"4,155.56"
2092177,Npower Limited,14/02/2011,21100,Electricity  General,Environmental Services,Engineering Projects,"410,275.93"
2092177,Npower Limited,14/02/2011,21100,Electricity  General,Environmental Services,Parking Services  Off Street,"1,166.12"
2105034,Npower Limited,28/02/2011,21200,Gas  General,Adult Services,AD  External Recharges,"2,024.40"
2094275,Npower Limited,10/03/2011,21100,Electricity  General,Environmental Services,Parking Services  Off Street,691.00
2093864,NSL Limited#NSL Services Group,10/03/2011,44202,Contract UnitNonLEA,Environmental Services,Parking Services  On Street,"40,447.63"
2086514,NSL Limited#NSL Services Group,03/03/2011,44202,Contract UnitNonLEA,Environmental Services,Parking Services  On Street,"12,490.11"
2092722,NW United Ltd,17/02/2011,34402,Clients  Taxi Fares,Environmental Services,Social Needs Transport,"1,957.50"
2087342,Oasis Fostering Services,10/02/2011,52000,Vol Assoc Grants  General,Children's Services,Res Serv Agency Placements,"5,978.57"
2081187,Oce Finance,03/02/2011,43030,Photocopying Lease/Maintenance,Chief Executives Department,MFD Project,"1,175.89"
2092074,Olympia Travel,14/02/2011,34405,Clients  Swimming Fares,Environmental Services,Social Needs Transport,"5,021.06"
2092723,Olympic Travel#Mr Dad,17/02/2011,34402,Clients  Taxi Fares,Environmental Services,Social Needs Transport,"1,634.00"
2092724,On Time Cars#Nick Hooton,17/02/2011,34402,Clients  Taxi Fares,Environmental Services,Social Needs Transport,"1,537.29"
2104457,OnSide Education,28/02/2011,19100,Training Exps Tuition Fees,Children's Services,Educ Admin Training  Govnor Crses,540.00
2100371,Oracle Care Limited,10/03/2011,52000,Vol Assoc Grants  General,Children's Services,Res Serv Agency Placements,"21,921.42"
2083160,Orange PCS Ltd#PAY S98  1DX,07/02/2011,45252,Mobile Telephone Rental,Adult Services,AD  External Recharges,979.00
2083160,Orange PCS Ltd#PAY S98  1DX,07/02/2011,45254,Mobile Telephone Calls,Adult Services,AD  External Recharges,891.74
2086235,Orchard Furniture & Recycling Service,10/02/2011,50002,Other Agency/Contracted Services,Environmental Services,Waste,529.50
2091514,Orchard Furniture & Recycling Service,14/02/2011,50002,Other Agency/Contracted Services,Environmental Services,Waste,575.00
2092038,Orchid Cellmark Ltd,10/03/2011,48550,Coroners Forensic Post Mortems and Tests,Central Corporate,Coroners,"1,160.00"
2092940,OTS Ltd,03/03/2011,44051,Clients Aids & Adaptations,Adult Services,AD ICES,539.80
2099208,Outdoor UK Limited,21/02/2011,19100,Training Exps Tuition Fees,Children's Services,Educ Admin Training  School Crses,975.00
2099211,Outdoor UK Limited,21/02/2011,19100,Training Exps Tuition Fees,Children's Services,Educ Admin Training  School Crses,975.00
2099209,Outdoor UK Limited,21/02/2011,19100,Training Exps Tuition Fees,Children's Services,Educ Admin Training  School Crses,"1,600.00"
2093158,P J Carney & Co Ltd,03/03/2011,52200,Contracted Services,Environmental Services,Greenspace,890.00
2086253,P J Services (Bolton) Ltd,10/02/2011,Z1051,Work in Progress Additions,Housing Revenue Account,Capital  HRA,"5,407.00"
2093910,Page Nation,10/03/2011,40753,Book Fund Expenditure,Adult Services,Libraries Ext. Funded Projects,589.00
2089858,Paragon Construction Group Ltd,14/02/2011,Z1051,Work in Progress Additions,Property Services,Property Services Balance Sheet,"12,247.60"
2091520,Parallel Parents,07/03/2011,52000,Vol Assoc Grants  General,Children's Services,Res Serv Agency Placements,"3,055.67"
2091516,Parallel Parents,07/03/2011,52000,Vol Assoc Grants  General,Children's Services,Res Serv Agency Placements,"3,388.61"
2091512,Parallel Parents,07/03/2011,52000,Vol Assoc Grants  General,Children's Services,Res Serv Agency Placements,"3,388.61"
2082786,Paramount Care and Safety,21/02/2011,52000,Vol Assoc Grants  General,Children's Services,Res Serv Agency Placements,552.50
2081351,Park House Healthcare Ltd,10/02/2011,44051,Clients Aids & Adaptations,Adult Services,AD ICES,650.00
2083638,Parklands House Nursing Home,08/02/2011,54302,Nursing Provision,Adult Services,MH Residential External Provision,"13,280.32"
2083608,Parkview Nursing & Residential Home,08/02/2011,54301,Residential Provision,Adult Services,OA  External Provision Residential,"1,102.95"
2083609,Parkview Nursing & Residential Home,08/02/2011,54301,Residential Provision,Adult Services,OA  External Provision Residential,"15,326.73"
2083609,Parkview Nursing & Residential Home,08/02/2011,54302,Nursing Provision,Adult Services,OA  External Provision Residential,"1,470.60"
2083609,Parkview Nursing & Residential Home,08/02/2011,54302,Nursing Provision,Adult Services,PD Purchaser Residential Care,"1,491.72"
2083404,Paws For Kids,07/02/2011,55700,Grant Funded Expenditure,Adult Services,Community Safety Ext Funded Schemes  Projects,"7,900.00"
2105819,PC Electrical (UK) Ltd,03/03/2011,Z1051,Work in Progress Additions,Housing GRF,Capital  General Fund,"1,020.01"
2091980,Peak Fabrications (Bolton) Ltd,14/02/2011,52200,Contracted Services,Environmental Services,Greenspace,"3,800.00"
2092003,Peak Fabrications (Bolton) Ltd,14/02/2011,52200,Contracted Services,Environmental Services,Greenspace,"13,500.00"
2091986,Peak Fabrications (Bolton) Ltd,14/02/2011,52200,Contracted Services,Environmental Services,Greenspace,"1,760.00"
2091988,Peak Fabrications (Bolton) Ltd,14/02/2011,52200,Contracted Services,Environmental Services,Greenspace,"3,512.00"
2086470,Perpetual Fostering Ltd,10/02/2011,52000,Vol Assoc Grants  General,Children's Services,Res Serv Agency Placements,"3,039.96"
2092672,Pervaz Akhtar t/a Akhtar Mini Buses,17/02/2011,34402,Clients  Taxi Fares,Environmental Services,Social Needs Transport,"1,602.00"
2091106,Peter Brent Promotions,17/02/2011,48501,Artistes Fees,Adult Services,Albert Halls  Entertainments,"4,067.73"
2082592,Peters Ltd,21/02/2011,40753,Book Fund Expenditure,Adult Services,Libraries  School Service,"2,075.25"
2084478,Phoenix Futures#Phoenix House,21/02/2011,54301,Residential Provision,Adult Services,Drugs Action Team,"3,582.05"
2084481,Phoenix Futures#Phoenix House,21/02/2011,54301,Residential Provision,Adult Services,Drugs Action Team,"2,306.62"
2081644,Phoenix Futures#Phoenix House,14/02/2011,52200,Contracted Services,Adult Services,Drugs Action Team,"60,109.00"
2099713,Phoenix Futures#Phoenix House,10/03/2011,52000,Vol Assoc Grants  General,Children's Services,Res Serv Agency Placements,"3,773.14"
2099712,Phoenix Futures#Phoenix House,17/03/2011,52000,Vol Assoc Grants  General,Children's Services,Res Serv Agency Placements,"3,773.14"
2105875,Pip`s Courier Services#Mr D Brown,03/03/2011,48509,Other Fees,Children's Services,Management Team,565.00
2081300,Pitney Bowes Software Ltd,28/02/2011,45431,Computer Software Licences,Environmental Services,Greenspace,"4,469.38"
2085083,Polystar Plastics Limited,14/02/2011,26002,Other Materials,Environmental Services,Building Cleaning,"1,650.64"
2090837,Portfolio#Rothwell Company Ltd,14/02/2011,48203,Marketing,Central Services,Marketing  General (N),"4,462.00"
2090610,Post Office Ltd,14/02/2011,31300,Vehicle Tax,Environmental Services,Transport Support Service,"9,735.00"
2092821,Powercare,17/02/2011,40101,Operational Equipment Maint,Environmental Services,Building Cleaning,611.36
2105085,Powervamp Limited,17/03/2011,40101,Operational Equipment Maint,Environmental Services,Transport Support Service,873.30
2093667,Premier Care Ltd#Bolton Care Services,17/02/2011,52200,Contracted Services,Adult Services,OA  Home Care Services external provision,"40,978.52"
2092727,Premier Minibuses (NW) Ltd,17/02/2011,34402,Clients  Taxi Fares,Environmental Services,Social Needs Transport,"7,186.72"
2103521,Premier Minibuses (NW) Ltd,28/02/2011,Z1051,Work in Progress Additions,Housing Revenue Account,Capital  HRA,770.00
2081918,Premier Paper Group Limited,24/02/2011,43032,Office Stationery,Central Services,Printing Services,"1,470.00"
2098949,Pre-School Learning Alliance#Tonge Nursery#Oxford Grove,21/02/2011,54202,Family Placement (Daycare),Children's Services,Family Support Day Care,752.20
2083713,Princess Alexandra Home,08/02/2011,54301,Residential Provision,Adult Services,OA  External Provision Residential,677.30
2083714,Princess Alexandra Home,08/02/2011,54301,Residential Provision,Adult Services,OA  External Provision Residential,"1,458.80"
2098617,Prism Medical UK,10/03/2011,44051,Clients Aids & Adaptations,Adult Services,AD ICES,"2,276.50"
2103747,Probrand Limited,17/03/2011,45400,Computer Purchase,Children's Services,Admin IT (Schools),"2,304.47"
2103746,Probrand Limited,17/03/2011,45400,Computer Purchase,Children's Services,Admin IT (Schools),575.00
2113013,Probrand Limited,24/03/2011,40143,Office Equipment Leased Rental,Children's Services,Admin IT (Schools),"1,543.00"
2090161,Probrand Limited,10/03/2011,45401,Computer Maintenance,Children's Services,Admin IT (Schools),545.00
2103748,Probrand Limited,24/03/2011,45400,Computer Purchase,Children's Services,Admin IT (Schools),794.00
2098362,Probrand Limited,15/03/2011,45400,Computer Purchase,Children's Services,Admin IT (Schools),785.00
2090160,Probrand Limited,07/03/2011,45400,Computer Purchase,Children's Services,Admin IT (Schools),"4,840.71"
2103745,Probrand Limited,17/03/2011,45400,Computer Purchase,Children's Services,Admin IT (Schools),"3,720.82"
2093690,Prolog Print Media Ltd,10/03/2011,43032,Office Stationery,Finance Department,Payroll,"1,070.00"
2101455,Quadrant Security Group Ltd,17/03/2011,25105,Other Security,Environmental Services,Security Services,761.33
2085925,Quality and Innovation Company Ltd,24/02/2011,48509,Other Fees,Children's Services,School Improvement  P.E.,"1,800.00"
2111289,Quartz Finance Ltd,24/03/2011,40102,Operational Equipment Rental,Children's Services,Admin IT (Schools),"88,002.77"
2083691,Queens Park View#Intelligent Care,08/02/2011,54301,Residential Provision,Adult Services,MH Residential External Provision,"8,349.80"
2104561,R & T Shepherd Ltd#2,28/02/2011,20100,Day To Day Maintenance,Adult Services,Community Centres  Overhead A/c,724.00
2090763,R & T Shepherd Ltd#2,14/02/2011,20100,Day To Day Maintenance,Adult Services,Libraries  Farnworth,529.89
2105428,R & T Shepherd Ltd#2,03/03/2011,20100,Day To Day Maintenance,Environmental Services,Greenspace,668.87
2105429,R & T Shepherd Ltd#2,03/03/2011,20100,Day To Day Maintenance,Environmental Services,Greenspace,668.87
2092978,R & T Shepherd Ltd#2,10/03/2011,20300,Heating & Electrical Work,Environmental Services,Greenspace,674.52
2093720,R Banks & Son,10/03/2011,48555,Coroners Body Conveyancing Fees,Central Corporate,Coroners,997.00
2085449,R S Tyrers  Ltd,10/02/2011,44050,Clients Holidays,Children's Services,Music ServMusic Centre,730.00
2098633,R82 UK Ltd,03/03/2011,44051,Clients Aids & Adaptations,Adult Services,AD ICES,"1,869.00"
2092681,Rafik Patel#Alpha Luxury Travel,17/02/2011,34402,Clients  Taxi Fares,Environmental Services,Social Needs Transport,"1,607.40"
2083610,Randomlight Ltd#Heightside House,08/02/2011,54301,Residential Provision,Adult Services,MH Residential External Provision,"2,270.12"
2083610,Randomlight Ltd#Heightside House,08/02/2011,54302,Nursing Provision,Adult Services,LD Purchaser Residential Care,"2,228.04"
2083610,Randomlight Ltd#Heightside House,08/02/2011,54302,Nursing Provision,Adult Services,MH Residential External Provision,"8,848.52"
2084830,Record RSS Ltd,03/03/2011,40601,General Materials,Environmental Services,Greenspace,"32,056.25"
2105847,REDACTED - PERSONAL DATA,03/03/2011,48502,Legal Fees,Development & Regen,Project Revenue Account,500.00
2105702,REDACTED - PERSONAL DATA,03/03/2011,Z1051,Work in Progress Additions,Housing Revenue Account,Capital  HRA,"1,052.72"
2101378,REDACTED - PERSONAL DATA,24/02/2011,19100,Training Exps Tuition Fees,Development & Regen,REDD ES Apprentices,575.00
2091549,REDACTED - PERSONAL DATA,10/03/2011,48550,Coroners Forensic Post Mortems and Tests,Central Corporate,Coroners,595.90
2102464,REDACTED - PERSONAL DATA,17/03/2011,48550,Coroners Forensic Post Mortems and Tests,Central Corporate,Coroners,595.90
2105917,REDACTED - PERSONAL DATA,03/03/2011,48509,Other Fees,Children's Services,Management Team,608.40
2091547,REDACTED - PERSONAL DATA,10/03/2011,48550,Coroners Forensic Post Mortems and Tests,Central Corporate,Coroners,591.90
2105861,REDACTED - PERSONAL DATA,03/03/2011,48502,Legal Fees,Chief Executives Department,Employee RelationsEP,"13,612.99"
2101093,REDACTED - PERSONAL DATA,03/03/2011,48502,Legal Fees,Central Services,Wigan Equal Pay  Legal Services,"13,277.99"
2105844,REDACTED - PERSONAL DATA,03/03/2011,48502,Legal Fees,Children's Services,Management Team,"1,000.00"
2100988,REDACTED - PERSONAL DATA,24/02/2011,48502,Legal Fees,Chief Executives Department,Employee RelationsEP,565.00
2092719,REDACTED - PERSONAL DATA,17/02/2011,34402,Clients  Taxi Fares,Environmental Services,Social Needs Transport,"1,968.00"
2093719,REDACTED - PERSONAL DATA,17/02/2011,48509,Other Fees,Adult Services,Mus & Archives North West Hub,800.00
2092690,REDACTED - PERSONAL DATA,17/02/2011,34402,Clients  Taxi Fares,Environmental Services,Social Needs Transport,999.00
2086663,REDACTED - PERSONAL DATA,28/02/2011,48510,Consultancy Fees,Development & Regen,REDD ES Projects,750.00
2092685,REDACTED - PERSONAL DATA,17/02/2011,34402,Clients  Taxi Fares,Environmental Services,Social Needs Transport,"2,992.50"
2092661,REDACTED - PERSONAL DATA,17/02/2011,34402,Clients  Taxi Fares,Environmental Services,Social Needs Transport,"2,519.28"
2092692,REDACTED - PERSONAL DATA,17/02/2011,34402,Clients  Taxi Fares,Environmental Services,Social Needs Transport,"1,412.20"
2084370,REDACTED - PERSONAL DATA,07/02/2011,22202,Sewerage & Env'mental Servs,Housing GRF,HMO Licence Fees,870.00
2090875,REDACTED - PERSONAL DATA,14/02/2011,55711,Medical Referees Fees,Environmental Services,Bereavement Services,"2,422.00"
2090787,REDACTED - PERSONAL DATA,14/02/2011,48553,Coroners Non Forensic Post Mortems,Central Corporate,Coroners,"2,226.40"
2090796,REDACTED - PERSONAL DATA,14/02/2011,48553,Coroners Non Forensic Post Mortems,Central Corporate,Coroners,968.00
2090808,REDACTED - PERSONAL DATA,14/02/2011,48553,Coroners Non Forensic Post Mortems,Central Corporate,Coroners,"1,064.80"
2100993,REDACTED - PERSONAL DATA,24/02/2011,48509,Other Fees,Children's Services,Management Team,850.00
2083132,REDACTED - PERSONAL DATA,07/02/2011,46006,Staff Medical Fees,Chief Executives Department,Personnel Svs Occ Health Unit,500.00
2090847,REDACTED - PERSONAL DATA,14/02/2011,48553,Coroners Non Forensic Post Mortems,Central Corporate,Coroners,"1,258.40"
2093262,REDACTED - PERSONAL DATA,17/02/2011,48553,Coroners Non Forensic Post Mortems,Central Corporate,Coroners,900.00
2090811,REDACTED - PERSONAL DATA,14/02/2011,48553,Coroners Non Forensic Post Mortems,Central Corporate,Coroners,968.00
2090816,REDACTED - PERSONAL DATA,14/02/2011,48553,Coroners Non Forensic Post Mortems,Central Corporate,Coroners,580.80
2090836,REDACTED - PERSONAL DATA,14/02/2011,48553,Coroners Non Forensic Post Mortems,Central Corporate,Coroners,677.60
2092126,REDACTED - PERSONAL DATA,14/02/2011,48509,Other Fees,Children's Services,Management Team,"1,025.00"
2090872,REDACTED - PERSONAL DATA,14/02/2011,48553,Coroners Non Forensic Post Mortems,Central Corporate,Coroners,"1,064.80"
2090824,REDACTED - PERSONAL DATA,14/02/2011,48553,Coroners Non Forensic Post Mortems,Central Corporate,Coroners,580.80
2083222,REDACTED - PERSONAL DATA,07/02/2011,Z1051,Work in Progress Additions,Housing GRF,Capital  General Fund,"5,189.88"
2100695,REDACTED - PERSONAL DATA,24/02/2011,Z1051,Work in Progress Additions,Housing GRF,Capital  General Fund,"4,826.00"
2102379,REDACTED - PERSONAL DATA,24/02/2011,20101,Programmed Maint. Work,Property Services,Town Hall,"1,426.50"
2091120,REDACTED - PERSONAL DATA,14/02/2011,20100,Day To Day Maintenance,Central Corporate,Land & Property,"1,589.89"
2092703,REDACTED - PERSONAL DATA,17/02/2011,34402,Clients  Taxi Fares,Environmental Services,Social Needs Transport,"1,333.80"
2094463,REDACTED - PERSONAL DATA,24/02/2011,48509,Other Fees,Adult Services,Mus & Archives North West Hub,500.00
2094462,REDACTED - PERSONAL DATA,24/02/2011,48509,Other Fees,Adult Services,Mus & Archives Formal Learning,500.00
2087799,REDACTED - PERSONAL DATA,14/02/2011,48510,Consultancy Fees,Adult Services,AD Mental Capacity Act,"2,259.30"
2084801,REDACTED - PERSONAL DATA,07/02/2011,48510,Consultancy Fees,Adult Services,AD Transforming Social Care,"2,684.40"
2084784,REDACTED - PERSONAL DATA,07/02/2011,48509,Other Fees,Children's Services,AiS  Service Level Agreement,712.88
2084786,REDACTED - PERSONAL DATA,07/02/2011,48509,Other Fees,Children's Services,AiS  Service Level Agreement,581.66
2092715,REDACTED - PERSONAL DATA,17/02/2011,34402,Clients  Taxi Fares,Environmental Services,Social Needs Transport,903.60
2104509,REDACTED - PERSONAL DATA,28/02/2011,48501,Artistes Fees,Adult Services,Albert Halls  Entertainments,"1,173.60"
2092110,REDACTED - PERSONAL DATA,14/02/2011,48502,Legal Fees,Children's Services,Management Team,"2,900.00"
2092108,REDACTED - PERSONAL DATA,14/02/2011,48502,Legal Fees,Development & Regen,Development Management,"1,012.50"
2092112,REDACTED - PERSONAL DATA,14/02/2011,48502,Legal Fees,Development & Regen,Development Management,731.25
2102259,REDACTED - PERSONAL DATA,24/02/2011,48559,Pitch Hire,Central Corporate,Coroners,"1,350.00"
2092731,REDACTED - PERSONAL DATA,17/02/2011,34402,Clients  Taxi Fares,Environmental Services,Social Needs Transport,"1,476.00"
2100998,REDACTED - PERSONAL DATA,24/02/2011,48502,Legal Fees,Housing Revenue Account,HRA  General,750.00
2081164,REDACTED - PERSONAL DATA,03/02/2011,48502,Legal Fees,Children's Services,Management Team,750.00
2085661,REDACTED - PERSONAL DATA,10/02/2011,48502,Legal Fees,Children's Services,Management Team,"2,150.00"
2092097,REDACTED - PERSONAL DATA,14/02/2011,48502,Legal Fees,Children's Services,Management Team,"1,650.00"
2093570,REDACTED - PERSONAL DATA,17/02/2011,48502,Legal Fees,Children's Services,Management Team,"1,000.00"
2092111,REDACTED - PERSONAL DATA,14/02/2011,48502,Legal Fees,Children's Services,Management Team,500.00
2092726,REDACTED - PERSONAL DATA,17/02/2011,34402,Clients  Taxi Fares,Environmental Services,Social Needs Transport,889.20
2092080,REDACTED - PERSONAL DATA,14/02/2011,54202,Family Placement (Daycare),Children's Services,Family Support Day Care,"1,280.00"
2092729,REDACTED - PERSONAL DATA,17/02/2011,34402,Clients  Taxi Fares,Environmental Services,Social Needs Transport,974.70
2093205,REDACTED - PERSONAL DATA,17/02/2011,48501,Artistes Fees,Adult Services,G M Projects,675.00
2092743,REDACTED - PERSONAL DATA,17/02/2011,34402,Clients  Taxi Fares,Environmental Services,Social Needs Transport,"1,090.98"
2092132,REDACTED - PERSONAL DATA,24/02/2011,48502,Legal Fees,Chief Executives Department,Employee RelationsEP,"2,287.50"
2091288,REDACTED - PERSONAL DATA,07/03/2011,22003,Ground Rent,Adult Services,AD Sensory Impairment,"1,833.33"
2083675,Redbank Care Home#Payee Voyage North,08/02/2011,54301,Residential Provision,Adult Services,LD Purchaser Residential Care,"4,692.20"
2093771,Refreshment Systems Ltd,10/03/2011,41102,Catering ProvisionsVending,Environmental Services,Depots,541.50
2085017,Relphs Funeral Service,10/02/2011,52300,Client Support Costs,Adult Services,"AD Finance, Income & Assess. Team","1,100.00"
2086360,Remploy Ltd,28/02/2011,52200,Contracted Services,Adult Services,Resources,865.31
2104489,Rentokil Initial UK Ltd,28/02/2011,20100,Day To Day Maintenance,Housing Revenue Account,HRA South,"2,229.88"
2087505,Richard Tamlyn Ltd,10/02/2011,52200,Contracted Services,Adult Services,Drugs Action Team,"9,562.50"
2099295,Ricoh UK Limited,21/02/2011,43030,Photocopying Lease/Maintenance,Central Services,Civic & Admin Text & Reprographics,"3,486.17"
2099297,Ricoh UK Limited,21/02/2011,43030,Photocopying Lease/Maintenance,Central Services,Civic & Admin Text & Reprographics,"1,533.45"
2099298,Ricoh UK Limited,21/02/2011,43030,Photocopying Lease/Maintenance,Central Services,Civic & Admin Text & Reprographics,"1,907.09"
2085170,Rigby Taylor Ltd,10/02/2011,40601,General Materials,Environmental Services,Greenspace,609.40
2086465,Rite Directions Ltd,28/02/2011,52000,Vol Assoc Grants  General,Children's Services,Res Serv Agency Placements,"4,030.00"
2103849,River Street Glass (Bolton) Ltd,28/02/2011,20100,Day To Day Maintenance,Environmental Services,Markets  Rent Account,"1,291.57"
2105624,River Street Glass (Bolton) Ltd,03/03/2011,20100,Day To Day Maintenance,Adult Services,Libraries  Harwood,532.01
2101211,Riviera Care Limited#Riviera Court,24/02/2011,52200,Contracted Services,Adult Services,MH Residential External Provision,"2,110.17"
2101205,Riviera Care Limited#Riviera Court,24/02/2011,52200,Contracted Services,Adult Services,MH Residential External Provision,"2,110.17"
2101209,Riviera Care Limited#Riviera Court,24/02/2011,52200,Contracted Services,Adult Services,MH Residential External Provision,"2,110.17"
2105059,Riviera Care Limited#Riviera Court,17/03/2011,52200,Contracted Services,Adult Services,MH Residential External Provision,"2,110.17"
2083611,Rivington View Nursing Home,08/02/2011,54301,Residential Provision,Adult Services,OA  External Provision Residential,"16,428.72"
2083611,Rivington View Nursing Home,08/02/2011,54302,Nursing Provision,Adult Services,OA  External Provision Residential,"2,857.84"
2085678,RJB Environmental Assessment Services,24/02/2011,52200,Contracted Services,Property Services,Operational Facilities Management,583.00
2082103,RMAC UK Ltd,03/02/2011,20100,Day To Day Maintenance,Environmental Services,Markets  Rent Account,952.00
2102356,RMAC UK Ltd,10/03/2011,20100,Day To Day Maintenance,Property Services,Town Hall,797.00
2102290,Robinson Plant Hire,24/02/2011,33202,Plant Hire,Environmental Services,Greenspace,529.75
2101217,Robinson Plant Hire,24/02/2011,33202,Plant Hire,Environmental Services,Greenspace,661.78
2084922,Robinson Plant Hire,10/02/2011,33202,Plant Hire,Environmental Services,Greenspace,529.75
2105515,Robinson Plant Hire,03/03/2011,33202,Plant Hire,Environmental Services,Greenspace,818.26
2083613,Rose Court Nursing & RH Ltd,08/02/2011,54301,Residential Provision,Adult Services,OA  External Provision Residential,661.53
2083614,Rose Court Nursing & RH Ltd,08/02/2011,54301,Residential Provision,Adult Services,OA  External Provision Residential,"7,717.80"
2083614,Rose Court Nursing & RH Ltd,08/02/2011,54302,Nursing Provision,Adult Services,OA  External Provision Residential,"6,174.24"
2083614,Rose Court Nursing & RH Ltd,08/02/2011,54302,Nursing Provision,Adult Services,MH Residential External Provision,"1,535.56"
2083639,Rosebridge Court,08/02/2011,54302,Nursing Provision,Adult Services,OA  External Provision Residential,"1,494.08"
2082894,Rossendales#1,24/02/2011,48509,Other Fees,Finance Department,Council Tax,"3,360.00"
2104527,Royal Mail Group Ltd,28/02/2011,45000,Postages Direct Costs,Finance Department,Housing Benefits,573.02
2104527,Royal Mail Group Ltd,28/02/2011,45000,Postages Direct Costs,Finance Department,Council Tax,881.89
2084546,Royal Mail Group Ltd,07/02/2011,45000,Postages Direct Costs,Finance Department,Council Tax,932.42
2091281,Royal Mail Group Ltd,14/02/2011,45000,Postages Direct Costs,Finance Department,Housing Benefits,590.50
2091281,Royal Mail Group Ltd,14/02/2011,45000,Postages Direct Costs,Finance Department,Council Tax,"1,425.98"
2100386,Royal Mail Group Ltd,21/02/2011,45000,Postages Direct Costs,Finance Department,Housing Benefits,662.17
2100386,Royal Mail Group Ltd,21/02/2011,45000,Postages Direct Costs,Finance Department,Council Tax,923.19
2100386,Royal Mail Group Ltd,21/02/2011,45000,Postages Direct Costs,Finance Department,Accounts Receivable (R & B),561.69
2100445,Royal Mail Group Ltd,21/02/2011,45000,Postages Direct Costs,Finance Department,Finance Ap Centre of Excellence,856.50
2085811,Royal Mencap Society#Mencap,10/02/2011,52200,Contracted Services,Adult Services,LD Purchaser Supported Housing,"2,450.44"
2085808,Royal Mencap Society#Mencap,10/02/2011,52200,Contracted Services,Adult Services,LD Purchaser Supported Housing,"2,396.44"
2085527,Royal Mencap Society#Mencap,08/02/2011,54301,Residential Provision,Adult Services,LD Purchaser Residential Care,"21,052.00"
2085813,Royal Mencap Society#Mencap,10/02/2011,52200,Contracted Services,Adult Services,LD Purchaser Supported Housing,"2,450.44"
2085529,Royal Mencap Society#Mencap,08/02/2011,54301,Residential Provision,Adult Services,LD Purchaser Residential Care,"12,421.80"
2085490,Royal Mencap Society#Mencap,08/02/2011,54301,Residential Provision,Adult Services,LD Purchaser Residential Care,"13,719.60"
2101346,Royal Mencap Society#Mencap,17/03/2011,52200,Contracted Services,Adult Services,LD Purchaser Supported Housing,"24,760.66"
2101345,Royal Mencap Society#Mencap,17/03/2011,52200,Contracted Services,Adult Services,LD Purchaser Supported Housing,"29,080.36"
2101343,Royal Mencap Society#Mencap,17/03/2011,52200,Contracted Services,Adult Services,LD Purchaser Supported Housing,"13,722.16"
2087800,Russell & Russell Solicitors#(Bolton),21/02/2011,Z1051,Work in Progress Additions,Development & Regen,Development & Regeneration Capital,"47,500.00"
2082260,Ryton Projects Ltd,07/02/2011,48510,Consultancy Fees,Chief Executives Department,MFD Project,500.00
2092733,S & D Private Hire,17/02/2011,34402,Clients  Taxi Fares,Environmental Services,Social Needs Transport,"9,119.61"
2091458,S Bates Carpet Services,03/03/2011,52200,Contracted Services,Central Corporate,Bolton Sports Village,"22,416.00"
2103904,Safeline Environmental,15/03/2011,Z1051,Work in Progress Additions,Adult Services,Adult Services Balance Sheet,520.00
2085997,Safety Awareness Limited,10/02/2011,44056,Clients Training Courses,Development & Regen,Coalfields,"6,750.00"
2082892,SAT Business Travel Management Ltd,07/02/2011,48625,Town Twinning,Central Services,Mayoralty,834.91
2098659,Savoy Computing Service Limited,15/03/2011,45431,Computer Software Licences,Environmental Services,Highway Management,"1,420.00"
2102483,SC Auto Electrics,25/03/2011,52200,Contracted Services,Special Funding,Neighbourhood Management,500.00
2092734,Schools Direct,17/02/2011,34402,Clients  Taxi Fares,Environmental Services,Social Needs Transport,"3,376.90"
2087490,Scott Hughes Design Ltd,10/02/2011,Z1051,Work in Progress Additions,Environmental Services,Environmental Services Balance sheet,910.00
2086245,Scottish & Southern Energy plc,10/02/2011,21200,Gas  General,Housing Revenue Account,Housing Revenue Account,"1,341.63"
2104691,Scottish & Southern Energy plc,28/02/2011,21200,Gas  General,Housing Revenue Account,Housing Revenue Account,860.20
2086234,Scottish & Southern Energy plc,10/02/2011,21100,Electricity  General,Housing Revenue Account,Housing Revenue Account,"2,061.83"
2086231,Scottish & Southern Energy plc,10/02/2011,21100,Electricity  General,Housing Revenue Account,Housing Revenue Account,538.45
2104643,ScottishPower,28/02/2011,21100,Electricity  General,Housing Revenue Account,Housing Revenue Account,"5,792.91"
2105022,ScottishPower,28/02/2011,21200,Gas  General,Housing Revenue Account,Housing Revenue Account,882.55
2087787,Secure Industrial Doors,14/02/2011,20100,Day To Day Maintenance,Central Corporate,Tonge Bridge,"1,390.00"
2090805,Serco Leisure Operating Ltd#2,14/02/2011,52000,Vol Assoc Grants  General,Children's Services,Castle Hill NonStaff,"8,935.00"
2098741,Serco Ltd,10/03/2011,44054,Other Clients Services,Children's Services,Music ServMusic Centre,"1,826.00"
2099307,Servicom (High Tech) Ltd,21/02/2011,45253,Radios,Development & Regen,TC Leadership Board Projects,"3,348.00"
2093732,Seva Line,17/02/2011,52200,Contracted Services,Adult Services,OA  Home Care Services external provision,"32,907.87"
2105152,Shanleys Ltd,28/02/2011,Z1051,Work in Progress Additions,Housing Revenue Account,Capital  HRA,"1,461.00"
2105151,Shanleys Ltd,28/02/2011,48203,Marketing,Central Services,Marketing  General (N),"4,042.00"
2101390,Shanleys Ltd,24/02/2011,48203,Marketing,Central Services,Marketing  Development (J),748.00
2092989,Shanleys Ltd,17/02/2011,48203,Marketing,Central Services,Marketing  Development (J),"1,851.00"
2094229,Shanleys Ltd,17/02/2011,48203,Marketing,Central Services,Marketing  Consultation & Research,"5,353.00"
2083615,Shannon Court Nursing Home,08/02/2011,54302,Nursing Provision,Adult Services,OA  External Provision Residential,"1,231.31"
2083615,Shannon Court Nursing Home,08/02/2011,54302,Nursing Provision,Adult Services,MH Residential External Provision,"6,869.97"
2083616,Shannon Court Nursing Home,08/02/2011,54302,Nursing Provision,Adult Services,OA  External Provision Residential,"23,031.77"
2083616,Shannon Court Nursing Home,08/02/2011,54302,Nursing Provision,Adult Services,MH Residential External Provision,"1,460.55"
2084209,Shared Intelligence,24/02/2011,48509,Other Fees,Adult Services,Libraries Ext. Funded Projects,"5,000.00"
2084208,Shared Intelligence,24/02/2011,48509,Other Fees,Adult Services,Libraries Ext. Funded Projects,"10,000.00"
2101449,Sharman & Company Ltd,17/03/2011,43001,Printing General,Central Services,Civic & Admin Scene,"4,210.00"
2083681,Shassab,08/02/2011,54301,Residential Provision,Adult Services,MH Residential External Provision,"1,562.16"
2084788,SHEilds Ltd,24/02/2011,19104,Training Exp  Ext Seminars,Chief Executives Department,Personnel Svs Occ Health Unit,"1,495.00"
2104516,Showdown Music Ltd,28/02/2011,48501,Artistes Fees,Adult Services,Albert Halls  Entertainments,"1,817.84"
2090595,Showsec International Limited,14/02/2011,48501,Artistes Fees,Environmental Services,Greenspace,"2,003.80"
2081246,Sidhil Limited,03/02/2011,44051,Clients Aids & Adaptations,Adult Services,AD ICES,"5,390.00"
2101182,Sidhil Limited,24/02/2011,44051,Clients Aids & Adaptations,Adult Services,AD ICES,"1,500.00"
2084976,Siemens Financial Services Ltd,10/02/2011,40143,Office Equipment Leased Rental,Central Services,Printing Services,615.00
2099306,Signage Systems Limited,28/02/2011,48203,Marketing,Central Services,Marketing  General (N),"1,400.98"
2093562,Signage Systems Limited,31/03/2011,48203,Marketing,Central Services,Marketing Committed Monies,507.79
2087753,Signpost Solutions Ltd t/a Signfix,10/03/2011,40610,Direct Materials,Environmental Services,Sign Shop,607.20
2097928,Simon Jersey Ltd,10/03/2011,40601,General Materials,Children's Services,Admin Strategic Finance Unit,966.29
2101313,Site Lift Limited,10/03/2011,Z6008,Expense AP Accrual,Bolton MBC Balance Sheet,Bolton MBC Balance Sheet,647.50
2099541,Site Lift Limited,03/03/2011,Z6008,Expense AP Accrual,Bolton MBC Balance Sheet,Bolton MBC Balance Sheet,697.50
2105047,SLC Paragon,17/03/2011,52200,Contracted Services,Adult Services,MH Residential External Provision,"1,159.48"
2081253,Smitcare Limited,03/02/2011,44051,Clients Aids & Adaptations,Adult Services,AD ICES,714.42
2104634,Social Centre for the Blind#FACTOR Bolton Society for Blind People,28/02/2011,52000,Vol Assoc Grants  General,Adult Services,AD  Contracts,"2,255.00"
2085470,Solon Security Ltd,03/03/2011,48204,Promoting Events,Special Funding,Neighbourhood Management,550.00
2085473,Solon Security Ltd,03/03/2011,40100,Operational Equipment Purchase,Adult Services,Community Safety Ext Funded Schemes  Projects,550.00
2093362,Sortimo International Ltd,17/02/2011,52200,Contracted Services,Environmental Services,Transport Support Service,595.08
2083651,Southlands Residential Home#Southlands,08/02/2011,54301,Residential Provision,Adult Services,OA  External Provision Residential,"12,624.19"
2083669,Southlea Residential Care Home,08/02/2011,54301,Residential Provision,Adult Services,MH Residential External Provision,"1,278.04"
2083717,Southview Lodge Residential Care Home,08/02/2011,54301,Residential Provision,Adult Services,OA  External Provision Residential,"1,444.00"
2085675,Spectra Security Ltd,10/02/2011,Z1051,Work in Progress Additions,Property Services,Property Services Balance Sheet,"1,237.00"
2085642,Spectra Security Ltd,10/02/2011,25107,Secure Doors,Property Services,Admin Buildings  General,520.00
2085687,Spectra Security Ltd,10/02/2011,25107,Secure Doors,Property Services,Admin Buildings  General,591.00
2092660,Spectra Security Ltd,17/02/2011,25107,Secure Doors,Property Services,Admin Buildings  General,875.00
2103898,Spectra Security Ltd,28/02/2011,25107,Secure Doors,Property Services,Admin Buildings  General,591.00
2085503,Spectra Security Ltd,10/02/2011,25107,Secure Doors,Property Services,Town Hall,"1,277.00"
2085649,Spectra Security Ltd,10/02/2011,20101,Programmed Maint. Work,Property Services,Howell Croft House  Le Mans Crescent,980.60
2092286,Spectra Security Ltd,14/02/2011,20101,Programmed Maint. Work,Property Services,Magistrates courts  Le Mans Crescent,567.00
2085892,Speedy Asset Services Limited,10/02/2011,40100,Operational Equipment Purchase,Environmental Services,Markets  Rent Account,"1,714.68"
2083684,Spennymoor Care Home Ltd,08/02/2011,54301,Residential Provision,Adult Services,OA  External Provision Residential,"1,333.50"
2083685,Spennymoor Care Home Ltd,08/02/2011,54301,Residential Provision,Adult Services,OA  External Provision Residential,"13,235.22"
2083685,Spennymoor Care Home Ltd,08/02/2011,54301,Residential Provision,Adult Services,PD Purchaser Residential Care,"1,071.97"
2105189,Spur Information Solutions Ltd,21/03/2011,43032,Office Stationery,Environmental Services,Parking Services  Management,"1,875.00"
2086824,sQuidcard Ltd,07/03/2011,48509,Other Fees,Finance Department,Corporate Smartcard,"4,125.00"
2083618,St Catherines Care Home,08/02/2011,54301,Residential Provision,Adult Services,OA  External Provision Residential,"18,399.26"
2083618,St Catherines Care Home,08/02/2011,54302,Nursing Provision,Adult Services,OA  External Provision Residential,"22,604.99"
2102408,Stannah Lift Services Ltd,24/02/2011,Z1051,Work in Progress Additions,Housing Revenue Account,Capital  HRA,"4,690.00"
2102393,Stannah Lift Services Ltd,24/02/2011,Z1051,Work in Progress Additions,Housing Revenue Account,Capital  HRA,996.00
2102403,Stannah Lift Services Ltd,24/02/2011,Z1051,Work in Progress Additions,Housing Revenue Account,Capital  HRA,"3,088.00"
2083196,Stannah Lift Services Ltd,07/02/2011,Z1051,Work in Progress Additions,Housing GRF,Capital  General Fund,"2,764.00"
2083177,Stannah Lift Services Ltd,07/02/2011,Z1051,Work in Progress Additions,Housing GRF,Capital  General Fund,"3,094.00"
2100679,Stannah Lift Services Ltd,24/02/2011,Z1051,Work in Progress Additions,Housing GRF,Capital  General Fund,"4,843.00"
2100467,Stannah Lift Services Ltd,24/02/2011,Z1051,Work in Progress Additions,Housing GRF,Capital  General Fund,"3,011.00"
2105849,Stannah Lift Services Ltd,03/03/2011,Z1051,Work in Progress Additions,Housing GRF,Capital  General Fund,"5,275.00"
2092738,Stans Mini-Bus,17/02/2011,34402,Clients  Taxi Fares,Environmental Services,Social Needs Transport,"2,030.40"
2083619,Starmount Villa Residential Care Home,08/02/2011,54301,Residential Provision,Adult Services,OA  External Provision Residential,"7,917.80"
2092741,STB Supercars PH Ltd,17/02/2011,34402,Clients  Taxi Fares,Environmental Services,Social Needs Transport,"7,452.96"
2100882,Stockport Psychology Services,24/02/2011,48509,Other Fees,Children's Services,Management Team,"1,092.00"
2085973,Stockport Psychology Services,10/02/2011,48509,Other Fees,Children's Services,Management Team,546.00
2100989,Stockport Psychology Services,24/02/2011,48509,Other Fees,Children's Services,Management Team,936.00
2104429,Stockport Psychology Services,28/02/2011,48509,Other Fees,Children's Services,Management Team,780.00
2083704,Stonedale Lodge#Bupa Care Homes,08/02/2011,54301,Residential Provision,Adult Services,OA  External Provision Residential,"1,320.20"
2085569,Stormina Teacup-Community Arts,10/02/2011,Z1051,Work in Progress Additions,Housing Revenue Account,Capital  HRA,"1,130.00"
2083653,Strathmore Nursing Home#Whitehill Homes Ltd,08/02/2011,54301,Residential Provision,Adult Services,OA  External Provision Residential,"10,325.44"
2083653,Strathmore Nursing Home#Whitehill Homes Ltd,08/02/2011,54301,Residential Provision,Adult Services,PD Purchaser Residential Care,"1,493.52"
2083653,Strathmore Nursing Home#Whitehill Homes Ltd,08/02/2011,54302,Nursing Provision,Adult Services,OA  External Provision Residential,"3,147.06"
2083652,Strathmore Nursing Home#Whitehill Homes Ltd,08/02/2011,54302,Nursing Provision,Adult Services,OA  External Provision Residential,533.40
2091084,Stratstone,14/02/2011,52200,Contracted Services,Environmental Services,Transport Support Service,"1,143.05"
2092742,Street Cars#Ajaz Farzand,17/02/2011,34402,Clients  Taxi Fares,Environmental Services,Social Needs Transport,"4,009.30"
2101380,Sub Soil Consultancy Surveys Ltd,17/03/2011,47103,Miscellaneous Grants,Chief Executives Department,ABG Budget for Area Working,"1,986.00"
2083655,Sunnyside Residential Home,08/02/2011,54301,Residential Provision,Adult Services,OA  External Provision Residential,"31,345.01"
2083654,Sunnyside Residential Home,08/02/2011,54301,Residential Provision,Adult Services,OA  External Provision Residential,"1,628.16"
2092797,Supplies Team Limited,31/03/2011,40140,Office Equipment Purchase,Housing GRF,Access & Advice Homelessness,549.48
2084873,Supplies Team Limited,03/03/2011,43032,Office Stationery,Environmental Services,Parking Services  Management,654.83
2093157,Survey Operations Ltd,24/02/2011,Z1051,Work in Progress Additions,Highways,Stores,630.00
2105201,Survey Operations Ltd,21/03/2011,Z1051,Work in Progress Additions,Highways,Stores,"2,640.00"
2085539,Susan Kostick#S K British Sign Language,10/02/2011,19100,Training Exps Tuition Fees,Adult Services,AD  Staff Development,"1,504.80"
2085061,Sutcliffe Play Ltd,24/03/2011,20401,Landscape Work,Environmental Services,Greenspace,"6,159.60"
2087830,Suttons Central Heating & Plumbing,14/02/2011,Z1051,Work in Progress Additions,Housing GRF,Capital  General Fund,833.33
2081550,Swift Fire & Security,03/02/2011,20100,Day To Day Maintenance,Central Corporate,Bolton Enterprise Centre,679.00
2083620,Sydenhurst,08/02/2011,54301,Residential Provision,Adult Services,OA  External Provision Residential,"2,598.64"
2081559,T Jolly (Services) Ltd,21/02/2011,20100,Day To Day Maintenance,Central Corporate,Bolton Enterprise Centre,"2,592.00"
2100460,T Jolly (Services) Ltd,15/03/2011,20100,Day To Day Maintenance,Central Corporate,Bolton Enterprise Centre,"1,152.44"
2082494,T Lowe & Son Limited,07/02/2011,20100,Day To Day Maintenance,Environmental Services,Markets  Rent Account,775.90
2086592,T Lowe & Son Limited,10/02/2011,20100,Day To Day Maintenance,Environmental Services,Depots,769.19
2100438,T Lowe & Son Limited,21/02/2011,Z1051,Work in Progress Additions,Central Corporate,Corporate Property Balance Sheet,"1,029.47"
2085656,T Lowe & Son Limited,10/02/2011,20100,Day To Day Maintenance,Children's Services,Barlow Park YC,527.38
2092071,Telecars Bolton,14/02/2011,34402,Clients  Taxi Fares,Environmental Services,Social Needs Transport,"1,858.50"
2092076,Telecars Bolton,14/02/2011,34402,Clients  Taxi Fares,Environmental Services,Social Needs Transport,"1,912.50"
2099340,Telecars Bolton,21/02/2011,34402,Clients  Taxi Fares,Environmental Services,Social Needs Transport,"1,912.50"
2085727,Telecars Bolton,10/02/2011,34402,Clients  Taxi Fares,Environmental Services,Social Needs Transport,"1,912.50"
2085723,Telecars Bolton,10/02/2011,34402,Clients  Taxi Fares,Environmental Services,Social Needs Transport,"1,876.50"
2092835,Tensid UK Ltd,03/03/2011,26104,Street Cleansing,Environmental Services,Streets & Grounds,"1,050.75"
2086554,Terberg Matec UK,03/03/2011,31305,Vehicle Servicing,Environmental Services,Transport Support Service,506.63
2093278,Terra-Firma Environmental Ltd,17/02/2011,52200,Contracted Services,Environmental Services,Greenspace,"2,820.00"
2093275,Terra-Firma Environmental Ltd,17/02/2011,52200,Contracted Services,Environmental Services,Greenspace,"4,670.00"
2083607,The Bakewells,08/02/2011,54301,Residential Provision,Adult Services,OA  External Provision Residential,"16,544.57"
2083606,The Bakewells,08/02/2011,54301,Residential Provision,Adult Services,OA  External Provision Residential,919.60
2083631,The Brandles,08/02/2011,54301,Residential Provision,Adult Services,MH Residential External Provision,"3,015.52"
2085501,The Bungalow Residential Home,08/02/2011,54301,Residential Provision,Adult Services,OA  External Provision Residential,"16,108.68"
2085501,The Bungalow Residential Home,08/02/2011,54301,Residential Provision,Adult Services,PD Purchaser Residential Care,"1,066.80"
2085485,The Bungalow Residential Home,08/02/2011,54301,Residential Provision,Adult Services,PD Purchaser Residential Care,586.74
2083696,The Chimes,08/02/2011,54301,Residential Provision,Adult Services,PD Purchaser Residential Care,"1,740.00"
2083667,The Clough Residential Home,08/02/2011,54301,Residential Provision,Adult Services,OA  External Provision Residential,960.12
2083668,The Clough Residential Home,08/02/2011,54301,Residential Provision,Adult Services,OA  External Provision Residential,"22,050.54"
2081899,The Columbaria Company,24/02/2011,40601,General Materials,Environmental Services,Bereavement Services,"1,082.20"
2086285,The Columbaria Company,03/03/2011,40601,General Materials,Environmental Services,Bereavement Services,567.40
2083695,The Croft Care Home#Wigan,08/02/2011,54301,Residential Provision,Adult Services,OA  External Provision Residential,"3,038.00"
2083661,The David Lewis Centre,08/02/2011,54301,Residential Provision,Adult Services,LD Purchaser Residential Care,"21,869.19"
2083703,The Gables Care Home,08/02/2011,54301,Residential Provision,Adult Services,OA  External Provision Residential,"1,463.56"
2081188,The Lancashire Wildlife Trust,24/02/2011,Z1051,Work in Progress Additions,Housing Revenue Account,Capital  HRA,"2,553.19"
2098691,The Lancashire Wildlife Trust,21/02/2011,53000,Private Contracted Services,Environmental Services,Greenspace,"13,100.00"
2101415,The Leaving Care Company,24/02/2011,52000,Vol Assoc Grants  General,Children's Services,Res Serv Agency Placements,"3,577.89"
2104459,The Leaving Care Company,28/02/2011,52000,Vol Assoc Grants  General,Children's Services,Res Serv Agency Placements,"1,037.36"
2082787,The Leaving Care Company,07/02/2011,52300,Client Support Costs,Children's Services,Res Serv Agency Placements,"3,231.64"
2100847,The Leaving Care Team,24/02/2011,52300,Client Support Costs,Children's Services,Child Prot Leaving Care Team,547.30
2093742,The Local Care Company (Bolton) Ltd,17/02/2011,52200,Contracted Services,Adult Services,OA  Home Care Services external provision,"54,381.32"
2086471,The National Fostering Agency,03/03/2011,52000,Vol Assoc Grants  General,Children's Services,Res Serv Agency Placements,"2,988.40"
2086473,The National Fostering Agency,03/03/2011,52000,Vol Assoc Grants  General,Children's Services,Res Serv Agency Placements,"3,453.40"
2086474,The National Fostering Agency,03/03/2011,52000,Vol Assoc Grants  General,Children's Services,Res Serv Agency Placements,"2,988.40"
2083672,The Oaks,08/02/2011,54301,Residential Provision,Adult Services,OA  External Provision Residential,"3,099.68"
2083664,The Old Vicarage,08/02/2011,54301,Residential Provision,Adult Services,OA  External Provision Residential,"4,888.16"
2081788,The Pierpoint Group,17/02/2011,54301,Residential Provision,Adult Services,Drugs Action Team,"1,138.20"
2086515,The Pierpoint Group,28/02/2011,54301,Residential Provision,Adult Services,Drugs Action Team,"1,138.20"
2085732,The Planning Inspectorate,10/02/2011,48560,LDF Costs,Development & Regen,Local Development Framework,"46,195.60"
2104557,The Playwrite Group PLC,28/02/2011,40100,Operational Equipment Purchase,Environmental Services,Greenspace,620.76
2084655,The Railway Home for Children,24/02/2011,52000,Vol Assoc Grants  General,Children's Services,Disability Serv External Provision,"4,800.00"
2093762,The Railway Home for Children,10/03/2011,52000,Vol Assoc Grants  General,Children's Services,Disability Serv External Provision,"4,800.00"
2083630,The Spinal Unit Action Group,08/02/2011,54301,Residential Provision,Adult Services,PD Purchaser Residential Care,"2,192.40"
2104513,The Syd Lawrence Orchestra,28/02/2011,48501,Artistes Fees,Adult Services,Albert Halls  Entertainments,"2,575.25"
2084205,The Textile Restoration Studio,24/02/2011,40601,General Materials,Adult Services,Mus & Archives North West Hub,"3,698.00"
2087344,The Together Trust#was BGWS,10/02/2011,52000,Vol Assoc Grants  General,Children's Services,Disability Serv External Provision,"15,882.85"
2085532,The Together Trust#was BGWS,08/02/2011,54301,Residential Provision,Adult Services,LD Purchaser Residential Care,"14,345.76"
2087347,The Together Trust#was BGWS,10/02/2011,52000,Vol Assoc Grants  General,Children's Services,Disability Serv External Provision,"15,882.85"
2091105,The Together Trust#was BGWS,07/03/2011,52000,Vol Assoc Grants  General,Children's Services,Res Serv Agency Placements,"9,432.68"
2094064,The Waterways Trust,24/02/2011,48509,Other Fees,Adult Services,Mus & Archives North West Hub,500.00
2087802,Thermal Heating Maintenance Ltd,14/02/2011,Z1051,Work in Progress Additions,Housing GRF,Capital  General Fund,"1,120.00"
2091400,Thermo Box UK,10/03/2011,40100,Operational Equipment Purchase,Adult Services,OA  Community Meals,536.68
2094221,Thistlethwaite Tyres & Exhausts#Factor Micheldever Tyre Svs Ltd,17/02/2011,31303,Tyres,Environmental Services,Transport Support Service,"5,802.47"
2083188,Thomas Brown (UPVC) Ltd,07/02/2011,Z1051,Work in Progress Additions,Housing GRF,Capital  General Fund,950.00
2083674,Thorley House,08/02/2011,54301,Residential Provision,Adult Services,OA  External Provision Residential,"1,519.00"
2083632,Thorncliffe Nursing Home,08/02/2011,54301,Residential Provision,Adult Services,OA  External Provision Residential,"1,576.00"
2086209,TJ Lift Solutions Ltd,10/02/2011,20100,Day To Day Maintenance,Housing Revenue Account,HRA South,"1,041.50"
2086211,TJ Lift Solutions Ltd,10/02/2011,20100,Day To Day Maintenance,Housing Revenue Account,HRA South,"1,156.00"
2086214,TJ Lift Solutions Ltd,10/02/2011,20100,Day To Day Maintenance,Housing Revenue Account,HRA South,514.00
2086218,TJ Lift Solutions Ltd,10/02/2011,20100,Day To Day Maintenance,Housing Revenue Account,HRA South,"1,003.33"
2086227,TJ Lift Solutions Ltd,10/02/2011,20100,Day To Day Maintenance,Housing Revenue Account,HRA South,532.99
2086228,TJ Lift Solutions Ltd,10/02/2011,20100,Day To Day Maintenance,Housing Revenue Account,HRA South,869.00
2093148,TJ Lift Solutions Ltd,17/02/2011,20100,Day To Day Maintenance,Housing Revenue Account,HRA North,"2,688.45"
2099189,TJ Lift Solutions Ltd,15/03/2011,20100,Day To Day Maintenance,Housing Revenue Account,HRA South,"2,224.58"
2099192,TJ Lift Solutions Ltd,15/03/2011,20100,Day To Day Maintenance,Housing Revenue Account,HRA South,"1,762.25"
2091557,TJ Lift Solutions Ltd,07/03/2011,20100,Day To Day Maintenance,Housing Revenue Account,R&M  Great Lever,"1,477.00"
2083489,Tom Forrest Ltd,17/02/2011,48509,Other Fees,Adult Services,Mus & Archives North West Hub,"4,500.00"
2105887,Tom Gallagher Ltd,03/03/2011,Z1051,Work in Progress Additions,Housing GRF,Capital  General Fund,"4,179.65"
2093817,Trakm8 Limited,17/02/2011,45409,Information and Communication Technology,Environmental Services,Transport Support Service,"1,950.30"
2093815,Trakm8 Limited,17/02/2011,45409,Information and Communication Technology,Environmental Services,Transport Support Service,"1,950.30"
2085742,TransLinc Ltd,10/02/2011,33203,Contract Hire,Environmental Services,Transport Support Service,"26,365.21"
2085745,TransLinc Ltd,10/02/2011,33203,Contract Hire,Environmental Services,Transport Support Service,"26,365.21"
2083201,Trapeze Group (UK) Ltd,07/02/2011,45430,Computer Software,Environmental Services,Transport Support Service,"5,434.80"
2086624,Trend Control Systems Ltd,03/03/2011,20100,Day To Day Maintenance,Property Services,Town Hall,870.00
2101194,Tunstall Healthcare (UK)Ltd,24/02/2011,44051,Clients Aids & Adaptations,Adult Services,AD Equipment,750.00
2101191,Tunstall Healthcare (UK)Ltd,24/02/2011,44051,Clients Aids & Adaptations,Adult Services,AD Equipment,552.50
2101185,Tunstall Healthcare (UK)Ltd,24/02/2011,44051,Clients Aids & Adaptations,Adult Services,AD Equipment,900.00
2091136,Tynetec Limited,14/02/2011,44051,Clients Aids & Adaptations,Adult Services,AD Equipment,765.30
2104518,Ultimate Themed Events Ltd,28/02/2011,48501,Artistes Fees,Adult Services,Albert Halls  Entertainments,"3,000.00"
2081372,Ulverscroft Large Print Books Limited,17/02/2011,40753,Book Fund Expenditure,Adult Services,Libraries  Resources,696.58
2086558,Ulverscroft Large Print Books Limited,03/03/2011,40753,Book Fund Expenditure,Adult Services,Libraries  Resources,645.24
2093522,United Utilities Water PLC#1,17/02/2011,22200,Water Charges  Metered,Environmental Services,Mngmnt & Admin Overhead,"6,036.88"
2093522,United Utilities Water PLC#1,17/02/2011,22201,Water Charges  Unmetered,Environmental Services,Mngmnt & Admin Overhead,"1,408.56"
2093522,United Utilities Water PLC#1,17/02/2011,22200,Water Charges  Metered,Adult Services,Prop. Servs. Winifred Kettle,"8,082.90"
2093522,United Utilities Water PLC#1,17/02/2011,22201,Water Charges  Unmetered,Adult Services,Prop. Servs. Winifred Kettle,"3,961.45"
2093522,United Utilities Water PLC#1,17/02/2011,22200,Water Charges  Metered,Housing Revenue Account,Housing Revenue Account,"5,101.14"
2093522,United Utilities Water PLC#1,17/02/2011,22201,Water Charges  Unmetered,Housing Revenue Account,Housing Revenue Account,867.41
2093522,United Utilities Water PLC#1,17/02/2011,22200,Water Charges  Metered,Property Services,Admin Buildings  General,"13,411.20"
2093522,United Utilities Water PLC#1,17/02/2011,22201,Water Charges  Unmetered,Property Services,Admin Buildings  General,"2,821.80"
2082234,United Utilities Water PLC#1,07/02/2011,22200,Water Charges  Metered,Environmental Services,Mngmnt & Admin Overhead,"13,642.98"
2082234,United Utilities Water PLC#1,07/02/2011,22201,Water Charges  Unmetered,Environmental Services,Mngmnt & Admin Overhead,"4,871.10"
2082234,United Utilities Water PLC#1,07/02/2011,22200,Water Charges  Metered,Adult Services,Prop. Servs. Winifred Kettle,"3,694.93"
2082234,United Utilities Water PLC#1,07/02/2011,22201,Water Charges  Unmetered,Adult Services,Prop. Servs. Winifred Kettle,"1,360.74"
2082234,United Utilities Water PLC#1,07/02/2011,22200,Water Charges  Metered,Housing Revenue Account,Housing Revenue Account,"1,964.11"
2082234,United Utilities Water PLC#1,07/02/2011,22201,Water Charges  Unmetered,Housing Revenue Account,Housing Revenue Account,"2,036.37"
2082234,United Utilities Water PLC#1,07/02/2011,22200,Water Charges  Metered,Property Services,Castle Hill,"2,803.93"
2082234,United Utilities Water PLC#1,07/02/2011,22200,Water Charges  Metered,Property Services,Admin Buildings  General,787.62
2082240,United Utilities Water PLC#1,07/02/2011,22201,Water Charges  Unmetered,Housing Revenue Account,Housing Revenue Account,523.05
2105035,United Utilities Water PLC#1,28/02/2011,22201,Water Charges  Unmetered,Property Services,Castle Hill,"4,077.15"
2085852,United Utilities Water PLC#1,10/02/2011,20100,Day To Day Maintenance,Environmental Services,Greenspace,"2,564.44"
2082138,United Utilities Water PLC#1,03/02/2011,22200,Water Charges  Metered,Environmental Services,Streets & Grounds,503.67
2089932,United Utilities Water PLC#1,14/02/2011,22200,Water Charges  Metered,Children's Services,Technical Innovation Centre,997.33
2093420,Urban Outreach (Bolton),17/02/2011,55700,Grant Funded Expenditure,Adult Services,Community Safety Ext Funded Schemes  Projects,"6,750.00"
2091931,Urban Outreach (Bolton),14/02/2011,55700,Grant Funded Expenditure,Adult Services,Community Safety Ext Funded Schemes  Projects,"29,380.25"
2089860,Urban Regen Ltd,14/02/2011,20100,Day To Day Maintenance,Property Services,Development Schemes  Short Term Holding A/C,"11,885.53"
2085565,Urban Vision Partnership Ltd#GMGU,10/02/2011,53100,Agency Staff  Fulltime,Property Services,Estates & Property Management,"6,058.22"
2102256,Urban Vision Partnership Ltd#GMGU,15/03/2011,48502,Legal Fees,Development & Regen,Development Management,"1,440.00"
2099268,Urban Vision Partnership Ltd#GMGU,03/03/2011,48510,Consultancy Fees,Chief Executives Department,Pollution Control,675.00
2102254,Urban Vision Partnership Ltd#GMGU,15/03/2011,48502,Legal Fees,Development & Regen,Development Management,"2,340.00"
2099263,Urban Vision Partnership Ltd#GMGU,03/03/2011,48510,Consultancy Fees,Chief Executives Department,Pollution Control,506.25
2085173,Urbanfab Street Products,03/03/2011,Z6008,Expense AP Accrual,Bolton MBC Balance Sheet,Bolton MBC Balance Sheet,846.00
2083621,Vale House#Vale Residential Ltd,08/02/2011,54301,Residential Provision,Adult Services,OA  External Provision Residential,"15,782.72"
2095887,Vehicle and Operator Services Agency (VOSA),10/03/2011,50002,Other Agency/Contracted Services,Environmental Services,Transport Support Service,500.00
2092694,Veolia ES (UK) Ltd#C&C Recycling is a subsidiary,28/02/2011,20100,Day To Day Maintenance,Property Services,Town Hall,"1,200.00"
2086799,Veolia ES (UK) Ltd#C&C Recycling is a subsidiary,03/03/2011,53000,Private Contracted Services,Environmental Services,Waste,625.00
2087485,Veritas Safety Management Limited,03/03/2011,19104,Training Exp  Ext Seminars,Environmental Services,Highway Management,540.00
2084453,VIP-System Limited,28/02/2011,40100,Operational Equipment Purchase,Chief Executives Department,Licensing (Client),756.85
2083044,Virgin Media Ltd,07/02/2011,Z1051,Work in Progress Additions,Highways,Stores,"9,500.00"
2085511,Vitalise Ellerslie Court,08/02/2011,54301,Residential Provision,Adult Services,PD Purchaser Residential Care,"2,722.32"
2085883,Vodafone Limited#1,10/02/2011,45252,Mobile Telephone Rental,Environmental Services,Mngmnt & Admin Overhead,"9,843.08"
2100777,Vodafone Limited#1,24/02/2011,45252,Mobile Telephone Rental,Finance Department,Corporate IT Investment,"1,726.00"
2101015,Vodafone Limited#1,24/02/2011,43032,Office Stationery,Children's Services,"Sport, Health & Inclusion General","1,338.25"
2093409,Vodafone Limited#1,17/02/2011,45254,Mobile Telephone Calls,Children's Services,Management Team,895.66
2087548,Vodafone Limited#1,14/02/2011,45254,Mobile Telephone Calls,Children's Services,Management Team,"6,848.63"
2087554,Vodafone Limited#1,14/02/2011,45254,Mobile Telephone Calls,Children's Services,Management Team,"7,997.66"
2092048,Vodafone Limited#1,17/02/2011,45252,Mobile Telephone Rental,Development & Regen,D&R Departmental Account,"3,606.41"
2087633,Vodafone Limited#1,14/02/2011,45254,Mobile Telephone Calls,Chief Executives Department,Personnel Svs Occ Health Unit,901.04
2084267,Vodafone Limited#1,07/02/2011,45252,Mobile Telephone Rental,Adult Services,AD  External Recharges,"5,830.59"
2084267,Vodafone Limited#1,07/02/2011,45254,Mobile Telephone Calls,Adult Services,AD  External Recharges,856.22
2101997,VoicePower,17/03/2011,40106,Op Equip Health & Safety,Children's Services,Disability Serv Fieldwork Team,"1,384.00"
2102292,W & S C Jobson,24/02/2011,52200,Contracted Services,Environmental Services,Transport Support Service,556.21
2081531,W Craven & Son,24/02/2011,20100,Day To Day Maintenance,Central Corporate,Land & Property,"1,100.00"
2094243,Wainwright Tree Stump Removal Ltd,15/03/2011,52200,Contracted Services,Environmental Services,Greenspace,600.00
2081135,Waltons the Caterers,03/02/2011,41202,Refreshments for Meetings,Children's Services,Technical Innovation Centre,892.50
2090988,Waltons the Caterers,14/02/2011,41202,Refreshments for Meetings,Children's Services,Technical Innovation Centre,814.05
2099191,Washcraft,03/03/2011,20101,Programmed Maint. Work,Adult Services,Prop. Servs. Laburnum Lodge,655.83
2086274,Wates Construction Ltd,10/02/2011,Z1051,Work in Progress Additions,Housing Revenue Account,Capital  HRA,"20,079.59"
2105914,Wates Construction Ltd,03/03/2011,Z1051,Work in Progress Additions,Housing Revenue Account,Capital  HRA,"19,078.02"
2090779,Waverleys#Factor Waverley TBS,14/02/2011,41106,Bar Stock,Adult Services,Civic Catering Town Hall Bar,529.52
2089780,WDM Ltd,14/02/2011,Z1051,Work in Progress Additions,Highways,Stores,"3,318.00"
2083690,Westfield House Care Home,08/02/2011,54301,Residential Provision,Adult Services,MH Residential External Provision,"4,292.72"
2092744,Westhoughton Coach Hire,17/02/2011,34402,Clients  Taxi Fares,Environmental Services,Social Needs Transport,"1,665.00"
2083715,Westwood Lodge,08/02/2011,54302,Nursing Provision,Adult Services,OA  External Provision Residential,"1,494.08"
2093393,Whale Tankers Ltd,17/02/2011,40101,Operational Equipment Maint,Environmental Services,Streets & Grounds,677.44
2093872,Whale Tankers Ltd,07/03/2011,52200,Contracted Services,Environmental Services,Transport Support Service,"1,487.11"
2092200,Whites Waste Paper Ltd,14/02/2011,53000,Private Contracted Services,Environmental Services,Waste,833.33
2093836,Whittinghams Farm Supplies,07/03/2011,52200,Contracted Services,Environmental Services,Transport Support Service,"1,109.23"
2093863,Whittinghams Farm Supplies,07/03/2011,52200,Contracted Services,Environmental Services,Transport Support Service,"1,085.93"
2085254,Wigan Pier Promotions,10/02/2011,48203,Marketing,Central Services,Marketing  Development (J),"5,885.00"
2087571,Wilde Consultants Ltd,07/03/2011,53100,Agency Staff  Fulltime,Environmental Services,Engineering Projects,"5,497.46"
2092750,Willows Minibus,17/02/2011,34402,Clients  Taxi Fares,Environmental Services,Social Needs Transport,"2,564.00"
2102264,Wilson & Scott (Highways) Ltd,24/02/2011,20501,Engineering Work,Environmental Services,Lighting / Stores Billable Costs,"2,995.80"
2083679,Windermere House,08/02/2011,54302,Nursing Provision,Adult Services,MH Residential External Provision,"2,214.00"
2083623,Wingates Residential Home,08/02/2011,54301,Residential Provision,Adult Services,OA  External Provision Residential,"31,427.28"
2083622,Wingates Residential Home,08/02/2011,54301,Residential Provision,Adult Services,OA  External Provision Residential,586.74
2093418,Wings Education Ltd,17/02/2011,52000,Vol Assoc Grants  General,Children's Services,Res Serv Agency Placements,"15,643.00"
2082794,Wings Education Ltd,21/02/2011,52000,Vol Assoc Grants  General,Children's Services,Res Serv Agency Placements,"2,401.00"
2084296,Wings Education Ltd,21/02/2011,52000,Vol Assoc Grants  General,Children's Services,Res Serv Agency Placements,"6,517.00"
2093416,Wings Education Ltd,17/02/2011,52000,Vol Assoc Grants  General,Children's Services,Res Serv Agency Placements,"34,310.00"
2083634,Withins Residential Home,08/02/2011,54301,Residential Provision,Adult Services,OA  External Provision Residential,"68,483.37"
2083721,Withy Grove House,08/02/2011,54301,Residential Provision,Adult Services,OA  External Provision Residential,"1,866.00"
2085537,Woodlands House Residential Home Ltd,08/02/2011,54301,Residential Provision,Adult Services,OA  External Provision Residential,"27,661.46"
2085493,Woodlands House Residential Home Ltd,08/02/2011,54301,Residential Provision,Adult Services,OA  External Provision Residential,"7,021.16"
2091950,Xerox Business Services,03/03/2011,43030,Photocopying Lease/Maintenance,Chief Executives Department,MFD,"31,455.50"
2084848,Xerox Office Supplies Ltd,28/02/2011,43032,Office Stationery,Central Services,Civic & Admin Text & Reprographics,527.00
2086012,Xerox Office Supplies Ltd,24/02/2011,43032,Office Stationery,Central Services,Civic & Admin Text & Reprographics,934.00
2098642,Xerox Office Supplies Ltd,15/03/2011,43032,Office Stationery,Central Services,Civic & Admin Text & Reprographics,958.45
2101477,Xerox Office Supplies Ltd,17/03/2011,43032,Office Stationery,Central Services,Civic & Admin Text & Reprographics,749.70
2098644,Xerox Office Supplies Ltd,15/03/2011,43032,Office Stationery,Central Services,Civic & Admin Text & Reprographics,748.00
2093483,XtraSpace Solutions Ltd,17/02/2011,Z6008,Expense AP Accrual,Bolton MBC Balance Sheet,Bolton MBC Balance Sheet,654.04
2092754,Y & S Private Hire,17/02/2011,34402,Clients  Taxi Fares,Environmental Services,Social Needs Transport,"2,484.00"
2094347,Yorkshire Purchasing Organisation,28/02/2011,41101,Catering ProvisionsFood,Environmental Services,Catering,587.42
2094328,Yorkshire Purchasing Organisation,28/02/2011,41101,Catering ProvisionsFood,Environmental Services,Catering,700.21
2094371,Yorkshire Purchasing Organisation,28/02/2011,41101,Catering ProvisionsFood,Environmental Services,Catering,648.75
2094380,Yorkshire Purchasing Organisation,28/02/2011,41101,Catering ProvisionsFood,Environmental Services,Catering,617.06
2082032,Yorkshire Purchasing Organisation,11/02/2011,41101,Catering ProvisionsFood,Environmental Services,Catering,756.44
2082068,Yorkshire Purchasing Organisation,11/02/2011,41101,Catering ProvisionsFood,Environmental Services,Catering,533.10
2082013,Yorkshire Purchasing Organisation,11/02/2011,41101,Catering ProvisionsFood,Environmental Services,Catering,604.83
2082025,Yorkshire Purchasing Organisation,11/02/2011,41101,Catering ProvisionsFood,Environmental Services,Catering,504.28
2082059,Yorkshire Purchasing Organisation,11/02/2011,41101,Catering ProvisionsFood,Environmental Services,Catering,809.72
2086989,Yorkshire Purchasing Organisation,21/02/2011,41101,Catering ProvisionsFood,Environmental Services,Catering,550.85
2087009,Yorkshire Purchasing Organisation,21/02/2011,41101,Catering ProvisionsFood,Environmental Services,Catering,624.92
2087033,Yorkshire Purchasing Organisation,21/02/2011,41101,Catering ProvisionsFood,Environmental Services,Catering,824.28
2087893,Zagota Creations Ltd,03/03/2011,40102,Operational Equipment Rental,Environmental Services,Bereavement Services,850.00
2081923,Zoeller Waste Systems Ltd,24/02/2011,31305,Vehicle Servicing,Environmental Services,Transport Support Service,"1,071.30"
2081448,Zoeller Waste Systems Ltd,17/02/2011,31305,Vehicle Servicing,Environmental Services,Transport Support Service,590.49
2093783,Zoeller Waste Systems Ltd,07/03/2011,31305,Vehicle Servicing,Environmental Services,Transport Support Service,614.72
2093803,Zoeller Waste Systems Ltd,10/03/2011,52200,Contracted Services,Environmental Services,Transport Support Service,"1,561.22"
